{"text_format":"1","workbook":"xlsx","n_sheets":14,"sheets":["ТИТУЛ","ОБЩИЕ_ДАННЫЕ","ОД_CRM","Экспорт в сметный калькулятор","Свойства_расчета","Сводная_Объект","Подробная_Участки","Подробная_Объект","ПРИМЕЧАНИЯ","Выгрузка","ОЦО","Адм","Прайс","Деление по СБЕ"],"not_rendered":{"charts":0,"images":2,"macros":1,"external_links":0,"defined_names":21,"comments":5,"pivot_tables":0},"unopened":[],"bounds":{"document_bytes":16777216,"sheet_cells":100000,"rows_first":2000,"rows_last":500,"rows_between":2000,"halvings":0,"cell_chars":16384,"cell_head_chars":4096},"cells_cut":0,"cells_raw":0,"read":"whole","date_system":"1900"}

{"sheet":"ТИТУЛ","index":0,"n_rows":67,"n_cols":13,"rows_kept":67,"cut":false,"hidden":false,"merged":[[25,1,29,3],[31,1,35,3],[0,0,0,3]]}
[]
[]
[]
[]
[]
[]
[]
[]
[]
[]
[]
[]
[]
[]
[]
[]
[]
[]
[]
[]
[]
[]
[]
[]
[]
[null,"Расчет материалов"]
[]
[]
[]
[]
[null,null,null,null,null,null,null,null,null,null,null,{"$f":"CONCATENATE(\"СПЕЦИФИКАЦИЯ \",номер_объекта)","v":"СПЕЦИФИКАЦИЯ 9-9075-МПККИТ-01.26"}]
[null,{"$f":"IF(ОБЩИЕ_ДАННЫЕ!C6=0,\"\",ОБЩИЕ_ДАННЫЕ!C6)","v":"9-9075-МПККИТ-01.26"}]
[null,null,null,null,null,null,null,null,null,null,null,null,{"$f":"IF(ISERROR(LEFT(B32,FIND(\"-\",B32)-1)),\" \",LEFT(B32,FIND(\"-\",B32)-1))","v":"9"}]
[]
[null,null,null,null,null,null,null,null,null,null,null,1,"Пустовалова А."]
[null,null,null,null,null,null,null,null,null,null,null,2,"Заброда Р."]
[null,null,null,null,null,null,null,null,null,null,null,3,"Новикова А."]
[null,null,null,null,null,null,null,null,null,null,null,4,"Филатова Т."]
[null,null,null,null,null,null,null,null,null,null,null,5,"Крутоверцева Ю."]
[null,null,null,null,null,null,null,null,null,null,null,6,"Рогалев В."]
[null,null,null,null,null,null,null,null,null,null,null,7,"Пятков Е."]
[null,null,null,null,null,null,null,null,null,null,null,8,"Горюшкин К."]
[null,null,null,null,null,null,null,null,null,null,null,9,"Козырева Е."]
[null,null,null,null,null,null,null,null,null,null,null,10,"Линькова Д."]
[null,null,null,null,null,null,null,null,null,null,null,11,"Хахалева М."]
[null,null,null,null,null,null,null,null,null,null,null,12,"Воеводин В."]
[null,null,null,null,null,null,null,null,null,null,null,13,"Чурилова Д."]
[null,null,null,null,null,null,null,null,null,null,null,14,"Шустов С."]
[null,null,null,null,null,null,null,null,null,null,null,15,"Лобанова Т."]
[null,null,null,null,null,null,null,null,null,null,null,16]
[null,null,null,null,null,null,null,null,null,null,null,17,"Рыбушкин М."]
[null,null,null,null,null,null,null,null,null,null,null,18]
[null,null,null,null,null,null,null,null,null,null,null,19]
[null,null,null,null,null,null,null,null,null,null,null,20,"Кудрявцева К."]
[null,null,null,null,null,null,null,null,null,null,null,21,"Рукояткин М."]
[]
[]
[]
[]
[]
[]
[]
[]
[null,"Расчет выполнил:",null,{"$f":"IFERROR(INDEX(M35:M57,MATCH(VALUE(M33),L35:L57)),\"\")","v":"Козырева Е."}]
[null,null,null,{"$f":"IFERROR(IF(VALUE(M33)<17,\"prc@tn.ru\",\"\"),\"\")","v":"prc@tn.ru"}]
[null,null,null,{"$f":"IFERROR(IF(VALUE(M33)<17,\" 8-903-375-95-11\",\"\"),\"\")","v":" 8-903-375-95-11"}]
[null,null,{"$f":"YEAR(TODAY())","v":2026}]

{"sheet":"ОБЩИЕ_ДАННЫЕ","index":1,"n_rows":262,"n_cols":30,"rows_kept":262,"cut":false,"hidden":false,"merged":[[0,0,0,5],[29,1,29,5],[1,1,1,5],[3,2,3,5],[2,2,2,5],[5,2,5,5],[6,2,6,5],[4,2,4,5],[7,2,7,5],[11,2,11,5],[12,2,12,5],[14,2,14,5],[24,1,24,2],[26,2,26,5],[129,15,129,22],[130,15,130,22],[124,7,124,22],[125,15,125,22],[126,15,126,22],[127,15,127,22],[128,15,128,22],[10,2,10,3],[10,4,10,5],[15,2,15,5],[48,1,49,5],[44,7,44,11],[1,23,1,24],[14,9,16,9],[14,10,16,22],[10,10,13,22],[10,9,13,9],[1,10,1,22],[2,9,5,9],[2,10,5,22],[10,7,18,8],[17,9,18,9],[1,7,9,8],[8,9,9,9],[8,10,9,22],[6,9,7,9],[6,10,7,22],[154,8,154,13],[94,8,94,12],[91,8,91,12],[90,8,90,12],[93,8,93,12],[118,9,118,14],[98,10,102,10],[103,10,106,10],[107,10,110,10],[111,10,114,10],[92,8,92,12],[95,8,95,12],[96,8,96,12],[46,29,46,33],[45,29,45,33],[16,2,16,5],[25,7,25,8],[17,10,18,22],[25,4,25,5],[25,9,27,10],[29,7,29,11],[39,7,39,13],[40,7,40,13],[18,2,18,5],[17,3,17,4],[35,7,35,11],[36,7,36,11],[23,1,23,2],[24,10,24,22],[19,10,23,22],[45,7,45,14],[30,7,30,13],[23,4,23,5],[24,4,24,5],[38,7,38,13],[25,1,25,2],[43,7,43,11],[201,7,203,7],[19,7,24,8],[8,2,8,4],[9,2,9,4],[29,12,29,16],[25,11,27,22],[45,1,45,2],[41,7,41,12],[42,7,42,12],[31,7,31,13],[32,7,32,13],[33,7,33,13],[34,7,34,13],[37,7,37,13],[144,15,146,15],[138,8,138,13],[13,2,13,3],[13,4,13,5],[19,9,23,9],[20,1,20,5],[22,4,22,5],[22,1,22,2],[21,4,21,5],[21,1,21,2]]}
[null,null,null,null,null,null,null,"↓",null,"Дата редакции шаблона: 22.01.26"]
[null,"ОБЩИЕ ДАННЫЕ",null,null,null,null,null,"Кровля горизонт",null,"Т0","Нет полной информации о площади объекта (чертежи с искажениями, нечитаемые размеры). ",null,null,null,null,null,null,null,null,null,null,null,null,"Скидка"]
[null,"Дата поступления исходных данных",{"$f":"IFERROR(LEFT(C206,FIND(\" \",C206)-1)*1,\" \")","v":"2026-01-21"},null,null,null,null,null,null,"Т1","Присутствует информация о площади, нет данных по любому из пунктов:\n- Состав типов кровли;\n- Тип местности;\n- Тип основания;\n- Продуваемость конструкции."]
[null,"Дата выдачи расчета",{"$f":"IF(C204=0,\" \",C204)","v":"2026-01-27"}]
[null,"Номер заявки",{"$f":"IF(C207=0,\" \",C207)","v":235601}]
[null,"Шифр расчета",{"$f":"IF(C203=0,\" \",C203)","v":"9-9075-МПККИТ-01.26"}]
[null,"№ CRM",303297,null,null,null,null,null,null,"Т2","Присутствует информация о площади и составу конструкций, нет данных по любому из пунктов:\n-Тип местности;\n-Тип основания;\n-Продуваемость конструкции."]
[null,"Объект","Проектирование строительных конструкция покрытия Цеха М10. АО Коломенский завод"]
[null,"Адрес объекта/ Регион объекта","Московская область, г.Коломна, ул.Партизан, д.42",null,null,"ЦФО",null,null,null,"Т3","Присутствует полная информация о площади кровли и выступающим элементам + выполнен ветровой расчет п.5."]
[null,"Заказчик/ Регион заказчика",{"$f":"IF(C213=0,\" \",C213)","v":"РТП"},null,null,"ПФО"]
[null,"Организация/Для кого",{"$f":"IF(C218=0,\" \",C218)","v":" "},null,{"$f":"IF(B217=0,\" \",LEFT(B217,(LEN(B217)-1)))","v":"ОЦО КП"},null,null,"Кровля примыкан.",null,"Т1","Нет информации по узлам примыканий, учитывается стандартное примыкание тип1 (для ПМ), тип 2 (для РМ) "]
[null,"ФИО Заказчика",{"$f":"IF(C209=0,\" \",C209)","v":"Трофимов Роман Олегович"}]
[null,"Должность",{"$f":"IF(C210=0,\" \",C210)","v":" "}]
[null,"Контакты заказчика",{"$f":"IF(C211=0,\" \",C211)","v":"+7 (980) 164-03-99"},null,{"$f":"IF(C212=0,\" \",C212)","v":"trofimov@tn.ru"}]
[null,"Площадь конструкции, м2",{"$f":"SUM(Свойства_расчета!$D:$D)","v":24170},null,null,null,null,null,null,"Т2","Присутствует частичная информация по примыканиям,  в случае если узлы примыканий в проекте отличаются от стандартов ТН, принимаются узлы ТН. "]
[null,"Текущая стадия",{"$f":"IF(C231=0,\"Нет данных \",C231)","v":"Нет данных "}]
[null,"Тип расчета",{"$f":"IF(C215=0,\" \",C215)","v":"Новый расчет"}]
[null,"Количество вариантов расчета",1,"№ варианта",null,1,null,null,null,"Т3","Присутствует полная информация по примыканиям,  в случае если узлы примыканий в проекте отличаются от стандартов ТН, принимаются узлы ТН. "]
[null,"Количество типов конструкции",{"$f":"COUNT(Свойства_расчета!D:D)","v":1}]
[null,null,null,null,null,null,null,"Ветровой расчет",null,"Т1","Нет данных по любому из пунктов:\n-Тип местности;\n-Тип основания;\n-Продуваемость конструкции;\n-Геометрические размеры здания."]
[null,"ТОЧНОСТЬ РАСЧЁТА"]
[null,"Наименование показателя",null,"Класс","Погрешность"]
[null,"Расчет материалов по горизонтальной части кровли",null,"Т2",{"$f":"IF(D23=\"Т0\",N100,IF(D23=\"Т1\",N101,IF(D23=\"Т2\",N102,IF(D23=\"Т3\",N103,\"\"))))","v":"5-25%"}]
[null,"Расчет материалов по примыканиям",null,"Т1",{"$f":"IF(D24=\"Т0\",N100,IF(D24=\"Т1\",N105,IF(D24=\"Т2\",N106,IF(D24=\"Т3\",N107,\"\"))))","v":"5-25%"}]
[null,"Расчет количества клиновидной теплоизоляции",null,{"$f":"IF((O33)=1,\"Т2\",IF(O33=2,\"Т2\",IF(O33=3,\"Т1\",\"0\")))","v":"Т2"},{"$f":"IF(D25=\"Т0\",N100,IF(D25=\"Т1\",N109,IF(D25=\"Т2\",N110,IF(D25=\"Т3\",N111,\"\"))))","v":"Клин.плиты 5-8% Доб.плиты 5-10%"},null,null,null,null,"Т3","Предоставлены все данные для расчета."]
[null,"  Ветровой расчет",null,0,{"$f":"IF(D26=\"Т0\",N100,IF(D26=\"Т1\",N113,IF(D26=\"Т3\",N114,\"\")))","v":""},null,null,"Примечание:",null,"-"]
[null,"  Ссылка на ветровой расчёт"," "]
[]
[]
[null,"СТОИМОСТЬ РАСЧЁТА",null,null,null,null,null,"Стоимость расчета СБЕ"]
[null,"Вид расчета","Сложность","Стоимость","Скидка %","Итого:",null,"Вид расчета",null,null,null,null,null,null,"Сложность","Стоимость","Скидка %","Итого:",null,null,null,null,"КВ","XPS","ПИР","ПМ","РМ","МиСХ","Плантер"]
[null,"Анализ чертежей",{"$f":"O32","v":3},0,1,{"$f":"D32*(100%-E32)","v":0},null,"Анализ чертежей",null,null,null,null,null,null,3,{"$f":"IF(OR(C15=0,O32=0),0,INDEX(Прайс!J39:M41,O32,P91))","v":4000},1,{"$f":"P32*(100%-Q32)","v":0},null,null,null,null,{"$f":"'Деление по СБЕ'!C43","v":1},{"$f":"'Деление по СБЕ'!D43","v":0},{"$f":"'Деление по СБЕ'!E43","v":1},{"$f":"'Деление по СБЕ'!F43","v":0},{"$f":"'Деление по СБЕ'!G43","v":0},{"$f":"'Деление по СБЕ'!H43","v":1},{"$f":"'Деление по СБЕ'!I43","v":0}]
[null,"Расчет количества клиновидной теплоизоляции",{"$f":"O33","v":2},{"$f":"IF(AND($C$15>0,C33>0),5000,0)","v":5000},1,0,null,"Расчет количества клиновидной теплоизоляции",null,null,null,null,null,null,{"$f":"Прайс!AC7","v":2},{"$f":"Прайс!AC8*N92*P94","v":3599.9999999999995},1,0,null,null,null,null,{"$f":"'Деление по СБЕ'!C3","v":1},{"$f":"'Деление по СБЕ'!D3","v":0},{"$f":"'Деление по СБЕ'!E3","v":0}]
[null,"Расчет количества материалов Плоской кровли  ПМ",{"$f":"O34","v":0},{"$f":"IF(AND($C$15>0,C34>0),5000,0)","v":0},1,0,null,"Расчет количества материалов Плоской кровли  ПМ",null,null,null,null,null,null,0,{"$f":"IF('Деление по СБЕ'!L20=0,0,IF(OR(N97=0,O34=0),0,INDEX(Прайс!J18:M20,O34,N91))*N92*N93*O94)","v":0},1,0,null,null,null,null,{"$f":"'Деление по СБЕ'!C18","v":0},{"$f":"'Деление по СБЕ'!D18","v":0},{"$f":"'Деление по СБЕ'!E18","v":0},{"$f":"'Деление по СБЕ'!F18","v":0},{"$f":"'Деление по СБЕ'!G18","v":0},{"$f":"'Деление по СБЕ'!H18","v":0}]
[null,"Расчет количества материалов Плоской кровли  РМ",3,5000,1,0,null,"Расчет количества материалов Плоской кровли  РМ",null,null,null,null,null,null,3,{"$f":"IF('Деление по СБЕ'!L25=0,0,IF(OR(N96=0,O35=0),0,INDEX(Прайс!J21:M23,O35,O91))*N92*N93*N94)","v":4800},1,0,null,null,null,null,{"$f":"'Деление по СБЕ'!C23","v":1},{"$f":"'Деление по СБЕ'!D23","v":0},{"$f":"'Деление по СБЕ'!E23","v":1},null,{"$f":"'Деление по СБЕ'!G23","v":0},{"$f":"'Деление по СБЕ'!H23","v":1}]
[null,"Ветровой расчет ПМ",0,0,1,0,null,"Ветровой расчет ПМ",null,null,null,null,"Кол-во:",0,0,{"$f":"IF(OR(C15=0,O36=0),0,INDEX(Прайс!J$24:J$26,O36))*N$95*$N$92","v":0},1,0,null,null,null,null,null,null,null,{"$f":"'Деление по СБЕ'!F28","v":0},"-"]
[null,"Ветровой расчет РМ",0,0,1,0,null,"Ветровой расчет РМ",null,null,null,null,"Кол-во:",0,0,{"$f":"IF(OR(C15=0,O37=0),0,INDEX(Прайс!J$24:J$26,O37))*O$95*$N$92","v":0},1,0,null,null,null,null,null,null,null,"-",{"$f":"'Деление по СБЕ'!G33","v":0}]
[null,"Теплотехнический расчет методика СП 23-02-2003",2,5000,1,0,null,"Теплотехнический расчет методика СП 23-02-2003",null,null,null,null,null,null,2,{"$f":"O38*Прайс!G73*$N$92","v":1200},1,0,null,null,null,null,1,null,1,{"$f":"IF(O38=0,\" \",\"ЗАПОЛНИТЬ ПРИСУТСТВИЕ СБЕ В РУЧНУЮ (0 ИЛИ 1)\")","v":"ЗАПОЛНИТЬ ПРИСУТСТВИЕ СБЕ В РУЧНУЮ (0 ИЛИ 1)"}]
[null,"Теплотехнический расчет по методике СП  50",{"$f":"O39","v":0},0,1,0,null,"Теплотехнический расчет по методике СП  50",null,null,null,null,null,null,0,{"$f":"IF(O39=0,0,INDEX(Прайс!J$54:J$56,O39)*N92)","v":0},1,{"$f":"P39*(100%-Q39)","v":0},null,null,null,null,null,null,null,{"$f":"IF(O39=0,\" \",\"ЗАПОЛНИТЬ ПРИСУТСТВИЕ СБЕ В РУЧНУЮ (0 ИЛИ 1)\")","v":" "}]
[null,"Расчет паронакопления СП 50-13330.2012",{"$f":"O40","v":0},0,1,0,null,"Расчет паронакопления СП 50-13330.2012",null,null,null,null,null,null,0,{"$f":"O40*Прайс!G77*$N$92","v":0},1,0,null,null,null,null,null,null,{"$f":"'Деление по СБЕ'!E58","v":"-"},null,{"$f":"'Деление по СБЕ'!G58","v":0}]
[null,"Расчет ограждения",{"$f":"O41","v":3},5000,1,0,null,"Расчет ограждения",null,null,null,null,null,null,3,{"$f":"IF(O41=0,0,INDEX(Прайс!J$48:J$50,O41)*N92)","v":800},1,0,null,null,null,null,null,null,null,{"$f":"'Деление по СБЕ'!F63","v":1}]
[null,"Создание схемы ветровых зон",0,0,1,0,null,"Создание схемы ветровых зон",null,null,null,null,null,{"$f":"HYPERLINK(\"#\"&$W$141&\"!I125\",\"↓ \")","v":"↓ "},{"$f":"IFERROR(ROUNDDOWN(SUM(K142:K151)/COUNTIF(K142:K151,\">0\"),0),0)","v":0},{"$f":"SUM(L142:L151)","v":0},1,0,null,null,null,null,null,null,null,{"$f":"IF(SUM(M142:M151)>0,1,0)","v":0},{"$f":"IF(SUM(N142:N151)>0,1,0)","v":0}]
[null,"Оформление раскладки гидроизоляции на кровле",0,{"$f":"P43","v":0},1,0,null,"Оформление раскладки гидроизоляции на кровле",null,null,null,null,null,{"$f":"HYPERLINK(\"#\"&$W$141&\"!I141\",\"↓ \")","v":"↓ "},{"$f":"IFERROR(ROUNDDOWN(SUM(K158:K167)/COUNTIF(K158:K167,\">0\"),0),0)","v":0},{"$f":"SUM(L158:L167)","v":0},1,0,null,null,null,null,null,null,null,{"$f":"IF(SUM(M158:M167)>0,1,0)","v":0},{"$f":"IF(SUM(N158:N167)>0,1,0)","v":0}]
[null,"Расчет количества воронок ПМ",0,0,1,{"$f":"D44*(100%-E44)","v":0},null,"Расчет количества воронок ПМ",null,null,null,null,"Кол-во:",0,0,{"$f":"IF('Деление по СБЕ'!L75=0,0,IF(OR(N97=0,O44=0,N44=0),0,INDEX(Прайс!J51:M53,O44,N91))*N98)","v":0},1,0,null,null,null,null,null,null,null,{"$f":"'Деление по СБЕ'!F73","v":0}]
[null,"Расчет количества воронок PМ",0,0,1,0,null,"Расчет количества воронок РМ",null,null,null,null,"Кол-во:",0,0,{"$f":"IF('Деление по СБЕ'!L80=0,0,IF(OR(N96=0,O45=0,N45=0),0,INDEX(Прайс!J51:M53,O45,O91))*O98)","v":0},1,0,null,null,null,null,null,null,null,null,{"$f":"'Деление по СБЕ'!G78","v":0}]
[null,"Итого:",null,{"$f":"SUM(D32:D45)","v":20000},null,{"$f":"SUM(F32:F45)","v":0},null,"Итого:",null,null,null,null,null,null,null,{"$f":"SUM(P32:P45)","v":14400},null,{"$f":"SUM(R32:R45)","v":0},null,null,null,null,"-","-","-","-","-","-","-","Согласование"]
[null,null,null,null,null,null,null,null,null,null,null,null,null,null,null,null,null,null,null,null,null,null,null,null,null,null,null,null,null,"-"]
[]
[null,{"$f":"IF(C15>=3000,\"Для данного объекта Вы можете заказать техническое сопровождение Службы Качества ТехноНИКОЛЬ. Подробности на сайте http://nav.tn.ru\",\"\")","v":"Для данного объекта Вы можете заказать техническое сопровождение Службы Качества ТехноНИКОЛЬ. Подробности на сайте http://nav.tn.ru"}]
[]
[]
[null,null,null,null,null,null,null,0,1,1,null,null,1,null,null,0]
[null,null,null,null,null,null,null,1,1,1,null,{"$f":"1170*INDEX(I52:I58,MATCH(C19,H52:H58,0))/N53","v":234},1,5,null,1]
[null,null,null,null,null,null,null,2,1.1000000000000001,1.2,null,null,1.1000000000000001,null,null,2]
[null,null,null,null,null,null,null,3,1.2,1.4,null,null,1.2,null,null,3]
[null,null,null,null,null,null,null,4,1.3,1.6,null,null,1.3,null,null,4]
[null,null,null,null,null,null,null,5,1.4,1.8,null,null,1.4,null,null,5]
[null,null,null,null,null,null,null,6,1.5,2,null,null,1.5,null,null,6]
[null,null,null,null,null,null,null,7,1.6,2.2000000000000002,null,null,1.6,null,null,7,null,{"$f":"RIGHT(Сводная_Объект!E12,LEN(Сводная_Объект!E12)-47)","v":"TPK9B6AA33C67D3B696FB2FED3B2F383319"}]
[null,null,null,null,null,null,null,8,1.7,2.4,null,null,1.7,null,null,8,null,"https://nav.tn.ru/services/estimated-service/calc/"]
[null,null,null,null,null,null,null,9,1.8,2.6,null,null,1.8,null,null,9,"Ссылка на сметный расчёт:",{"$f":"_xlfn.CONCAT(R60,R59)","v":{"$error":"#NAME?"}}]
[null,null,null,null,null,null,null,10,1.9,2.8,null,null,1.9,null,null,10]
[null,null,null,null,null,null,null,11,2,3,null,null,2]
[null,null,null,null,null,null,null,12,2.1,3.2,null,null,2.1]
[null,null,null,null,null,null,null,13,2.2000000000000002,3.4,null,null,2.2000000000000002,null,null,null,null,"СРТП",null,null,null,null,null,"-"]
[null,null,null,null,null,null,null,14,2.2999999999999998,3.6,null,null,2.2999999999999998,null,null,null,null,"ОЦО КП",null,null,null,null,null,"ИСКЛЮЧЕНИЕ"]
[null,null,null,null,null,null,null,15,2.4,3.8,null,null,2.4,null,null,null,null,"Торговый партнер"]
[null,null,null,null,null,null,null,16,2.5,4,null,null,2.5,null,null,null,null,"СБЕ"]
[null,null,null,null,null,null,null,17,2.6,4.2,null,null,2.6,null,null,null,null,"Интернет магазин"]
[null,null,null,null,null,null,null,18,2.7,4.4000000000000004,null,null,2.7,null,null,null,null,"Заказчик"]
[null,null,null,null,null,null,null,19,2.8,4.5999999999999996,null,null,2.8,null,null,null,null,"Частное лицо"]
[null,null,null,null,null,null,null,20,2.9,4.8,null,null,2.9,null,null,null,null,"Проектировщик"]
[null,null,null,null,null,null,null,21,3,5,null,null,3,null,null,null,null,"Подрядчик"]
[null,null,null,null,null,null,null,22,3.1,5.2,null,null,3.1,null,null,null,null,"Служба качества"]
[null,null,null,null,null,null,null,23,3.2,5.4,null,null,3.2,null,null,null,null,"Прочее"]
[null,null,null,null,null,null,null,24,3.3,5.6,null,null,3.3]
[null,null,null,null,null,null,null,25,3.4,5.8,null,null,3.4]
[null,null,null,null,null,null,null,26,3.5,5.9999999999999902,null,null,3.5]
[null,null,null,null,null,null,null,27,3.6,6.1999999999999904,null,null,3.6]
[null,null,null,null,null,null,null,28,3.7,6.3999999999999897,null,null,3.7]
[null,null,null,null,null,null,null,29,3.8,6.5999999999999899,null,null,3.8]
[null,null,null,null,null,null,null,30,3.9,6.7999999999999901,null,null,3.9]
[]
[]
[]
[null,null,null,null,null,null,null,null,"Новый расчет"]
[null,null,null,null,null,null,null,null,"Перерасчет (новые данные)"]
[null,null,null,null,null,null,null,null,"Перерасчет (корректировка)"]
[null,null,null,null,null,null,null,null,"Перерасчет (выявлена ошибка)"]
[null,null,null,null,null,null,null,null,null,null,null,null,null,"кровля",null,null,null,null,"Нет данных"]
[null,null,null,null,null,null,null,null,"Коэф. зависящий от площади ПМ/РМ",null,null,null,null,{"$f":"IF(N97=0,0,IF(N97<=1000,1,IF(AND(N97>1000,N97<=5000),2,IF(AND(N97>5000,N97<=10000),3,IF(N97>10000,4,0)))))","v":0},{"$f":"IF(N96=0,0,IF(N96<=1000,1,IF(AND(N96>1000,N96<=5000),2,IF(AND(N96>5000,N96<=10000),3,IF(N96>10000,4,0)))))","v":4},{"$f":"IF(C15=0,0,IF(C15<=500,1,IF(AND(C15>500,C15<=1000),2,IF(AND(C15>1000,C15<=5000),3,IF(C15>5000,4,0)))))","v":4},null,{"$f":"IF(C15=0,0,IF(C15<=100,1,IF(AND(C15>100,C15<=500),2,IF(AND(C15>500,C15<=1000),3,IF(C15>1000,4,0)))))","v":4},"Проектирование"]
[null,null,null,null,null,null,null,null,"Коэф. влияния  типа расчета",null,null,null,null,{"$f":"IF(OR(C17=\"Новый расчет\",C17=\"Перерасчет (новые данные)\"),1,IF(C17=\"Перерасчет (корректировка)\",0.5,IF(C17=\"Перерасчет (выявлена ошибка)\",0,0)))","v":1},null,null,null,null,"Нулевой цикл"]
[null,null,null,null,null,null,null,null,"Коэф. кол-ва вариантов расчета",null,null,null,null,{"$f":"IFERROR(INDEX(I52:I82,MATCH(C18,H52:H82,0))/C18,0)","v":1},null,null,null,null,"Строительство"]
[null,null,null,null,null,null,null,null,"Коэф. кол-ва типов конструкций",null,null,null,null,{"$f":"INDEX(J52:J82,MATCH(O96,H52:H82,0))","v":1},{"$f":"INDEX(J52:J82,MATCH(O97,H52:H82,0))","v":1},{"$f":"INDEX(I52:I82,MATCH(Прайс!AD6,H52:H82,0))","v":1},null,null,"Реконструкция"]
[null,null,null,null,null,null,null,null,"Коэф. Ветровой ПМ/РМ",null,null,null,null,{"$f":"INDEX(M52:M82,MATCH(N36,H52:H82,0))","v":1},{"$f":"INDEX(M52:M82,MATCH(N37,H52:H82,0))","v":1}]
[null,null,null,null,null,null,null,null,"Битумно- полимерная",null,null,null,null,{"$f":"SUMIF(Свойства_расчета!$F:$F,\"Битумно-полимерная\",Свойства_расчета!$D:$D)","v":24170},{"$f":"COUNTIF(Свойства_расчета!$F:$F,\"Битумно-полимерная\")","v":1}]
[null,null,null,null,null,null,null,null,"ПВХ",null,null,null,null,{"$f":"SUMIF(Свойства_расчета!$F:$F,\"Полимерная\",Свойства_расчета!$D:$D)","v":0},{"$f":"COUNTIF(Свойства_расчета!$F:$F,\"Полимерная\")","v":0},null,"Ограждение",{"$f":"IF(SUM(Y97:Y106)>1,1,0)","v":1},null,null,null,null,null,null,{"$f":"IFERROR(MATCH(Z97,Сводная_Объект!C:C,0),0)","v":0},659570]
[null,null,null,null,null,null,null,null,"Коэф. кол-ва расчётов воронок",null,null,null,null,{"$f":"INDEX(M52:M82,MATCH(N44,H52:H82,0))","v":1},{"$f":"INDEX(M52:M82,MATCH(N45,H52:H82,0))","v":1},null,null,null,null,null,null,null,null,null,{"$f":"IFERROR(MATCH(Z98,Сводная_Объект!C:C,0),0)","v":39},659573]
[null,null,null,null,null,null,null,null,null,null,"Кровля горизонт",null,0,null,null,null,null,null,"-",null,null,null,null,null,{"$f":"IFERROR(MATCH(Z99,Сводная_Объект!C:C,0),0)","v":0},659572]
[null,null,null,null,null,null,null,null,"ЦФО","Центральный федеральный округ",null,null,"Т0","Невозможно оценить",null,null,null,null,0,null,null,null,null,null,{"$f":"IFERROR(MATCH(Z100,Сводная_Объект!C:C,0),0)","v":0},659569]
[null,null,null,null,null,null,null,null,"ЮФО","Южный федеральный округ",null,null,"Т1","5-30%",null,null,null,null,1,null,null,null,null,null,{"$f":"IFERROR(MATCH(Z101,Сводная_Объект!C:C,0),0)","v":0},659568]
[null,null,null,null,null,null,null,null,"ПФО","Приволжский федеральный округ",null,null,"Т2","5-25%",null,null,null,null,null,null,null,null,null,null,{"$f":"IFERROR(MATCH(Z102,Сводная_Объект!C:C,0),0)","v":0},659571]
[null,null,null,null,null,null,null,null,"СЗФО","Северо-западный федеральный округ",null,null,"Т3","5-8%",null,null,null,null,"-",null,null,null,null,null,{"$f":"IFERROR(MATCH(Z103,Сводная_Объект!C:C,0),0)","v":0},685734]
[null,null,null,null,null,null,null,null,"УФО","Уральский федеральный округ","Кровля примыкан.",null,0,null,null,null,null,null,"Изменения в чертежах",null,null,null,null,null,{"$f":"IFERROR(MATCH(Z104,Сводная_Объект!C:C,0),0)","v":0},685736]
[null,null,null,null,null,null,null,null,"СФО","Сибирский федеральный округ",null,null,"Т1","5-25%",null,null,null,null,"Новый вариант системы",null,null,null,null,null,{"$f":"IFERROR(MATCH(Z105,Сводная_Объект!C:C,0),0)","v":0},685735]
[null,null,null,null,null,null,null,null,"ДФО","Дальневосточный федеральный округ",null,null,"Т2","5-15%",null,null,null,null,"Расчитаны другие клины",null,null,null,null,null,{"$f":"IFERROR(MATCH(Z106,Сводная_Объект!C:C,0),0)","v":0},47492]
[null,null,null,null,null,null,null,null,"Беларусь","Беларусь",null,null,"Т3","5-8%",null,null,null,null,"Корректировка по ветровому расчету"]
[null,null,null,null,null,null,null,null,"Украина","Украина","Расчет количества клиновидной теплоизоляции",null,0,null,null,null,null,null,"Добавлен расчет материалов"]
[null,null,null,null,null,null,null,null,"Казахстан","Казахстан",null,null,"Т1","Клин.плиты 5-8% Доб.плиты 5-15%",null,null,null,null,"Изменение пароизоляции"]
[null,null,null,null,null,null,null,null,"Европа","Европа",null,null,"Т2","Клин.плиты 5-8% Доб.плиты 5-10%",null,null,null,null,"Разделение кровли на участки"]
[null,null,null,null,null,null,null,null,"Азербайджан","Азербайджан",null,null,"Т3","Клин.плиты 5-8% Доб.плиты 5-10%",null,null,null,null,"Изменение схемы раскладки клинов"]
[null,null,null,null,null,null,null,null,"Узбекистан","Узбекистан","Ветровой расчет",null,0,null,null,null,null,null,"Добавлен ветровой расчет"]
[null,null,null,null,null,null,null,null,"н/д",null,null,null,"Т1","10-200%",null,null,null,null,"Добавлен теплотехнический расчет"]
[null,null,null,null,null,null,null,null,"н/д","Прочее",null,null,"Т3","5-10%",null,null,null,null,"Новые данные для ветрового расчета"]
[null,null,null,null,null,null,null,null,null,null,null,null,null,null,null,null,null,null,"Исключены клины"]
[null,null,null,null,null,null,null,null,null,null,null,null,null,null,null,null,null,null,"Добавлен расчет клинов"]
[null,null,null,null,null,null,null,"for each s in sheets:s.visible=true:next \n",null,null,null,null,"отображение всех скрытых листов",null,null,null,null,null,"Проверка на изменение чертежей"]
[null,null,null,null,null,null,null,null,null,null,null,null,null,null,null,null,null,null,"Изменения для заказчика"]
[null,null,null,null,null,null,null,null,null,"Базовая стоимость",null,null,null,null,null,null,null,null,"Прочее"]
[null,null,null,null,null,null,null,null,null,"МПК РМ",{"$f":"IF(OR(N96=0,O35=0),0,INDEX(Прайс!J21:M23,O35,O91))*0.5/4","v":600},{"$f":"ROUND(K120,1)","v":600},"клин",{"$f":"IF(OR(C15=0,O33=0),0,Прайс!AC8*0.5/4)","v":449.99999999999994},{"$f":"ROUND(N120,1)","v":450}]
[null,null,null,null,null,null,null,null,null,"МПК ПМ",{"$f":"IF(OR(N97=0,O34=0),0,INDEX(Прайс!J18:M20,O34,N91))*0.5/4","v":0},{"$f":"ROUND(K121,1)","v":0}]
[null,null,null,null,null,null,null,null,null,"В ",{"$f":"IF(AND(O36=0,O37=0),0,IF(AND(O36>0,O37=0),INDEX(Прайс!J$24:J$26,O36)*0.25/4,INDEX(Прайс!J$24:J$26,O37)*0.25/4))","v":0},{"$f":"ROUND(K122,1)","v":0}]
[null,null,null,null,null,null,null,null,null,"Т",{"$f":"IF(O38=0,0,Прайс!G73*0.25/2)","v":75},{"$f":"ROUND(K123,1)","v":75}]
[null,null,null,null,null,null,null,null,null,"Т50",{"$f":"IF(OR(C15=0,O39=0),0,INDEX(Прайс!J54:J56,O39))/4","v":0},{"$f":"ROUND(K124,1)","v":0}]
[null,null,null,null,null,null,null,"Таблица согласования площадей для ПК "]
[null,null,null,null,null,null,null,"КВ","XPS","ПИР","ПМ","РМ","МиСХ","Плантер",null,"СБЕ"]
[null,null,null,null,null,null,null,{"$f":"IF(OR($C$10=$R$66,$AD$47=$X$66),1,0)","v":0},0,0,0,0,0,0,null,"Критерий заказчика"]
[null,null,null,null,null,null,null,7000,4000,4000,4000,4000,4000,4000,null,"Согласованная площадь"]
[null,null,null,null,null,null,null,{"$f":"W46","v":"-"},"-","-","-","-","-","-",null,"Согласование СБЕ"]
[null,null,null,null,null,null,null,{"$f":"IF($C$15>=H128,1,0)","v":1},1,1,1,1,1,1,null,"Итог по площади"]
[null,null,null,null,null,null,null,{"$f":"IF(H129=1,1,IF(H127=1,1,IF(H130=1,1,0)))","v":1},1,1,1,1,1,1,null,"Вывод"]
[]
[null,null,null,null,null,null,null,"Регион","RUS"]
[]
[]
[]
[]
[]
[null,null,null,null,null,null,null,null,"Создание схемы ветровых зон"]
[]
[null,null,null,null,null,null,null,null,"Типы","Площадь","Сложность","Стоимость","ПМ","РМ",null,null,null,null,null,null,null,null,"ОБЩИЕ_ДАННЫЕ"]
[null,null,null,null,null,null,null,null,"Тип 1",null,0,{"$f":"IF(OR(J142=0,K142=0),0,INDEX(Прайс!$J$42:$M$44,K142,M172))*$N$92","v":0}]
[null,null,null,null,null,null,null,null,"Тип 2",null,0,{"$f":"IF(OR(J143=0,K143=0),0,INDEX(Прайс!$J$42:$M$44,K143,M173))*$N$92","v":0}]
[null,null,null,null,null,null,null,null,"Тип 3",null,0,{"$f":"IF(OR(J144=0,K144=0),0,INDEX(Прайс!$J$42:$M$44,K144,M174))*$N$92","v":0}]
[null,null,null,null,null,null,null,null,"Тип 4",null,0,{"$f":"IF(OR(J145=0,K145=0),0,INDEX(Прайс!$J$42:$M$44,K145,M175))*$N$92","v":0},null,null,null,{"$f":"HYPERLINK(\"#\"&$W$141&\"!I39\",\"⇑\")","v":"⇑"}]
[null,null,null,null,null,null,null,null,"Тип 5",null,0,{"$f":"IF(OR(J146=0,K146=0),0,INDEX(Прайс!$J$42:$M$44,K146,M176))*$N$92","v":0}]
[null,null,null,null,null,null,null,null,"Тип 6",null,0,{"$f":"IF(OR(J147=0,K147=0),0,INDEX(Прайс!$J$42:$M$44,K147,M177))*$N$92","v":0}]
[null,null,null,null,null,null,null,null,"Тип 7",null,0,{"$f":"IF(OR(J148=0,K148=0),0,INDEX(Прайс!$J$42:$M$44,K148,M178))*$N$92","v":0}]
[null,null,null,null,null,null,null,null,"Тип 8",null,0,{"$f":"IF(OR(J149=0,K149=0),0,INDEX(Прайс!$J$42:$M$44,K149,M179))*$N$92","v":0}]
[null,null,null,null,null,null,null,null,"Тип 9",null,0,{"$f":"IF(OR(J150=0,K150=0),0,INDEX(Прайс!$J$42:$M$44,K150,M180))*$N$92","v":0}]
[null,null,null,null,null,null,null,null,"Тип 10",null,0,{"$f":"IF(OR(J151=0,K151=0),0,INDEX(Прайс!$J$42:$M$44,K151,M181))*$N$92","v":0}]
[]
[]
[]
[null,null,null,null,null,null,null,null,"Оформление раскладки гидроизоляции на кровле"]
[]
[null,null,null,null,null,null,null,null,"Типы","Площадь","Сложность","Стоимость","ПМ","РМ"]
[null,null,null,null,null,null,null,null,"Тип 1",null,0,{"$f":"IF(OR(J158=0,K158=0),0,INDEX(Прайс!$J$45:$M$47,K158,M188))*$N$92","v":0}]
[null,null,null,null,null,null,null,null,"Тип 2",null,0,{"$f":"IF(OR(J159=0,K159=0),0,INDEX(Прайс!$J$45:$M$47,K159,M189))*$N$92","v":0}]
[null,null,null,null,null,null,null,null,"Тип 3",null,0,{"$f":"IF(OR(J160=0,K160=0),0,INDEX(Прайс!$J$45:$M$47,K160,M190))*$N$92","v":0}]
[null,null,null,null,null,null,null,null,"Тип 4",null,0,{"$f":"IF(OR(J161=0,K161=0),0,INDEX(Прайс!$J$45:$M$47,K161,M191))*$N$92","v":0}]
[null,null,null,null,null,null,null,null,"Тип 5",null,0,{"$f":"IF(OR(J162=0,K162=0),0,INDEX(Прайс!$J$45:$M$47,K162,M192))*$N$92","v":0}]
[null,null,null,null,null,null,null,null,"Тип 6",null,0,{"$f":"IF(OR(J163=0,K163=0),0,INDEX(Прайс!$J$45:$M$47,K163,M193))*$N$92","v":0}]
[null,null,null,null,null,null,null,null,"Тип 7",null,0,{"$f":"IF(OR(J164=0,K164=0),0,INDEX(Прайс!$J$45:$M$47,K164,M194))*$N$92","v":0}]
[null,null,null,null,null,null,null,null,"Тип 8",null,0,{"$f":"IF(OR(J165=0,K165=0),0,INDEX(Прайс!$J$45:$M$47,K165,M195))*$N$92","v":0}]
[null,null,null,null,null,null,null,null,"Тип 9",null,0,{"$f":"IF(OR(J166=0,K166=0),0,INDEX(Прайс!$J$45:$M$47,K166,M196))*$N$92","v":0}]
[null,null,null,null,null,null,null,null,"Тип 10",null,0,{"$f":"IF(OR(J167=0,K167=0),0,INDEX(Прайс!$J$45:$M$47,K167,M197))*$N$92","v":0}]
[]
[]
[]
[null,null,null,null,null,null,null,null,null,null,null,null,"вспом. Коэф."]
[null,null,null,null,null,null,null,null,null,null,null,null,{"$f":"IF(J142=0,0,IF(J142<=1000,1,IF(AND(J142>1000,J142<=5000),2,IF(AND(J142>5000,J142<=10000),3,IF(J142>10000,4,0)))))","v":0}]
[null,null,null,null,null,null,null,null,null,null,null,null,0]
[null,null,null,null,null,null,null,null,null,null,null,null,0]
[null,null,null,null,null,null,null,null,null,null,null,null,0]
[null,null,null,null,null,null,null,null,null,null,null,null,0]
[null,null,null,null,null,null,null,null,null,null,null,null,0]
[null,null,null,null,null,null,null,null,null,null,null,null,0]
[null,null,null,null,null,null,null,null,null,null,null,null,0]
[null,null,null,null,null,null,null,null,null,null,null,null,0]
[null,null,null,null,null,null,null,null,null,null,null,null,0]
[]
[]
[]
[]
[]
[null,null,null,null,null,null,null,null,null,null,null,null,"вспом. Коэф."]
[null,null,null,null,null,null,null,null,null,null,null,null,{"$f":"IF(J158=0,0,IF(J158<=1000,1,IF(AND(J158>1000,J158<=5000),2,IF(AND(J158>5000,J158<=10000),3,IF(J158>10000,4,0)))))","v":0}]
[null,null,null,null,null,null,null,null,null,null,null,null,0]
[null,null,null,null,null,null,null,null,null,null,null,null,0]
[null,null,null,null,null,null,null,null,null,null,null,null,0]
[null,null,null,null,null,null,null,null,null,null,null,null,0]
[null,null,null,null,null,null,null,null,null,null,null,null,0]
[null,null,null,null,null,null,null,null,null,null,null,null,0]
[null,null,null,null,null,null,null,null,null,null,null,null,0]
[null,null,null,null,null,null,null,null,null,null,null,null,0]
[null,null,null,null,null,null,null,null,null,null,null,null,0]
[]
[]
[]
[]
[null,null,null,null,null,null,0,"⇑"]
[null,"Номер расчета:","9-9075-МПККИТ-01.26",null,null,null,0]
[null,"Дата выдачи заявки","2026-01-27",null,null,null,0]
[null,null,null,null,null,null,0,null,"Для использования макроса откройте файл \"Форма ПРЦ\" для текущего расчета"]
[null,"Время регистрации заявки:","21.01.2026 20:45:04",null,null,null,0,null,"Затем нажать \"Вставить ОД\""]
[null,"ID(номер) заявки:",235601,null,null,null,0]
[null,null,null,null,null,null,0]
[null,"Ф.И.О.:","Трофимов Роман Олегович",null,null,null,0,null,1,"Номер расчёта, Дата выдачи заявки и Номер заявки заполняется вручную"]
[null,"Должность:",null,null,null,null,0,null,2,"Поля \"Количество вариантов расчёта\" и \"Номер варианта\" в основной области заполняются вручную"]
[null,"Телефон:","+7 (980) 164-03-99",null,null,null,0]
[null,"Email:","trofimov@tn.ru",null,null,null,0]
[null,"Заказчик расчета:","РТП",null,null,null,0,null,"Регионы:",null,null,null,null,null,"Типы расчётов:"]
[null,"Другое значение:",null,null,null,null,0,null,"Центральный федеральный округ",null,null,null,null,null,"Новый расчет"]
[null,"Тип расчета:","Новый расчет",null,null,null,0,null,"Южный федеральный округ",null,null,null,null,null,"Перерасчет (новые данные)"]
[null,"Номер расчета:",null,null,null,null,0,null,"Приволжский федеральный округ",null,null,null,null,null,"Перерасчет (корректировка)"]
[null,"ОЦО КП:",null,null,null,null,0,null,"Северо-западный федеральный округ",null,null,null,null,null,"Перерасчет (выявлена ошибка)"]
[null,null,null,null,null,null,0,null,"Уральский федеральный округ"]
[null,"Регион организации:","МО",null,null,null,0,null,"Сибирский федеральный округ",null,null,null,null,null,"Должности:"]
[null,"Город организации:",null,null,null,null,0,null,"Дальневосточный федеральный округ",null,null,null,null,null,"РТП"]
[null,"ИНН организации:",null,null,null,null,0,null,"Беларусь",null,null,null,null,null,"ОЦО КП"]
[null,"КПП организации:",null,null,null,null,0,null,"Украина",null,null,null,null,null,"Торговый партнер"]
[null,"Прочий регион:",null,null,null,null,0,null,"Казахстан",null,null,null,null,null,"СБЕ"]
[null,"Номер объекта:",303297,null,null,null,0,null,"Европа",null,null,null,null,null,"Интернет магазин"]
[null,"Известен номер объекта:",1,null,null,null,0,null,"Азербайджан",null,null,null,null,null,"Заказчик"]
[null,"Промокод:",null,null,null,null,0,null,"Узбекистан",null,null,null,null,null,"Частное лицо"]
[null,null,null,null,null,null,0,null,"Прочее",null,null,null,null,null,"Проектировщик"]
[null,"Наименование объекта:",null,null,null,null,0,null,null,null,null,null,null,null,"Подрядчик"]
[null,null,null,null,null,null,0,null,null,null,null,null,null,null,"Служба качества"]
[null,null,null,null,null,null,0,null,null,null,null,null,null,null,"Прочее"]
[null,"Стадия работ:",null,null,null,null,0]
[null,"Стадия объекта:",null,null,null,null,0]
[null,"Регион объекта:","г Пенза",null,null,null,0]
[null,"Адрес объекта:",null,null,null,null,0]
[null,"Широта:",null,null,null,null,0]
[null,"Долгота:",null,null,null,null,0]
[null,null,null,null,null,null,0]
[null,"Плоская кровля",null,null,null,null,0]
[null,"Площадь конструкции:","26 000,00 кв.м;",null,null,null,0]
[null,"Расчёт объёма материалов:",null,null,null,null,0]
[null,"EKN:",658749,null,null,null,0]
[null,"Способ расчета:","По проекту",null,null,null,0]
[null,"Расчёт количества клиновидной теплоизоляции:",null,null,null,null,0]
[null,"EKN:",658750,null,null,null,0]
[null,"Способ расчета:","Ввод материалов самостоятельно",null,null,null,0]
[null,"Клин ТИ Основной уклон:","Не требуется",null,null,null,0]
[null,"Клин ТИ Контр уклон:","KB",null,null,null,0]
[null,"Расчет крепежа:","Крепеж для плит клиновидной теплоизоляции + крепеж мембраны над ней",null,null,null,0]
[null,"Введите толщину теплоизоляции основного слоя:",null,null,null,null,0]
[null,"Введите толщину основного слоя теплоизоляции :",null,null,null,null,0]
[null,null,null,null,null,null,0]
[null,null,null,null,null,null,0]
[null,null,null,null,null,null,0]
[null,null,null,null,null,null,0]
[null,null,null,null,null,null,0]
[null,null,null,null,null,null,0]
[null,null,null,null,null,null,0]
[null,null,null,null,null,null,0]
[null,null,null,null,null,null,0]
[null,null,null,null,null,null,0]
[null,null,null,null,null,null,0]
[null,null,null,null,null,null,0]

{"sheet":"ОД_CRM","index":2,"n_rows":25,"n_cols":2,"rows_kept":25,"cut":false,"hidden":true,"merged":[]}
[]
["Шифр расчёта",{"$f":"Шифр","v":"9-9075-МПККИТ-01.26"}]
["Номер заявки",{"$f":"ОБЩИЕ_ДАННЫЕ!C5","v":235601}]
["CRM",{"$f":"IFERROR(LEFT(ОБЩИЕ_ДАННЫЕ!C7,SEARCH(\"/\",ОБЩИЕ_ДАННЫЕ!C7)-1),ОБЩИЕ_ДАННЫЕ!C7)","v":303297}]
["Название объекта",{"$f":"Объект","v":"Проектирование строительных конструкция покрытия Цеха М10. АО Коломенский завод"}]
["Адрес объекта/ Регион объекта",{"$f":"ОБЩИЕ_ДАННЫЕ!C9","v":"Московская область, г.Коломна, ул.Партизан, д.42"}]
["Регион объекта",{"$f":"ОБЩИЕ_ДАННЫЕ!F9","v":"ЦФО"}]
["Текущая стадия",{"$f":"ОБЩИЕ_ДАННЫЕ!C16","v":"Нет данных "}]
["Тип расчета",{"$f":"ОБЩИЕ_ДАННЫЕ!C17","v":"Новый расчет"}]
["Кол-во вариантов",{"$f":"ОБЩИЕ_ДАННЫЕ!C18","v":1}]
[" № Варианта",{"$f":"ОБЩИЕ_ДАННЫЕ!F18","v":1}]
["Кол-во типов",{"$f":"N_типов","v":1}]
["Площадь ",{"$f":"ОБЩИЕ_ДАННЫЕ!C15","v":24170}]
["Тип заказчика",{"$f":"ОБЩИЕ_ДАННЫЕ!C10","v":"РТП"}]
["Регион заказчика",{"$f":"ОБЩИЕ_ДАННЫЕ!F10","v":"ПФО"}]
["Организация/Для кого",{"$f":"IF(ОБЩИЕ_ДАННЫЕ!C10=\"РТП\",0,ОБЩИЕ_ДАННЫЕ!C11)","v":0}]
["Заказчик",{"$f":"ОБЩИЕ_ДАННЫЕ!C12","v":"Трофимов Роман Олегович"}]
["Должность",{"$f":"ОБЩИЕ_ДАННЫЕ!C13","v":" "}]
["Контакты заказчика (Телефон)",{"$f":"Контакт_телефон","v":"+7 (980) 164-03-99"}]
["Контакты заказчика (E-mail)",{"$f":"Контакт_почта","v":"trofimov@tn.ru"}]
["Промокод",{"$f":"ОБЩИЕ_ДАННЫЕ!C226","v":0}]
["Для кого ТИП заказчика",{"$f":"ОБЩИЕ_ДАННЫЕ!E11","v":"ОЦО КП"}]
["Для кого Наименование организации",{"$f":"ОБЩИЕ_ДАННЫЕ!$C$217","v":0}]
["ИНН",{"$f":"ОБЩИЕ_ДАННЫЕ!C221","v":0}]
["КПП",{"$f":"ОБЩИЕ_ДАННЫЕ!C222","v":0}]

{"sheet":"Экспорт в сметный калькулятор","index":3,"n_rows":40,"n_cols":4,"rows_kept":40,"cut":false,"hidden":true,"merged":[]}
[]
["EKN","Наименование материала","Кол-во материала по расчету","Ед.изм"]
[{"$f":"Сводная_Объект!C16","v":0},{"$f":"Сводная_Объект!D16","v":0},{"$f":"Сводная_Объект!J16","v":0},{"$f":"Сводная_Объект!I16","v":0}]
[{"$f":"Сводная_Объект!C17","v":694295},{"$f":"Сводная_Объект!D17","v":"Праймер полимерный ТЕХНОНИКОЛЬ №08 Быстросохнущий, 1 мм"},{"$f":"Сводная_Объект!J17","v":5759.47},{"$f":"Сводная_Объект!I17","v":"кг"}]
[{"$f":"Сводная_Объект!C18","v":691611},{"$f":"Сводная_Объект!D18","v":"ТЕХНОБАРЬЕР, 2.8 мм"},{"$f":"Сводная_Объект!J18","v":30694.055700000001},{"$f":"Сводная_Объект!I18","v":"м²"}]
[{"$f":"Сводная_Объект!C19","v":0},{"$f":"Сводная_Объект!D19","v":"ТЕХНОРУФ Н ПРОФ, 110 мм"},{"$f":"Сводная_Объект!J19","v":1991.6079999999999},{"$f":"Сводная_Объект!I19","v":"м³"}]
[{"$f":"Сводная_Объект!C20","v":0},{"$f":"Сводная_Объект!D20","v":"Битум нефтяной кровельный БНК 90/30, 1 мм"},{"$f":"Сводная_Объект!J20","v":203849.04},{"$f":"Сводная_Объект!I20","v":"кг"}]
[{"$f":"Сводная_Объект!#REF!","v":{"$error":"#REF!"}},{"$f":"Сводная_Объект!#REF!","v":{"$error":"#REF!"}},{"$f":"Сводная_Объект!#REF!","v":{"$error":"#REF!"}},{"$f":"Сводная_Объект!#REF!","v":{"$error":"#REF!"}}]
[{"$f":"Сводная_Объект!C21","v":494776},{"$f":"Сводная_Объект!D21","v":"ТЕХНОРУФ В ЭКСТРА, 50 мм"},{"$f":"Сводная_Объект!J21","v":1305.35763},{"$f":"Сводная_Объект!I21","v":"м³"}]
[{"$f":"Сводная_Объект!C22","v":90080},{"$f":"Сводная_Объект!D22","v":"Унифлекс PRO, 4 мм"},{"$f":"Сводная_Объект!J22","v":27858.342000000001},{"$f":"Сводная_Объект!I22","v":"м²"}]
[{"$f":"Сводная_Объект!C23","v":22450},{"$f":"Сводная_Объект!D23","v":"Техноэласт ПЛАМЯ СТОП ЭКП, 4.2 мм"},{"$f":"Сводная_Объект!J23","v":31708.820070000002},{"$f":"Сводная_Объект!I23","v":"м²"}]
[{"$f":"Сводная_Объект!C24","v":72856},{"$f":"Сводная_Объект!D24","v":"ТЕХНОРУФ В ЭКСТРА КЛИН 4,2 % (15-65 мм), плита А"},{"$f":"Сводная_Объект!J24","v":108.702},{"$f":"Сводная_Объект!I24","v":"м³"}]
[{"$f":"Сводная_Объект!C25","v":72861},{"$f":"Сводная_Объект!D25","v":"ТЕХНОРУФ В ЭКСТРА КЛИН 4,2 % (15-65 мм), плита Б"},{"$f":"Сводная_Объект!J25","v":169.49520000000001},{"$f":"Сводная_Объект!I25","v":"м³"}]
[{"$f":"Сводная_Объект!C26","v":617800},{"$f":"Сводная_Объект!D26","v":"ТЕХНОРУФ В ЭКСТРА КЛИН 4,2 % (15-65 мм), плита C"},{"$f":"Сводная_Объект!J26","v":7.74},{"$f":"Сводная_Объект!I26","v":"м³"}]
[{"$f":"Сводная_Объект!C27","v":100},{"$f":"Сводная_Объект!D27","v":"Техноэласт ЭПП, 4 мм"},{"$f":"Сводная_Объект!J27","v":5917.0914000000002},{"$f":"Сводная_Объект!I27","v":"м²"}]
[{"$f":"Сводная_Объект!C28","v":133879},{"$f":"Сводная_Объект!D28","v":"Рейка краевая алюминиевая TERMOCLIP, 2 м"},{"$f":"Сводная_Объект!J28","v":582.98},{"$f":"Сводная_Объект!I28","v":"м.п."}]
[{"$f":"Сводная_Объект!C29","v":72871},{"$f":"Сводная_Объект!D29","v":"ТЕХНОРУФ ПРОФ ГАЛТЕЛЬ, 100 мм"},{"$f":"Сводная_Объект!J29","v":17.2422},{"$f":"Сводная_Объект!I29","v":"м³"}]
[{"$f":"Сводная_Объект!C30","v":450122},{"$f":"Сводная_Объект!D30","v":"Мастика ТЕХНОНИКОЛЬ №71, 310 мл"},{"$f":"Сводная_Объект!J30","v":146.4},{"$f":"Сводная_Объект!I30","v":"кг"}]
[{"$f":"Сводная_Объект!C31","v":85931},{"$f":"Сводная_Объект!D31","v":"ТехноНИКОЛЬ Флекс 500, 4 мм"},{"$f":"Сводная_Объект!J31","v":129.83937},{"$f":"Сводная_Объект!I31","v":"м²"}]
[{"$f":"Сводная_Объект!C32","v":12202},{"$f":"Сводная_Объект!D32","v":"ТЕХНОЛАЙТ ЭКСТРА, 100 мм"},{"$f":"Сводная_Объект!J32","v":20.424900000000001},{"$f":"Сводная_Объект!I32","v":"м³"}]
[{"$f":"Сводная_Объект!C33","v":524809},{"$f":"Сводная_Объект!D33","v":"ТЕХНОРУФ Н ПРОФ, 50 мм"},{"$f":"Сводная_Объект!J33","v":3.8367499999999999},{"$f":"Сводная_Объект!I33","v":"м³"}]
[{"$f":"Сводная_Объект!C34","v":125336},{"$f":"Сводная_Объект!D34","v":"Воронка кровельная с обогревом TERMOCLIP ВФО Ø110х700 мм"},{"$f":"Сводная_Объект!J34","v":154},{"$f":"Сводная_Объект!I34","v":"шт."}]
[{"$f":"Сводная_Объект!C35","v":128873},{"$f":"Сводная_Объект!D35","v":"Надставной элемент с манжетой TERMOCLIP"},{"$f":"Сводная_Объект!J35","v":154},{"$f":"Сводная_Объект!I35","v":"шт."}]
[{"$f":"Сводная_Объект!C36","v":528369},{"$f":"Сводная_Объект!D36","v":"Пена монтажная ТЕХНОНИКОЛЬ 70 PROFESSIONAL всесезонная"},{"$f":"Сводная_Объект!J36","v":30.8},{"$f":"Сводная_Объект!I36","v":"шт."}]
[{"$f":"Сводная_Объект!C37","v":125341},{"$f":"Сводная_Объект!D37","v":"Аэратор кровельный TERMOCLIP D160"},{"$f":"Сводная_Объект!J37","v":242},{"$f":"Сводная_Объект!I37","v":"шт."}]
[{"$f":"Сводная_Объект!C38","v":644869},{"$f":"Сводная_Объект!D38","v":"Плиты теплоизоляционные LOGICPIR PROF СХМ/СХМ, 50 мм"},{"$f":"Сводная_Объект!J38","v":202.91},{"$f":"Сводная_Объект!I38","v":"м²"}]
[{"$f":"Сводная_Объект!C39","v":659573},{"$f":"Сводная_Объект!D39","v":"Кровельное ограждение ТехноНИКОЛЬ КО/PRO/PL/1200-3"},{"$f":"Сводная_Объект!J39","v":365.63010000000003},{"$f":"Сводная_Объект!I39","v":"шт."}]
[{"$f":"Сводная_Объект!C40","v":88843},{"$f":"Сводная_Объект!D40","v":"Приемное устройство системы мониторинга снеговой нагрузки"},{"$f":"Сводная_Объект!J40","v":1},{"$f":"Сводная_Объект!I40","v":"шт."}]
[{"$f":"Сводная_Объект!C41","v":88841},{"$f":"Сводная_Объект!D41","v":"Щиток системы мониторинга снеговой нагрузки (WiFi)"},{"$f":"Сводная_Объект!J41","v":1},{"$f":"Сводная_Объект!I41","v":"шт."}]
[{"$f":"Сводная_Объект!C42","v":71311},{"$f":"Сводная_Объект!D42","v":"Датчик снега DW"},{"$f":"Сводная_Объект!J42","v":8},{"$f":"Сводная_Объект!I42","v":"шт."}]
[{"$f":"Сводная_Объект!C43","v":124613},{"$f":"Сводная_Объект!D43","v":"Анкерный элемент TERMOCLIP 8*45мм"},{"$f":"Сводная_Объект!J43","v":28658},{"$f":"Сводная_Объект!I43","v":"шт."}]
[{"$f":"Сводная_Объект!C44","v":30214},{"$f":"Сводная_Объект!D44","v":"Саморез остроконечный ТехноНИКОЛЬ 4,8х 50 мм"},{"$f":"Сводная_Объект!J44","v":25610},{"$f":"Сводная_Объект!I44","v":"шт."}]
[{"$f":"Сводная_Объект!C45","v":228669},{"$f":"Сводная_Объект!D45","v":"Саморез остроконечный ТехноНИКОЛЬ 4,8х 80 мм"},{"$f":"Сводная_Объект!J45","v":3048},{"$f":"Сводная_Объект!I45","v":"шт."}]
[{"$f":"Сводная_Объект!C46","v":228683},{"$f":"Сводная_Объект!D46","v":"Саморез сверлоконечный ТехноНИКОЛЬ 4,8х 80 мм"},{"$f":"Сводная_Объект!J46","v":323},{"$f":"Сводная_Объект!I46","v":"шт."}]
[{"$f":"Сводная_Объект!C47","v":629549},{"$f":"Сводная_Объект!D47","v":"Саморез остроконечный ТехноНИКОЛЬ 5,5х35"},{"$f":"Сводная_Объект!J47","v":2201},{"$f":"Сводная_Объект!I47","v":"шт."}]
[{"$f":"Сводная_Объект!C48","v":124243},{"$f":"Сводная_Объект!D48","v":"Телескопический крепеж TERMOCLIP 1, 20 мм"},{"$f":"Сводная_Объект!J48","v":323},{"$f":"Сводная_Объект!I48","v":"шт."}]
[{"$f":"Сводная_Объект!C49","v":124246},{"$f":"Сводная_Объект!D49","v":"Телескопический крепеж TERMOCLIP 1, 80 мм"},{"$f":"Сводная_Объект!J49","v":658},{"$f":"Сводная_Объект!I49","v":"шт."}]
[{"$f":"Сводная_Объект!C50","v":124249},{"$f":"Сводная_Объект!D50","v":"Телескопический крепеж TERMOCLIP 1, 130 мм"},{"$f":"Сводная_Объект!J50","v":2390},{"$f":"Сводная_Объект!I50","v":"шт."}]
[{"$f":"Сводная_Объект!C51","v":123737},{"$f":"Сводная_Объект!D51","v":"Круглый тарельчатый держатель TERMOCLIP 1С Ø50 мм"},{"$f":"Сводная_Объект!J51","v":809},{"$f":"Сводная_Объект!I51","v":"шт."}]
[{"$f":"Сводная_Объект!C52","v":0},{"$f":"Сводная_Объект!D52","v":0},{"$f":"Сводная_Объект!J52","v":0},{"$f":"Сводная_Объект!I52","v":0}]

{"sheet":"Свойства_расчета","index":4,"n_rows":5,"n_cols":11,"rows_kept":5,"cut":false,"hidden":true,"merged":[]}
[]
[null,null,"Название участка","Площадь участка","Система","Фильтр ГИ Верх","Фильтр Основание","Клины",null,"Информация об участках клинов"]
[null,"Участок 1","Участок 1",24170,"Пользовательская система","Битумно-полимерная","Бетон","Да",null,"Участки ОУ",0]
[null,null,null,null,null,null,null,null,null,"Участки КУ",175]
[null,null,null,null,null,null,null,null,null,"Участки КУ как ОУ",4]

{"sheet":"Сводная_Объект","index":5,"n_rows":53,"n_cols":15,"rows_kept":53,"cut":false,"hidden":false,"merged":[[47,3,47,7],[48,3,48,7],[49,3,49,7],[50,3,50,7],[12,2,12,3],[12,4,12,12],[41,3,41,7],[42,3,42,7],[43,3,43,7],[44,3,44,7],[45,3,45,7],[46,3,46,7],[35,3,35,7],[36,3,36,7],[37,3,37,7],[38,3,38,7],[39,3,39,7],[40,3,40,7],[29,3,29,7],[30,3,30,7],[31,3,31,7],[32,3,32,7],[33,3,33,7],[34,3,34,7],[28,3,28,7],[18,3,18,7],[19,3,19,7],[20,3,20,7],[21,3,21,7],[22,3,22,7],[23,3,23,7],[24,3,24,7],[25,3,25,7],[26,3,26,7],[27,3,27,7],[13,12,15,12],[13,14,15,14],[14,9,15,9],[14,10,15,10],[16,3,16,7],[13,9,13,10],[13,11,15,11],[17,3,17,7],[13,1,15,1],[13,2,15,2],[13,3,15,7],[13,8,15,8],[6,1,6,3],[8,1,8,12],[10,2,10,3],[10,4,10,12],[11,2,11,3],[11,4,11,12]]}
[]
[]
[]
[]
[]
[]
[null,"27.01.2026"]
[]
[null,"РАСЧЕТ МАТЕРИАЛОВ ПО УСТРОЙСТВУ КРОВЕЛЬНОГО ПОКРЫТИЯ"]
[]
[null,null,"Информация о объекте:",null,"«Проектирование строительных конструкция покрытия Цеха М10. АО Коломенский завод» по адресу: «Московская область, г.Коломна, ул.Партизан, д.42»"]
[null,null,"Ссылка на калькуляцию:",null,"http://nav.tn.ru/calculators/flat-roof/?object=TPK9B6AA33C67D3B696FB2FED3B2F383319"]
[null,null,"Ссылка на сметный расчёт:",null,"Экспресс Солид по проекту"]
[null,"пп","ЕКН/ ID","Наименование материала",null,null,null,null,"Ед. изм.","Количество",null,"Стоимость ед., руб.","Сметная стоимость, руб.",null,"СБЕ"]
[null,null,null,null,null,null,null,null,null,"По расчету","С учетом кратности упаковки"]
[]
[null,1,694295,"Праймер полимерный ТЕХНОНИКОЛЬ №08 Быстросохнущий, 1 мм",null,null,null,null,"кг",5759.47,5760,478.73,{"$f":"K17*L17","v":2757484.8000000003},null,"МиСХ_осн"]
[null,2,691611,"ТЕХНОБАРЬЕР, 2.8 мм",null,null,null,null,"м²",30694.055700000001,30700,272,8350400,null,"РМ_пар"]
[null,3,null,"ТЕХНОРУФ Н ПРОФ, 110 мм",null,null,null,null,"м³",1991.6079999999999,1991.664,8950,17825392.800000001,null,"КВ_осн"]
[null,4,null,"Битум нефтяной кровельный БНК 90/30, 1 мм",null,null,null,null,"кг",203849.04,203850,91,18550350]
[null,6,494776,"ТЕХНОРУФ В ЭКСТРА, 50 мм",null,null,null,null,"м³",1305.35763,1305.3599999999999,12700,16578071.999999998,null,"КВ_осн"]
[null,7,90080,"Унифлекс PRO, 4 мм",null,null,null,null,"м²",27858.342000000001,27870,227,6326490,null,"РМ_осн"]
[null,8,22450,"Техноэласт ПЛАМЯ СТОП ЭКП, 4.2 мм",null,null,null,null,"м²",31708.820070000002,31710,375,11891250,null,"РМ_осн"]
[null,9,72856,"ТЕХНОРУФ В ЭКСТРА КЛИН 4,2 % (15-65 мм), плита А",null,null,null,null,"м³",108.702,110.88,19375.560000000001,2148362.0928000002,null,"КВ_клин"]
[null,10,72861,"ТЕХНОРУФ В ЭКСТРА КЛИН 4,2 % (15-65 мм), плита Б",null,null,null,null,"м³",169.49520000000001,172.36799999999999,18065.560000000001,3113924.4460800001,null,"КВ_клин"]
[null,11,617800,"ТЕХНОРУФ В ЭКСТРА КЛИН 4,2 % (15-65 мм), плита C",null,null,null,null,"м³",7.74,13.824,16378.89,226421.77536,null,"КВ_клин"]
[null,12,100,"Техноэласт ЭПП, 4 мм",null,null,null,null,"м²",5917.0914000000002,5920,341.58,2022153.5999999999,null,"РМ_осн"]
[null,13,133879,"Рейка краевая алюминиевая TERMOCLIP, 2 м",null,null,null,null,"м.п.",582.98,600,148.86000000000001,89316.000000000015]
[null,14,72871,"ТЕХНОРУФ ПРОФ ГАЛТЕЛЬ, 100 мм",null,null,null,null,"м³",17.2422,17.28,23364.45,403737.69600000005]
[null,15,450122,"Мастика ТЕХНОНИКОЛЬ №71, 310 мл",null,null,null,null,"кг",146.4,148.80000000000001,509.97,75883.536000000007]
[null,16,85931,"ТехноНИКОЛЬ Флекс 500, 4 мм",null,null,null,null,"м²",129.83937,132,1096.82,144780.24,null,"РМ_осн"]
[null,17,12202,"ТЕХНОЛАЙТ ЭКСТРА, 100 мм",null,null,null,null,"м³",20.424900000000001,20.736000000000001,3474.45,72046.195200000002,null,"КВ_осн"]
[null,18,524809,"ТЕХНОРУФ Н ПРОФ, 50 мм",null,null,null,null,"м³",3.8367499999999999,3.8879999999999999,9222.23,35856.03024,null,"КВ_осн"]
[null,19,125336,"Воронка кровельная с обогревом TERMOCLIP ВФО Ø110х700 мм",null,null,null,null,"шт.",154,154,4756.75,732539.5]
[null,20,128873,"Надставной элемент с манжетой TERMOCLIP",null,null,null,null,"шт.",154,154,3854.19,593545.26]
[null,21,528369,"Пена монтажная ТЕХНОНИКОЛЬ 70 PROFESSIONAL всесезонная",null,null,null,null,"шт.",30.8,31,486.83,15091.73]
[null,22,125341,"Аэратор кровельный TERMOCLIP D160",null,null,null,null,"шт.",242,242,647.71,156745.82]
[null,23,644869,"Плиты теплоизоляционные LOGICPIR PROF СХМ/СХМ, 50 мм",null,null,null,null,"м²",202.91,203.48820000000001,1298.18,264164.311476,null,"PIR_осн"]
[null,24,659573,"Кровельное ограждение ТехноНИКОЛЬ КО/PRO/PL/1200-3",null,null,null,null,"шт.",365.63010000000003,366,8408.08,3077357.28]
[null,25,88843,"Приемное устройство системы мониторинга снеговой нагрузки",null,null,null,null,"шт.",1,1,16866.52,16866.52]
[null,26,88841,"Щиток системы мониторинга снеговой нагрузки (WiFi)",null,null,null,null,"шт.",1,1,61503.26,61503.26]
[null,27,71311,"Датчик снега DW",null,null,null,null,"шт.",8,8,79514.13,636113.04]
[null,28,124613,"Анкерный элемент TERMOCLIP 8*45мм",null,null,null,null,"шт.",28658,30000,2.62,78600,null,"Креп_осн"]
[null,29,30214,"Саморез остроконечный ТехноНИКОЛЬ 4,8х 50 мм",null,null,null,null,"шт.",25610,26000,4.66,121160,null,"Креп_осн"]
[null,30,228669,"Саморез остроконечный ТехноНИКОЛЬ 4,8х 80 мм",null,null,null,null,"шт.",3048,3500,6.59,23065,null,"Креп_осн"]
[null,31,228683,"Саморез сверлоконечный ТехноНИКОЛЬ 4,8х 80 мм",null,null,null,null,"шт.",323,500,7.99,3995,null,"Креп_осн"]
[null,32,629549,"Саморез остроконечный ТехноНИКОЛЬ 5,5х35",null,null,null,null,"шт.",2201,3000,9.5,28500,null,"Креп_осн"]
[null,33,124243,"Телескопический крепеж TERMOCLIP 1, 20 мм",null,null,null,null,"шт.",323,2000,3.7,7400,null,"Креп_осн"]
[null,34,124246,"Телескопический крепеж TERMOCLIP 1, 80 мм",null,null,null,null,"шт.",658,930,5.74,5338.2,null,"Креп_осн"]
[null,35,124249,"Телескопический крепеж TERMOCLIP 1, 130 мм",null,null,null,null,"шт.",2390,2650,6.72,17808,null,"Креп_осн"]
[null,36,123737,"Круглый тарельчатый держатель TERMOCLIP 1С Ø50 мм",null,null,null,null,"шт.",809,1600,5.86,9376,null,"Креп_осн"]
[null,"Итоговая стоимость",null,null,null,null,null,null,null,null,null,null,{"$f":"SUM(M17:M51)","v":96461090.133156002}]
[null,"Результаты расчета носят рекомендательный характер. Методика расчета разработана сотрудниками компании ТЕХНОНИКОЛЬ на основе многолетнего опыта. Расходы материалов непосредственно зависят от квалификации сотрудников подрядной организации."]

{"sheet":"Подробная_Участки","index":6,"n_rows":271,"n_cols":15,"rows_kept":271,"cut":false,"hidden":false,"merged":[[260,3,260,7],[262,3,262,7],[264,1,264,14],[266,3,266,7],[12,2,12,3],[12,4,12,12],[250,3,250,7],[252,3,252,7],[254,3,254,7],[256,3,256,7],[257,3,257,7],[258,3,258,7],[238,3,238,7],[240,3,240,7],[242,1,242,14],[244,3,244,7],[246,1,246,14],[248,3,248,7],[226,1,226,14],[228,3,228,7],[230,1,230,14],[232,3,232,7],[234,1,234,14],[236,3,236,7],[217,3,217,7],[219,3,219,7],[220,3,220,7],[221,3,221,7],[222,3,222,7],[224,3,224,7],[206,3,206,7],[208,3,208,7],[210,3,210,7],[211,3,211,7],[213,3,213,7],[215,1,215,14],[196,1,196,14],[198,3,198,7],[199,3,199,7],[200,3,200,7],[202,3,202,7],[204,3,204,7],[187,3,187,7],[189,3,189,7],[191,3,191,7],[192,3,192,7],[193,3,193,7],[194,3,194,7],[177,3,177,7],[179,3,179,7],[181,3,181,7],[183,3,183,7],[184,3,184,7],[185,3,185,7],[168,3,168,7],[169,3,169,7],[170,3,170,7],[171,3,171,7],[173,1,173,14],[175,3,175,7],[158,3,158,7],[160,3,160,7],[161,3,161,7],[162,3,162,7],[164,3,164,7],[166,3,166,7],[146,3,146,7],[148,3,148,7],[150,1,150,14],[152,3,152,7],[154,3,154,7],[156,3,156,7],[136,3,136,7],[138,3,138,7],[140,3,140,7],[142,3,142,7],[143,3,143,7],[144,3,144,7],[126,3,126,7],[127,3,127,7],[128,3,128,7],[130,3,130,7],[132,3,132,7],[134,1,134,14],[114,3,114,7],[116,3,116,7],[118,1,118,14],[120,3,120,7],[122,3,122,7],[124,3,124,7],[106,3,106,7],[107,3,107,7],[108,3,108,7],[110,3,110,7],[111,3,111,7],[112,3,112,7],[95,1,95,14],[97,3,97,7],[99,3,99,7],[101,3,101,7],[103,3,103,7],[105,3,105,7],[84,3,84,7],[85,3,85,7],[87,3,87,7],[89,3,89,7],[91,3,91,7],[93,3,93,7],[73,1,73,14],[75,3,75,7],[77,3,77,7],[79,3,79,7],[81,3,81,7],[83,3,83,7],[61,3,61,7],[63,3,63,7],[65,3,65,7],[67,3,67,7],[69,3,69,7],[71,3,71,7],[52,1,52,14],[54,3,54,7],[56,3,56,7],[58,3,58,7],[59,3,59,7],[60,3,60,7],[42,1,42,14],[44,3,44,7],[45,3,45,7],[46,3,46,7],[48,3,48,7],[50,3,50,7],[39,9,41,9],[39,10,41,10],[39,11,39,12],[39,13,41,13],[39,14,41,14],[40,11,41,11],[40,12,41,12],[34,3,34,8],[35,3,35,8],[36,3,36,8],[39,1,41,1],[39,2,41,2],[39,3,41,7],[39,8,41,8],[23,3,23,8],[25,3,25,8],[27,3,27,8],[29,3,29,8],[31,3,31,8],[33,3,33,8],[18,3,18,8],[20,3,20,8],[22,3,22,8],[13,2,13,13],[14,1,16,1],[14,2,16,2],[14,3,16,8],[14,9,16,9],[14,10,16,10],[14,11,14,12],[14,13,16,13],[6,1,6,3],[8,1,8,12],[10,2,10,3],[10,4,10,12],[11,2,11,3],[11,4,11,12],[14,14,16,14],[15,11,16,11],[15,12,16,12]]}
[]
[]
[]
[]
[]
[]
[null,"27.01.2026"]
[]
[null,"РАСЧЕТ МАТЕРИАЛОВ ПО УСТРОЙСТВУ КРОВЕЛЬНОГО ПОКРЫТИЯ"]
[]
[null,null,"Информация о объекте:",null,"«Проектирование строительных конструкция покрытия Цеха М10. АО Коломенский завод» по адресу: «Московская область, г.Коломна, ул.Партизан, д.42»"]
[null,null,"Ссылка на калькуляцию:",null,"http://nav.tn.ru/calculators/flat-roof/?object=TPK9B6AA33C67D3B696FB2FED3B2F383319"]
[null,null,"Ссылка на сметный расчёт:",null,{"$error":"#NAME?"}]
[null,null,"Участок 1. Площадь кровли: 24170 м2"]
[null,"пп","ЕКН/ ID","Материалы для системы кровли",null,null,null,null,null,"Коэф. запаса","Ед. изм.","Количество",null,"Стоимость ед., руб.","Сметная стоимость, руб."]
[null,null,null,null,null,null,null,null,null,null,null,"По расчету","С учетом кратности упаковки"]
[]
[null,"Грунтовка",null,null,null,null,null,null,null,null,null,null,null,null,{"$f":"SUM(O19)","v":2317053.2000000002}]
[null,1,694295,"Праймер полимерный ТЕХНОНИКОЛЬ №08 Быстросохнущий, 1 мм",null,null,null,null,null,0.2,"кг",4834,4840,{"$f":"IF(ISBLANK(C19),0,VLOOKUP(C19,Сводная_Объект!C14:L51,10,FALSE))","v":478.73},{"$f":"M19*N19","v":2317053.2000000002}]
[null,"Пароизоляционный слой",null,null,null,null,null,null,null,null,null,null,null,null,{"$f":"SUM(O21)","v":7594240}]
[null,1,691611,"ТЕХНОБАРЬЕР, 2.8 мм",null,null,null,null,null,1.155,"м²",27916.35,27920,{"$f":"IF(ISBLANK(C21),0,VLOOKUP(C21,Сводная_Объект!C14:L51,10,FALSE))","v":272},{"$f":"M21*N21","v":7594240}]
[null,"Нижний слой теплоизоляции",null,null,null,null,null,null,null,null,null,null,null,null,{"$f":"SUM(O23:O24)","v":{"$error":"#N/A"}}]
[null,1,494775,"ТЕХНОРУФ В ЭКСТРА, 40 мм",null,null,null,null,null,1.03,"м³",1991.6079999999999,1991.664,{"$f":"IF(ISBLANK(C23),0,VLOOKUP(C23,Сводная_Объект!C14:L51,10,FALSE))","v":{"$error":"#N/A"}},{"$f":"M23*N23","v":{"$error":"#N/A"}}]
[null,2,496475,"ТЕХНОРУФ В ЭКСТРА, 30 мм",null,null,null,null,null,1.03,"м³",746.85299999999995,746.928,{"$f":"IF(ISBLANK(C24),0,VLOOKUP(C24,Сводная_Объект!C14:L51,10,FALSE))","v":{"$error":"#N/A"}},{"$f":"M24*N24","v":{"$error":"#N/A"}}]
[null,"Клеевой слой",null,null,null,null,null,null,null,null,null,null,null,null,{"$f":"SUM(O26)","v":0}]
[null,1,null,"Битум нефтяной кровельный БНК 90/30, 1 мм",null,null,null,null,null,2,"кг",193360,193375,{"$f":"IF(ISBLANK(C26),0,VLOOKUP(C26,Сводная_Объект!C14:L51,10,FALSE))","v":0},{"$f":"M26*N26","v":0}]
[null,"Верхний слой теплоизоляции",null,null,null,null,null,null,null,null,null,null,null,null,{"$f":"SUM(O28)","v":15809976.000000002}]
[null,1,494776,"ТЕХНОРУФ В ЭКСТРА, 50 мм",null,null,null,null,null,1.03,"м³",1244.7550000000001,1244.8800000000001,{"$f":"IF(ISBLANK(C28),0,VLOOKUP(C28,Сводная_Объект!C14:L51,10,FALSE))","v":12700},{"$f":"M28*N28","v":15809976.000000002}]
[null,"Нижний слой кровельного ковра",null,null,null,null,null,null,null,null,null,null,null,null,{"$f":"SUM(O30)","v":6326490}]
[null,1,90080,"Унифлекс PRO, 4 мм",null,null,null,null,null,1.1526000000000001,"м²",27858.342000000001,27870,{"$f":"IF(ISBLANK(C30),0,VLOOKUP(C30,Сводная_Объект!C14:L51,10,FALSE))","v":227},{"$f":"M30*N30","v":6326490}]
[null,"Верхний слой кровельного ковра",null,null,null,null,null,null,null,null,null,null,null,null,{"$f":"SUM(O32)","v":10447500}]
[null,1,22450,"Техноэласт ПЛАМЯ СТОП ЭКП, 4.2 мм",null,null,null,null,null,1.1526000000000001,"м²",27858.342000000001,27860,{"$f":"IF(ISBLANK(C32),0,VLOOKUP(C32,Сводная_Объект!C14:L51,10,FALSE))","v":375},{"$f":"M32*N32","v":10447500}]
[null,"Клиновидная изоляция",null,null,null,null,null,null,null,null,null,null,null,null,{"$f":"SUM(O34:O37)","v":5488708.3142400002}]
[null,1,72856,"ТЕХНОРУФ В ЭКСТРА КЛИН 4,2 % (15-65 мм), плита А",null,null,null,null,null,1,"м³",108.702,110.88,{"$f":"IF(ISBLANK(C34),0,VLOOKUP(C34,Сводная_Объект!C14:L51,10,FALSE))","v":19375.560000000001},{"$f":"M34*N34","v":2148362.0928000002}]
[null,2,72861,"ТЕХНОРУФ В ЭКСТРА КЛИН 4,2 % (15-65 мм), плита Б",null,null,null,null,null,1,"м³",169.49520000000001,172.36799999999999,{"$f":"IF(ISBLANK(C35),0,VLOOKUP(C35,Сводная_Объект!C14:L51,10,FALSE))","v":18065.560000000001},{"$f":"M35*N35","v":3113924.4460800001}]
[null,3,617800,"ТЕХНОРУФ В ЭКСТРА КЛИН 4,2 % (15-65 мм), плита C",null,null,null,null,null,1,"м³",7.74,13.824,{"$f":"IF(ISBLANK(C36),0,VLOOKUP(C36,Сводная_Объект!C14:L51,10,FALSE))","v":16378.89},{"$f":"M36*N36","v":226421.77536}]
[null,4,null,"Битум нефтяной кровельный БНК 90/30, 1 мм",null,null,null,null,null,0,"кг",10489.04,10500,{"$f":"IF(ISBLANK(C37),0,VLOOKUP(C37,Сводная_Объект!C14:L51,10,FALSE))","v":0},{"$f":"M37*N37","v":0}]
[null,"Итоговая стоимость Участок 1",null,null,null,null,null,null,null,null,null,null,null,null,{"$f":"SUM(O18,O20,O22,O25,O27,O29,O31,O33)","v":{"$error":"#N/A"}}]
[]
[null,"пп","ЕКН/ ID","Материалы для примыкания",null,null,null,null,"Расход на 1 ед.*","Коэф. запаса","Ед. изм.","Количество",null,"Стоимость ед., руб.","Сметная стоимость, руб."]
[null,null,null,null,null,null,null,null,null,null,null,"По расчету","С учетом кратности упаковки"]
[]
[null,"Примыкание к наружной стене без устройства парапета, 1176 м."]
[null,"Слой усиления",null,null,null,null,null,null,null,null,null,null,null,null,{"$f":"SUM(O45:O47)","v":291252.8}]
[null,1,100,"Техноэласт ЭПП, 4 мм",null,null,null,null,0.5,1.1220000000000001,"м²",659.73599999999999,660,{"$f":"IF(ISBLANK(C45),0,VLOOKUP(C45,Сводная_Объект!C14:L51,10,FALSE))","v":341.58},{"$f":"M45*N45","v":225442.8}]
[null,2,124613,"Анкерный элемент TERMOCLIP 8*45мм",null,null,null,null,7,1.03,"шт.",8479,10000,{"$f":"IF(ISBLANK(C46),0,VLOOKUP(C46,Сводная_Объект!C14:L51,10,FALSE))","v":2.62},{"$f":"M46*N46","v":26200}]
[null,3,30214,"Саморез остроконечный ТехноНИКОЛЬ 4,8х 50 мм",null,null,null,null,7,1.03,"шт.",8479,8500,{"$f":"IF(ISBLANK(C47),0,VLOOKUP(C47,Сводная_Объект!C14:L51,10,FALSE))","v":4.66},{"$f":"M47*N47","v":39610}]
[null,"Слой усиления",null,null,null,null,null,null,null,null,null,null,null,null,{"$f":"SUM(O49)","v":223040}]
[null,1,691611,"ТЕХНОБАРЬЕР, 2.8 мм",null,null,null,null,0.6,1.155,"м²",814.96799999999996,820,{"$f":"IF(ISBLANK(C49),0,VLOOKUP(C49,Сводная_Объект!C14:L51,10,FALSE))","v":272},{"$f":"M49*N49","v":223040}]
[null,"Грунтовка",null,null,null,null,null,null,null,null,null,null,null,null,{"$f":"SUM(O51)","v":76596.800000000003}]
[null,1,694295,"Праймер полимерный ТЕХНОНИКОЛЬ №08 Быстросохнущий, 1 мм",null,null,null,null,0.45,0.3,"кг",158.76,160,{"$f":"IF(ISBLANK(C51),0,VLOOKUP(C51,Сводная_Объект!C14:L51,10,FALSE))","v":478.73},{"$f":"M51*N51","v":76596.800000000003}]
[null,"Итоговая стоимость Примыкание к наружной стене без устройства парапета",null,null,null,null,null,null,null,null,null,null,null,null,{"$f":"SUM(O44,O48,O50)","v":590889.6}]
[null,"Примыкание к вертикальным поверхностям без утепления вертикали для шереховатой поверхности, H = 350, 258 м."]
[null,"Верхний слой кровельного ковра",null,null,null,null,null,null,null,null,null,null,null,null,{"$f":"SUM(O55)","v":71250}]
[null,1,22450,"Техноэласт ПЛАМЯ СТОП ЭКП, 4.2 мм",null,null,null,null,0.6,1.173,"м²",181.5804,190,{"$f":"IF(ISBLANK(C55),0,VLOOKUP(C55,Сводная_Объект!C14:L51,10,FALSE))","v":375},{"$f":"M55*N55","v":71250}]
[null,"Слой усиления",null,null,null,null,null,null,null,null,null,null,null,null,{"$f":"SUM(O57)","v":30742.199999999997}]
[null,1,100,"Техноэласт ЭПП, 4 мм",null,null,null,null,0.31,1.1220000000000001,"м²",89.737560000000002,90,{"$f":"IF(ISBLANK(C57),0,VLOOKUP(C57,Сводная_Объект!C14:L51,10,FALSE))","v":341.58},{"$f":"M57*N57","v":30742.199999999997}]
[null,"Комплектация",null,null,null,null,null,null,null,null,null,null,null,null,{"$f":"SUM(O59:O62)","v":125487.61600000001}]
[null,1,133879,"Рейка краевая алюминиевая TERMOCLIP, 2 м",null,null,null,null,1,1.03,"м.п.",265.74,300,{"$f":"IF(ISBLANK(C59),0,VLOOKUP(C59,Сводная_Объект!C14:L51,10,FALSE))","v":148.86000000000001},{"$f":"M59*N59","v":44658.000000000007}]
[null,2,72871,"ТЕХНОРУФ ПРОФ ГАЛТЕЛЬ, 100 мм",null,null,null,null,5.0000000000000001E-3,1.03,"м³",1.3287,2.88,{"$f":"IF(ISBLANK(C60),0,VLOOKUP(C60,Сводная_Объект!C14:L51,10,FALSE))","v":23364.45},{"$f":"M60*N60","v":67289.615999999995}]
[null,3,124613,"Анкерный элемент TERMOCLIP 8*45мм",null,null,null,null,5,1.03,"шт.",1329,2500,{"$f":"IF(ISBLANK(C61),0,VLOOKUP(C61,Сводная_Объект!C14:L51,10,FALSE))","v":2.62},{"$f":"M61*N61","v":6550}]
[null,4,30214,"Саморез остроконечный ТехноНИКОЛЬ 4,8х 50 мм",null,null,null,null,5,1.03,"шт.",1329,1500,{"$f":"IF(ISBLANK(C62),0,VLOOKUP(C62,Сводная_Объект!C14:L51,10,FALSE))","v":4.66},{"$f":"M62*N62","v":6990}]
[null,"Грунтовка",null,null,null,null,null,null,null,null,null,null,null,null,{"$f":"SUM(O64)","v":14361.900000000001}]
[null,1,694295,"Праймер полимерный ТЕХНОНИКОЛЬ №08 Быстросохнущий, 1 мм",null,null,null,null,0.35,0.3,"кг",27.09,30,{"$f":"IF(ISBLANK(C64),0,VLOOKUP(C64,Сводная_Объект!C14:L51,10,FALSE))","v":478.73},{"$f":"M64*N64","v":14361.900000000001}]
[null,"Нижний слой кровельного ковра",null,null,null,null,null,null,null,null,null,null,null,null,{"$f":"SUM(O66)","v":51237}]
[null,1,100,"Техноэласт ЭПП, 4 мм",null,null,null,null,0.47,1.173,"м²",142.23797999999999,150,{"$f":"IF(ISBLANK(C66),0,VLOOKUP(C66,Сводная_Объект!C14:L51,10,FALSE))","v":341.58},{"$f":"M66*N66","v":51237}]
[null,"Пены, клеи, герметики, мастики",null,null,null,null,null,null,null,null,null,null,null,null,{"$f":"SUM(O68)","v":22765.060800000003}]
[null,1,450122,"Мастика ТЕХНОНИКОЛЬ №71, 310 мл",null,null,null,null,0.15,1,"кг",38.700000000000003,44.64,{"$f":"IF(ISBLANK(C68),0,VLOOKUP(C68,Сводная_Объект!C14:L51,10,FALSE))","v":509.97},{"$f":"M68*N68","v":22765.060800000003}]
[null,"Слой усиления",null,null,null,null,null,null,null,null,null,null,null,null,{"$f":"SUM(O70)","v":29920}]
[null,1,691611,"ТЕХНОБАРЬЕР, 2.8 мм",null,null,null,null,0.35,1.155,"м²",104.29649999999999,110,{"$f":"IF(ISBLANK(C70),0,VLOOKUP(C70,Сводная_Объект!C14:L51,10,FALSE))","v":272},{"$f":"M70*N70","v":29920}]
[null,"Грунтовка",null,null,null,null,null,null,null,null,null,null,null,null,{"$f":"SUM(O72)","v":9574.6}]
[null,1,694295,"Праймер полимерный ТЕХНОНИКОЛЬ №08 Быстросохнущий, 1 мм",null,null,null,null,0.2,0.3,"кг",15.48,20,{"$f":"IF(ISBLANK(C72),0,VLOOKUP(C72,Сводная_Объект!C14:L51,10,FALSE))","v":478.73},{"$f":"M72*N72","v":9574.6}]
[null,"Итоговая стоимость Примыкание к вертикальным поверхностям без утепления вертикали для шереховатой поверхности, H = 350",null,null,null,null,null,null,null,null,null,null,null,null,{"$f":"SUM(O54,O56,O58,O63,O65,O67,O69,O71)","v":355338.37679999997}]
[null,"Деформационный шов в примыкании к стене (Пользовательский узел примыкания), 168 м."]
[null,"Верхний слой кровельного ковра",null,null,null,null,null,null,null,null,null,null,null,null,{"$f":"SUM(O76)","v":60000}]
[null,1,22450,"Техноэласт ПЛАМЯ СТОП ЭКП, 4.2 мм",null,null,null,null,0.81,1.173,"м²",159.62183999999999,160,{"$f":"IF(ISBLANK(C76),0,VLOOKUP(C76,Сводная_Объект!C14:L51,10,FALSE))","v":375},{"$f":"M76*N76","v":60000}]
[null,"Нижний слой кровельного ковра",null,null,null,null,null,null,null,null,null,null,null,null,{"$f":"SUM(O78)","v":51237}]
[null,1,100,"Техноэласт ЭПП, 4 мм",null,null,null,null,0.76,1.173,"м²",149.76864,150,{"$f":"IF(ISBLANK(C78),0,VLOOKUP(C78,Сводная_Объект!C14:L51,10,FALSE))","v":341.58},{"$f":"M78*N78","v":51237}]
[null,"Деформационный шов",null,null,null,null,null,null,null,null,null,null,null,null,{"$f":"SUM(O80)","v":109682}]
[null,1,85931,"ТехноНИКОЛЬ Флекс 500, 4 мм",null,null,null,null,0.5,1.173,"м²",98.531999999999996,100,{"$f":"IF(ISBLANK(C80),0,VLOOKUP(C80,Сводная_Объект!C14:L51,10,FALSE))","v":1096.82},{"$f":"M80*N80","v":109682}]
[null,"Слой усиления",null,null,null,null,null,null,null,null,null,null,null,null,{"$f":"SUM(O82)","v":20494.8}]
[null,1,100,"Техноэласт ЭПП, 4 мм",null,null,null,null,0.31,1.1220000000000001,"м²",58.433759999999999,60,{"$f":"IF(ISBLANK(C82),0,VLOOKUP(C82,Сводная_Объект!C14:L51,10,FALSE))","v":341.58},{"$f":"M82*N82","v":20494.8}]
[null,"Комплектация",null,null,null,null,null,null,null,null,null,null,null,null,{"$f":"SUM(O84:O86)","v":94369.615999999995}]
[null,1,72871,"ТЕХНОРУФ ПРОФ ГАЛТЕЛЬ, 100 мм",null,null,null,null,5.0000000000000001E-3,1.03,"м³",0.86519999999999997,2.88,{"$f":"IF(ISBLANK(C84),0,VLOOKUP(C84,Сводная_Объект!C14:L51,10,FALSE))","v":23364.45},{"$f":"M84*N84","v":67289.615999999995}]
[null,2,124613,"Анкерный элемент TERMOCLIP 8*45мм",null,null,null,null,15,1.03,"шт.",2596,5000,{"$f":"IF(ISBLANK(C85),0,VLOOKUP(C85,Сводная_Объект!C14:L51,10,FALSE))","v":2.62},{"$f":"M85*N85","v":13100}]
[null,3,30214,"Саморез остроконечный ТехноНИКОЛЬ 4,8х 50 мм",null,null,null,null,15,1.03,"шт.",2596,3000,{"$f":"IF(ISBLANK(C86),0,VLOOKUP(C86,Сводная_Объект!C14:L51,10,FALSE))","v":4.66},{"$f":"M86*N86","v":13980}]
[null,"Пены, клеи, герметики, мастики",null,null,null,null,null,null,null,null,null,null,null,null,{"$f":"SUM(O88)","v":15176.707200000001}]
[null,1,450122,"Мастика ТЕХНОНИКОЛЬ №71, 310 мл",null,null,null,null,0.15,1,"кг",25.2,29.76,{"$f":"IF(ISBLANK(C88),0,VLOOKUP(C88,Сводная_Объект!C14:L51,10,FALSE))","v":509.97},{"$f":"M88*N88","v":15176.707200000001}]
[null,"Слой усиления",null,null,null,null,null,null,null,null,null,null,null,null,{"$f":"SUM(O90)","v":125120}]
[null,1,691611,"ТЕХНОБАРЬЕР, 2.8 мм",null,null,null,null,2.35,1.155,"м²",455.99400000000003,460,{"$f":"IF(ISBLANK(C90),0,VLOOKUP(C90,Сводная_Объект!C14:L51,10,FALSE))","v":272},{"$f":"M90*N90","v":125120}]
[null,"Грунтовка",null,null,null,null,null,null,null,null,null,null,null,null,{"$f":"SUM(O92)","v":9574.6}]
[null,1,694295,"Праймер полимерный ТЕХНОНИКОЛЬ №08 Быстросохнущий, 1 мм",null,null,null,null,0.25,0.3,"кг",12.6,20,{"$f":"IF(ISBLANK(C92),0,VLOOKUP(C92,Сводная_Объект!C14:L51,10,FALSE))","v":478.73},{"$f":"M92*N92","v":9574.6}]
[null,"Деформационный шов",null,null,null,null,null,null,null,null,null,null,null,null,{"$f":"SUM(O94)","v":55535.608799999995}]
[null,1,12202,"ТЕХНОЛАЙТ ЭКСТРА, 100 мм",null,null,null,null,0.9,1.03,"м³",15.573600000000001,15.984,{"$f":"IF(ISBLANK(C94),0,VLOOKUP(C94,Сводная_Объект!C14:L51,10,FALSE))","v":3474.45},{"$f":"M94*N94","v":55535.608799999995}]
[null,"Итоговая стоимость Деформационный шов в примыкании к стене (Пользовательский узел примыкания)",null,null,null,null,null,null,null,null,null,null,null,null,{"$f":"SUM(O75,O77,O79,O81,O83,O87,O89,O91,O93)","v":541190.33199999994}]
[null,"Деформационный разделитель, 157 м."]
[null,"Верхний слой кровельного ковра",null,null,null,null,null,null,null,null,null,null,null,null,{"$f":"SUM(O98)","v":48750}]
[null,1,22450,"Техноэласт ПЛАМЯ СТОП ЭКП, 4.2 мм",null,null,null,null,0.67,1.173,"м²",123.38787000000001,130,{"$f":"IF(ISBLANK(C98),0,VLOOKUP(C98,Сводная_Объект!C14:L51,10,FALSE))","v":375},{"$f":"M98*N98","v":48750}]
[null,"Нижний слой кровельного ковра",null,null,null,null,null,null,null,null,null,null,null,null,{"$f":"SUM(O100)","v":58068.6}]
[null,1,100,"Техноэласт ЭПП, 4 мм",null,null,null,null,0.89,1.173,"м²",163.90329,170,{"$f":"IF(ISBLANK(C100),0,VLOOKUP(C100,Сводная_Объект!C14:L51,10,FALSE))","v":341.58},{"$f":"M100*N100","v":58068.6}]
[null,"Слой усиления",null,null,null,null,null,null,null,null,null,null,null,null,{"$f":"SUM(O102)","v":17079}]
[null,1,100,"Техноэласт ЭПП, 4 мм",null,null,null,null,0.25,1.1220000000000001,"м²",44.038499999999999,50,{"$f":"IF(ISBLANK(C102),0,VLOOKUP(C102,Сводная_Объект!C14:L51,10,FALSE))","v":341.58},{"$f":"M102*N102","v":17079}]
[null,"Деформационный шов",null,null,null,null,null,null,null,null,null,null,null,null,{"$f":"SUM(O104)","v":35098.239999999998}]
[null,1,85931,"ТехноНИКОЛЬ Флекс 500, 4 мм",null,null,null,null,0.17,1.173,"м²",31.307369999999999,32,{"$f":"IF(ISBLANK(C104),0,VLOOKUP(C104,Сводная_Объект!C14:L51,10,FALSE))","v":1096.82},{"$f":"M104*N104","v":35098.239999999998}]
[null,"Грунтовка",null,null,null,null,null,null,null,null,null,null,null,null,{"$f":"SUM(O106:O109)","v":34947.9}]
[null,1,694295,"Праймер полимерный ТЕХНОНИКОЛЬ №08 Быстросохнущий, 1 мм",null,null,null,null,0.55000000000000004,0.3,"кг",25.905000000000001,30,{"$f":"IF(ISBLANK(C106),0,VLOOKUP(C106,Сводная_Объект!C14:L51,10,FALSE))","v":478.73},{"$f":"M106*N106","v":14361.900000000001}]
[null,2,124613,"Анкерный элемент TERMOCLIP 8*45мм",null,null,null,null,5,1.03,"шт.",809,2500,{"$f":"IF(ISBLANK(C107),0,VLOOKUP(C107,Сводная_Объект!C14:L51,10,FALSE))","v":2.62},{"$f":"M107*N107","v":6550}]
[null,3,30214,"Саморез остроконечный ТехноНИКОЛЬ 4,8х 50 мм",null,null,null,null,5,1.03,"шт.",809,1000,{"$f":"IF(ISBLANK(C108),0,VLOOKUP(C108,Сводная_Объект!C14:L51,10,FALSE))","v":4.66},{"$f":"M108*N108","v":4660}]
[null,4,123737,"Круглый тарельчатый держатель TERMOCLIP 1С Ø50 мм",null,null,null,null,5,1.03,"шт.",809,1600,{"$f":"IF(ISBLANK(C109),0,VLOOKUP(C109,Сводная_Объект!C14:L51,10,FALSE))","v":5.86},{"$f":"M109*N109","v":9376}]
[null,"Комплектация",null,null,null,null,null,null,null,null,null,null,null,null,{"$f":"SUM(O111:O113)","v":83159.615999999995}]
[null,1,72871,"ТЕХНОРУФ ПРОФ ГАЛТЕЛЬ, 100 мм",null,null,null,null,5.0000000000000001E-3,1.03,"м³",0.80854999999999999,2.88,{"$f":"IF(ISBLANK(C111),0,VLOOKUP(C111,Сводная_Объект!C14:L51,10,FALSE))","v":23364.45},{"$f":"M111*N111","v":67289.615999999995}]
[null,2,124613,"Анкерный элемент TERMOCLIP 8*45мм",null,null,null,null,10,1.03,"шт.",1618,2500,{"$f":"IF(ISBLANK(C112),0,VLOOKUP(C112,Сводная_Объект!C14:L51,10,FALSE))","v":2.62},{"$f":"M112*N112","v":6550}]
[null,3,30214,"Саморез остроконечный ТехноНИКОЛЬ 4,8х 50 мм",null,null,null,null,10,1.03,"шт.",1618,2000,{"$f":"IF(ISBLANK(C113),0,VLOOKUP(C113,Сводная_Объект!C14:L51,10,FALSE))","v":4.66},{"$f":"M113*N113","v":9320}]
[null,"Слой усиления",null,null,null,null,null,null,null,null,null,null,null,null,{"$f":"SUM(O115)","v":78880}]
[null,1,691611,"ТЕХНОБАРЬЕР, 2.8 мм",null,null,null,null,1.57,1.155,"м²",284.69594999999998,290,{"$f":"IF(ISBLANK(C115),0,VLOOKUP(C115,Сводная_Объект!C14:L51,10,FALSE))","v":272},{"$f":"M115*N115","v":78880}]
[null,"Деформационный шов",null,null,null,null,null,null,null,null,null,null,null,null,{"$f":"SUM(O117)","v":18011.5488}]
[null,1,12202,"ТЕХНОЛАЙТ ЭКСТРА, 100 мм",null,null,null,null,0.3,1.03,"м³",4.8513000000000002,5.1840000000000002,{"$f":"IF(ISBLANK(C117),0,VLOOKUP(C117,Сводная_Объект!C14:L51,10,FALSE))","v":3474.45},{"$f":"M117*N117","v":18011.5488}]
[null,"Итоговая стоимость Деформационный разделитель",null,null,null,null,null,null,null,null,null,null,null,null,{"$f":"SUM(O97,O99,O101,O103,O105,O110,O114,O116)","v":373994.90479999996}]
[null,"Примыкание к вертикальным поверхностям без утепления вертикали, H = 500, 159 м."]
[null,"Верхний слой кровельного ковра",null,null,null,null,null,null,null,null,null,null,null,null,{"$f":"SUM(O121)","v":52500}]
[null,1,22450,"Техноэласт ПЛАМЯ СТОП ЭКП, 4.2 мм",null,null,null,null,0.75,1.173,"м²",139.88024999999999,140,{"$f":"IF(ISBLANK(C121),0,VLOOKUP(C121,Сводная_Объект!C14:L51,10,FALSE))","v":375},{"$f":"M121*N121","v":52500}]
[null,"Нижний слой кровельного ковра",null,null,null,null,null,null,null,null,null,null,null,null,{"$f":"SUM(O123)","v":30742.199999999997}]
[null,1,100,"Техноэласт ЭПП, 4 мм",null,null,null,null,0.46,1.173,"м²",85.793220000000005,90,{"$f":"IF(ISBLANK(C123),0,VLOOKUP(C123,Сводная_Объект!C14:L51,10,FALSE))","v":341.58},{"$f":"M123*N123","v":30742.199999999997}]
[null,"Слой усиления",null,null,null,null,null,null,null,null,null,null,null,null,{"$f":"SUM(O125)","v":20494.8}]
[null,1,100,"Техноэласт ЭПП, 4 мм",null,null,null,null,0.31,1.1220000000000001,"м²",55.303379999999997,60,{"$f":"IF(ISBLANK(C125),0,VLOOKUP(C125,Сводная_Объект!C14:L51,10,FALSE))","v":341.58},{"$f":"M125*N125","v":20494.8}]
[null,"Комплектация",null,null,null,null,null,null,null,null,null,null,null,null,{"$f":"SUM(O127:O129)","v":106561.61599999999}]
[null,1,133879,"Рейка краевая алюминиевая TERMOCLIP, 2 м",null,null,null,null,1,1.03,"м.п.",163.77000000000001,200,{"$f":"IF(ISBLANK(C127),0,VLOOKUP(C127,Сводная_Объект!C14:L51,10,FALSE))","v":148.86000000000001},{"$f":"M127*N127","v":29772.000000000004}]
[null,2,72871,"ТЕХНОРУФ ПРОФ ГАЛТЕЛЬ, 100 мм",null,null,null,null,5.0000000000000001E-3,1.03,"м³",0.81884999999999997,2.88,{"$f":"IF(ISBLANK(C128),0,VLOOKUP(C128,Сводная_Объект!C14:L51,10,FALSE))","v":23364.45},{"$f":"M128*N128","v":67289.615999999995}]
[null,3,629549,"Саморез остроконечный ТехноНИКОЛЬ 5,5х35",null,null,null,null,5,1.03,"шт.",819,1000,{"$f":"IF(ISBLANK(C129),0,VLOOKUP(C129,Сводная_Объект!C14:L51,10,FALSE))","v":9.5},{"$f":"M129*N129","v":9500}]
[null,"Пены, клеи, герметики, мастики",null,null,null,null,null,null,null,null,null,null,null,null,{"$f":"SUM(O131)","v":15176.707200000001}]
[null,1,450122,"Мастика ТЕХНОНИКОЛЬ №71, 310 мл",null,null,null,null,0.15,1,"кг",23.85,29.76,{"$f":"IF(ISBLANK(C131),0,VLOOKUP(C131,Сводная_Объект!C14:L51,10,FALSE))","v":509.97},{"$f":"M131*N131","v":15176.707200000001}]
[null,"Слой усиления",null,null,null,null,null,null,null,null,null,null,null,null,{"$f":"SUM(O133)","v":19040}]
[null,1,691611,"ТЕХНОБАРЬЕР, 2.8 мм",null,null,null,null,0.35,1.155,"м²",64.275750000000002,70,{"$f":"IF(ISBLANK(C133),0,VLOOKUP(C133,Сводная_Объект!C14:L51,10,FALSE))","v":272},{"$f":"M133*N133","v":19040}]
[null,"Итоговая стоимость Примыкание к вертикальным поверхностям без утепления вертикали, H = 500",null,null,null,null,null,null,null,null,null,null,null,null,{"$f":"SUM(O120,O122,O124,O126,O130,O132)","v":244515.32319999998}]
[null,"Примыкание к вертикальным поверхностям без утепления вертикали, H = 350, 149 м."]
[null,"Верхний слой кровельного ковра",null,null,null,null,null,null,null,null,null,null,null,null,{"$f":"SUM(O137)","v":41250}]
[null,1,22450,"Техноэласт ПЛАМЯ СТОП ЭКП, 4.2 мм",null,null,null,null,0.6,1.173,"м²",104.86620000000001,110,{"$f":"IF(ISBLANK(C137),0,VLOOKUP(C137,Сводная_Объект!C14:L51,10,FALSE))","v":375},{"$f":"M137*N137","v":41250}]
[null,"Нижний слой кровельного ковра",null,null,null,null,null,null,null,null,null,null,null,null,{"$f":"SUM(O139)","v":30742.199999999997}]
[null,1,100,"Техноэласт ЭПП, 4 мм",null,null,null,null,0.46,1.173,"м²",80.397419999999997,90,{"$f":"IF(ISBLANK(C139),0,VLOOKUP(C139,Сводная_Объект!C14:L51,10,FALSE))","v":341.58},{"$f":"M139*N139","v":30742.199999999997}]
[null,"Слой усиления",null,null,null,null,null,null,null,null,null,null,null,null,{"$f":"SUM(O141)","v":20494.8}]
[null,1,100,"Техноэласт ЭПП, 4 мм",null,null,null,null,0.31,1.1220000000000001,"м²",51.825180000000003,60,{"$f":"IF(ISBLANK(C141),0,VLOOKUP(C141,Сводная_Объект!C14:L51,10,FALSE))","v":341.58},{"$f":"M141*N141","v":20494.8}]
[null,"Комплектация",null,null,null,null,null,null,null,null,null,null,null,null,{"$f":"SUM(O143:O145)","v":106561.61599999999}]
[null,1,133879,"Рейка краевая алюминиевая TERMOCLIP, 2 м",null,null,null,null,1,1.03,"м.п.",153.47,200,{"$f":"IF(ISBLANK(C143),0,VLOOKUP(C143,Сводная_Объект!C14:L51,10,FALSE))","v":148.86000000000001},{"$f":"M143*N143","v":29772.000000000004}]
[null,2,72871,"ТЕХНОРУФ ПРОФ ГАЛТЕЛЬ, 100 мм",null,null,null,null,5.0000000000000001E-3,1.03,"м³",0.76734999999999998,2.88,{"$f":"IF(ISBLANK(C144),0,VLOOKUP(C144,Сводная_Объект!C14:L51,10,FALSE))","v":23364.45},{"$f":"M144*N144","v":67289.615999999995}]
[null,3,629549,"Саморез остроконечный ТехноНИКОЛЬ 5,5х35",null,null,null,null,5,1.03,"шт.",768,1000,{"$f":"IF(ISBLANK(C145),0,VLOOKUP(C145,Сводная_Объект!C14:L51,10,FALSE))","v":9.5},{"$f":"M145*N145","v":9500}]
[null,"Пены, клеи, герметики, мастики",null,null,null,null,null,null,null,null,null,null,null,null,{"$f":"SUM(O147)","v":15176.707200000001}]
[null,1,450122,"Мастика ТЕХНОНИКОЛЬ №71, 310 мл",null,null,null,null,0.15,1,"кг",22.35,29.76,{"$f":"IF(ISBLANK(C147),0,VLOOKUP(C147,Сводная_Объект!C14:L51,10,FALSE))","v":509.97},{"$f":"M147*N147","v":15176.707200000001}]
[null,"Слой усиления",null,null,null,null,null,null,null,null,null,null,null,null,{"$f":"SUM(O149)","v":19040}]
[null,1,691611,"ТЕХНОБАРЬЕР, 2.8 мм",null,null,null,null,0.35,1.155,"м²",60.233249999999998,70,{"$f":"IF(ISBLANK(C149),0,VLOOKUP(C149,Сводная_Объект!C14:L51,10,FALSE))","v":272},{"$f":"M149*N149","v":19040}]
[null,"Итоговая стоимость Примыкание к вертикальным поверхностям без утепления вертикали, H = 350",null,null,null,null,null,null,null,null,null,null,null,null,{"$f":"SUM(O136,O138,O140,O142,O146,O148)","v":233265.32319999998}]
[null,"Примыкание к низкому парапету с утеплением и заведением гидроизоляции на парапет (Пользовательский узел примыкания), B = 140, Bут = 150, H = 350, 947 м."]
[null,"Верхний слой кровельного ковра",null,null,null,null,null,null,null,null,null,null,null,null,{"$f":"SUM(O153)","v":393750}]
[null,1,22450,"Техноэласт ПЛАМЯ СТОП ЭКП, 4.2 мм",null,null,null,null,0.94,1.173,"м²",1044.1811399999999,1050,{"$f":"IF(ISBLANK(C153),0,VLOOKUP(C153,Сводная_Объект!C14:L51,10,FALSE))","v":375},{"$f":"M153*N153","v":393750}]
[null,"Нижний слой кровельного ковра",null,null,null,null,null,null,null,null,null,null,null,null,{"$f":"SUM(O155)","v":321085.2}]
[null,1,100,"Техноэласт ЭПП, 4 мм",null,null,null,null,0.84,1.173,"м²",933.09803999999997,940,{"$f":"IF(ISBLANK(C155),0,VLOOKUP(C155,Сводная_Объект!C14:L51,10,FALSE))","v":341.58},{"$f":"M155*N155","v":321085.2}]
[null,"Слой усиления",null,null,null,null,null,null,null,null,null,null,null,null,{"$f":"SUM(O157)","v":112721.4}]
[null,1,100,"Техноэласт ЭПП, 4 мм",null,null,null,null,0.31,1.1220000000000001,"м²",329.38553999999999,330,{"$f":"IF(ISBLANK(C157),0,VLOOKUP(C157,Сводная_Объект!C14:L51,10,FALSE))","v":341.58},{"$f":"M157*N157","v":112721.4}]
[null,"Грунтовка",null,null,null,null,null,null,null,null,null,null,null,null,{"$f":"SUM(O159)","v":90958.7}]
[null,1,694295,"Праймер полимерный ТЕХНОНИКОЛЬ №08 Быстросохнущий, 1 мм",null,null,null,null,0.64,0.3,"кг",181.82400000000001,190,{"$f":"IF(ISBLANK(C159),0,VLOOKUP(C159,Сводная_Объект!C14:L51,10,FALSE))","v":478.73},{"$f":"M159*N159","v":90958.7}]
[null,"Комплектация",null,null,null,null,null,null,null,null,null,null,null,null,{"$f":"SUM(O161:O163)","v":166319.23199999999}]
[null,1,72871,"ТЕХНОРУФ ПРОФ ГАЛТЕЛЬ, 100 мм",null,null,null,null,5.0000000000000001E-3,1.03,"м³",4.8770499999999997,5.76,{"$f":"IF(ISBLANK(C161),0,VLOOKUP(C161,Сводная_Объект!C14:L51,10,FALSE))","v":23364.45},{"$f":"M161*N161","v":134579.23199999999}]
[null,2,124613,"Анкерный элемент TERMOCLIP 8*45мм",null,null,null,null,4,1.03,"шт.",3902,5000,{"$f":"IF(ISBLANK(C162),0,VLOOKUP(C162,Сводная_Объект!C14:L51,10,FALSE))","v":2.62},{"$f":"M162*N162","v":13100}]
[null,3,30214,"Саморез остроконечный ТехноНИКОЛЬ 4,8х 50 мм",null,null,null,null,4,1.03,"шт.",3902,4000,{"$f":"IF(ISBLANK(C163),0,VLOOKUP(C163,Сводная_Объект!C14:L51,10,FALSE))","v":4.66},{"$f":"M163*N163","v":18640}]
[null,"Слой усиления",null,null,null,null,null,null,null,null,null,null,null,null,{"$f":"SUM(O165)","v":106080}]
[null,1,691611,"ТЕХНОБАРЬЕР, 2.8 мм",null,null,null,null,0.35,1.155,"м²",382.82474999999999,390,{"$f":"IF(ISBLANK(C165),0,VLOOKUP(C165,Сводная_Объект!C14:L51,10,FALSE))","v":272},{"$f":"M165*N165","v":106080}]
[null,"Грунтовка",null,null,null,null,null,null,null,null,null,null,null,null,{"$f":"SUM(O167)","v":28723.800000000003}]
[null,1,694295,"Праймер полимерный ТЕХНОНИКОЛЬ №08 Быстросохнущий, 1 мм",null,null,null,null,0.2,0.3,"кг",56.82,60,{"$f":"IF(ISBLANK(C167),0,VLOOKUP(C167,Сводная_Объект!C14:L51,10,FALSE))","v":478.73},{"$f":"M167*N167","v":28723.800000000003}]
[null,"Верхний слой теплоизоляции",null,null,null,null,null,null,null,null,null,null,null,null,{"$f":"SUM(O169:O172)","v":691885.8}]
[null,1,494776,"ТЕХНОРУФ В ЭКСТРА, 50 мм",null,null,null,null,1.05,1.03,"м³",51.209029999999998,51.264000000000003,{"$f":"IF(ISBLANK(C169),0,VLOOKUP(C169,Сводная_Объект!C14:L51,10,FALSE))","v":12700},{"$f":"M169*N169","v":651052.80000000005}]
[null,2,124613,"Анкерный элемент TERMOCLIP 8*45мм",null,null,null,null,2.4500000000000002,1.03,"шт.",2390,2500,{"$f":"IF(ISBLANK(C170),0,VLOOKUP(C170,Сводная_Объект!C14:L51,10,FALSE))","v":2.62},{"$f":"M170*N170","v":6550}]
[null,3,228669,"Саморез остроконечный ТехноНИКОЛЬ 4,8х 80 мм",null,null,null,null,2.4500000000000002,1.03,"шт.",2390,2500,{"$f":"IF(ISBLANK(C171),0,VLOOKUP(C171,Сводная_Объект!C14:L51,10,FALSE))","v":6.59},{"$f":"M171*N171","v":16475}]
[null,4,124249,"Телескопический крепеж TERMOCLIP 1, 130 мм",null,null,null,null,2.4500000000000002,1.03,"шт.",2390,2650,{"$f":"IF(ISBLANK(C172),0,VLOOKUP(C172,Сводная_Объект!C14:L51,10,FALSE))","v":6.72},{"$f":"M172*N172","v":17808}]
[null,"Итоговая стоимость Примыкание к низкому парапету с утеплением и заведением гидроизоляции на парапет (Пользовательский узел примыкания), B = 140, Bут = 150, H = 350",null,null,null,null,null,null,null,null,null,null,null,null,{"$f":"SUM(O152,O154,O156,O158,O160,O164,O166,O168)","v":1911524.132}]
[null,"Примыкание к низкому парапету с утеплением и заведением гидроизоляции на парапет (Пользовательский узел примыкания), B = 140, Bут = 100, H = 400, 228 м."]
[null,"Верхний слой кровельного ковра",null,null,null,null,null,null,null,null,null,null,null,null,{"$f":"SUM(O176)","v":97500}]
[null,1,22450,"Техноэласт ПЛАМЯ СТОП ЭКП, 4.2 мм",null,null,null,null,0.94,1.173,"м²",251.39735999999999,260,{"$f":"IF(ISBLANK(C176),0,VLOOKUP(C176,Сводная_Объект!C14:L51,10,FALSE))","v":375},{"$f":"M176*N176","v":97500}]
[null,"Нижний слой кровельного ковра",null,null,null,null,null,null,null,null,null,null,null,null,{"$f":"SUM(O178)","v":78563.399999999994}]
[null,1,100,"Техноэласт ЭПП, 4 мм",null,null,null,null,0.84,1.173,"м²",224.65296000000001,230,{"$f":"IF(ISBLANK(C178),0,VLOOKUP(C178,Сводная_Объект!C14:L51,10,FALSE))","v":341.58},{"$f":"M178*N178","v":78563.399999999994}]
[null,"Слой усиления",null,null,null,null,null,null,null,null,null,null,null,null,{"$f":"SUM(O180)","v":27326.399999999998}]
[null,1,100,"Техноэласт ЭПП, 4 мм",null,null,null,null,0.31,1.1220000000000001,"м²",79.302959999999999,80,{"$f":"IF(ISBLANK(C180),0,VLOOKUP(C180,Сводная_Объект!C14:L51,10,FALSE))","v":341.58},{"$f":"M180*N180","v":27326.399999999998}]
[null,"Грунтовка",null,null,null,null,null,null,null,null,null,null,null,null,{"$f":"SUM(O182)","v":23936.5}]
[null,1,694295,"Праймер полимерный ТЕХНОНИКОЛЬ №08 Быстросохнущий, 1 мм",null,null,null,null,0.64,0.3,"кг",43.776000000000003,50,{"$f":"IF(ISBLANK(C182),0,VLOOKUP(C182,Сводная_Объект!C14:L51,10,FALSE))","v":478.73},{"$f":"M182*N182","v":23936.5}]
[null,"Комплектация",null,null,null,null,null,null,null,null,null,null,null,null,{"$f":"SUM(O184:O186)","v":78499.615999999995}]
[null,1,72871,"ТЕХНОРУФ ПРОФ ГАЛТЕЛЬ, 100 мм",null,null,null,null,5.0000000000000001E-3,1.03,"м³",1.1741999999999999,2.88,{"$f":"IF(ISBLANK(C184),0,VLOOKUP(C184,Сводная_Объект!C14:L51,10,FALSE))","v":23364.45},{"$f":"M184*N184","v":67289.615999999995}]
[null,2,124613,"Анкерный элемент TERMOCLIP 8*45мм",null,null,null,null,4,1.03,"шт.",940,2500,{"$f":"IF(ISBLANK(C185),0,VLOOKUP(C185,Сводная_Объект!C14:L51,10,FALSE))","v":2.62},{"$f":"M185*N185","v":6550}]
[null,3,30214,"Саморез остроконечный ТехноНИКОЛЬ 4,8х 50 мм",null,null,null,null,4,1.03,"шт.",940,1000,{"$f":"IF(ISBLANK(C186),0,VLOOKUP(C186,Сводная_Объект!C14:L51,10,FALSE))","v":4.66},{"$f":"M186*N186","v":4660}]
[null,"Слой усиления",null,null,null,null,null,null,null,null,null,null,null,null,{"$f":"SUM(O188)","v":27200}]
[null,1,691611,"ТЕХНОБАРЬЕР, 2.8 мм",null,null,null,null,0.35,1.155,"м²",92.168999999999997,100,{"$f":"IF(ISBLANK(C188),0,VLOOKUP(C188,Сводная_Объект!C14:L51,10,FALSE))","v":272},{"$f":"M188*N188","v":27200}]
[null,"Грунтовка",null,null,null,null,null,null,null,null,null,null,null,null,{"$f":"SUM(O190)","v":9574.6}]
[null,1,694295,"Праймер полимерный ТЕХНОНИКОЛЬ №08 Быстросохнущий, 1 мм",null,null,null,null,0.2,0.3,"кг",13.68,20,{"$f":"IF(ISBLANK(C190),0,VLOOKUP(C190,Сводная_Объект!C14:L51,10,FALSE))","v":478.73},{"$f":"M190*N190","v":9574.6}]
[null,"Верхний слой теплоизоляции",null,null,null,null,null,null,null,null,null,null,null,null,{"$f":"SUM(O192:O195)","v":139179}]
[null,1,494776,"ТЕХНОРУФ В ЭКСТРА, 50 мм",null,null,null,null,0.8,1.03,"м³",9.3935999999999993,9.5039999999999996,{"$f":"IF(ISBLANK(C192),0,VLOOKUP(C192,Сводная_Объект!C14:L51,10,FALSE))","v":12700},{"$f":"M192*N192","v":120700.79999999999}]
[null,2,124613,"Анкерный элемент TERMOCLIP 8*45мм",null,null,null,null,2.8,1.03,"шт.",658,2500,{"$f":"IF(ISBLANK(C193),0,VLOOKUP(C193,Сводная_Объект!C14:L51,10,FALSE))","v":2.62},{"$f":"M193*N193","v":6550}]
[null,3,228669,"Саморез остроконечный ТехноНИКОЛЬ 4,8х 80 мм",null,null,null,null,2.8,1.03,"шт.",658,1000,{"$f":"IF(ISBLANK(C194),0,VLOOKUP(C194,Сводная_Объект!C14:L51,10,FALSE))","v":6.59},{"$f":"M194*N194","v":6590}]
[null,4,124246,"Телескопический крепеж TERMOCLIP 1, 80 мм",null,null,null,null,2.8,1.03,"шт.",658,930,{"$f":"IF(ISBLANK(C195),0,VLOOKUP(C195,Сводная_Объект!C14:L51,10,FALSE))","v":5.74},{"$f":"M195*N195","v":5338.2}]
[null,"Итоговая стоимость Примыкание к низкому парапету с утеплением и заведением гидроизоляции на парапет (Пользовательский узел примыкания), B = 140, Bут = 100, H = 400",null,null,null,null,null,null,null,null,null,null,null,null,{"$f":"SUM(O175,O177,O179,O181,O183,O187,O189,O191)","v":481779.51599999995}]
[null,"Примыкание к низкому парапету из сэндвич-панели с утеплением и заведением гидроизоляции на парапет (Пользовательский узел примыкания), H = 300, B = 200, Bут = 50, 149 м."]
[null,"Верхний слой теплоизоляции",null,null,null,null,null,null,null,null,null,null,null,null,{"$f":"SUM(O199:O201)","v":47251.03024}]
[null,1,524809,"ТЕХНОРУФ Н ПРОФ, 50 мм",null,null,null,null,0.5,1.03,"м³",3.8367499999999999,3.8879999999999999,{"$f":"IF(ISBLANK(C199),0,VLOOKUP(C199,Сводная_Объект!C14:L51,10,FALSE))","v":9222.23},{"$f":"M199*N199","v":35856.03024}]
[null,2,228683,"Саморез сверлоконечный ТехноНИКОЛЬ 4,8х 80 мм",null,null,null,null,2.1,1.03,"шт.",323,500,{"$f":"IF(ISBLANK(C200),0,VLOOKUP(C200,Сводная_Объект!C14:L51,10,FALSE))","v":7.99},{"$f":"M200*N200","v":3995}]
[null,3,124243,"Телескопический крепеж TERMOCLIP 1, 20 мм",null,null,null,null,2.1,1.03,"шт.",323,2000,{"$f":"IF(ISBLANK(C201),0,VLOOKUP(C201,Сводная_Объект!C14:L51,10,FALSE))","v":3.7},{"$f":"M201*N201","v":7400}]
[null,"Верхний слой кровельного ковра",null,null,null,null,null,null,null,null,null,null,null,null,{"$f":"SUM(O203)","v":56250}]
[null,1,22450,"Техноэласт ПЛАМЯ СТОП ЭКП, 4.2 мм",null,null,null,null,0.85,1.173,"м²",148.56045,150,{"$f":"IF(ISBLANK(C203),0,VLOOKUP(C203,Сводная_Объект!C14:L51,10,FALSE))","v":375},{"$f":"M203*N203","v":56250}]
[null,"Нижний слой кровельного ковра",null,null,null,null,null,null,null,null,null,null,null,null,{"$f":"SUM(O205)","v":47821.2}]
[null,1,100,"Техноэласт ЭПП, 4 мм",null,null,null,null,0.75,1.173,"м²",131.08275,140,{"$f":"IF(ISBLANK(C205),0,VLOOKUP(C205,Сводная_Объект!C14:L51,10,FALSE))","v":341.58},{"$f":"M205*N205","v":47821.2}]
[null,"Слой усиления",null,null,null,null,null,null,null,null,null,null,null,null,{"$f":"SUM(O207)","v":20494.8}]
[null,1,100,"Техноэласт ЭПП, 4 мм",null,null,null,null,0.31,1.1220000000000001,"м²",51.825180000000003,60,{"$f":"IF(ISBLANK(C207),0,VLOOKUP(C207,Сводная_Объект!C14:L51,10,FALSE))","v":341.58},{"$f":"M207*N207","v":20494.8}]
[null,"Грунтовка",null,null,null,null,null,null,null,null,null,null,null,null,{"$f":"SUM(O209)","v":9574.6}]
[null,1,694295,"Праймер полимерный ТЕХНОНИКОЛЬ №08 Быстросохнущий, 1 мм",null,null,null,null,0.35,0.3,"кг",15.645,20,{"$f":"IF(ISBLANK(C209),0,VLOOKUP(C209,Сводная_Объект!C14:L51,10,FALSE))","v":478.73},{"$f":"M209*N209","v":9574.6}]
[null,"Комплектация",null,null,null,null,null,null,null,null,null,null,null,null,{"$f":"SUM(O211:O212)","v":76789.615999999995}]
[null,1,72871,"ТЕХНОРУФ ПРОФ ГАЛТЕЛЬ, 100 мм",null,null,null,null,5.0000000000000001E-3,1.03,"м³",0.76734999999999998,2.88,{"$f":"IF(ISBLANK(C211),0,VLOOKUP(C211,Сводная_Объект!C14:L51,10,FALSE))","v":23364.45},{"$f":"M211*N211","v":67289.615999999995}]
[null,2,629549,"Саморез остроконечный ТехноНИКОЛЬ 5,5х35",null,null,null,null,4,1.03,"шт.",614,1000,{"$f":"IF(ISBLANK(C212),0,VLOOKUP(C212,Сводная_Объект!C14:L51,10,FALSE))","v":9.5},{"$f":"M212*N212","v":9500}]
[null,"Слой усиления",null,null,null,null,null,null,null,null,null,null,null,null,{"$f":"SUM(O214)","v":19040}]
[null,1,691611,"ТЕХНОБАРЬЕР, 2.8 мм",null,null,null,null,0.35,1.155,"м²",60.233249999999998,70,{"$f":"IF(ISBLANK(C214),0,VLOOKUP(C214,Сводная_Объект!C14:L51,10,FALSE))","v":272},{"$f":"M214*N214","v":19040}]
[null,"Итоговая стоимость Примыкание к низкому парапету из сэндвич-панели с утеплением и заведением гидроизоляции на парапет (Пользовательский узел примыкания), H = 300, B = 200, Bут = 50",null,null,null,null,null,null,null,null,null,null,null,null,{"$f":"SUM(O198,O202,O204,O206,O208,O210,O213)","v":277221.24624000001}]
[null,"Воронка с надставным элементом, 154 шт."]
[null,"Слой усиления",null,null,null,null,null,null,null,null,null,null,null,null,{"$f":"SUM(O218)","v":23910.6}]
[null,1,100,"Техноэласт ЭПП, 4 мм",null,null,null,null,0.36,1.1220000000000001,"м²",62.203679999999999,70,{"$f":"IF(ISBLANK(C218),0,VLOOKUP(C218,Сводная_Объект!C14:L51,10,FALSE))","v":341.58},{"$f":"M218*N218","v":23910.6}]
[null,"Воронки",null,null,null,null,null,null,null,null,null,null,null,null,{"$f":"SUM(O220:O223)","v":1339624.76}]
[null,1,125336,"Воронка кровельная с обогревом TERMOCLIP ВФО Ø110х700 мм",null,null,null,null,1,1,"шт.",154,154,{"$f":"IF(ISBLANK(C220),0,VLOOKUP(C220,Сводная_Объект!C14:L51,10,FALSE))","v":4756.75},{"$f":"M220*N220","v":732539.5}]
[null,2,128873,"Надставной элемент с манжетой TERMOCLIP",null,null,null,null,1,1,"шт.",154,154,{"$f":"IF(ISBLANK(C221),0,VLOOKUP(C221,Сводная_Объект!C14:L51,10,FALSE))","v":3854.19},{"$f":"M221*N221","v":593545.26}]
[null,3,124613,"Анкерный элемент TERMOCLIP 8*45мм",null,null,null,null,8,1.03,"шт.",1269,2500,{"$f":"IF(ISBLANK(C222),0,VLOOKUP(C222,Сводная_Объект!C14:L51,10,FALSE))","v":2.62},{"$f":"M222*N222","v":6550}]
[null,4,30214,"Саморез остроконечный ТехноНИКОЛЬ 4,8х 50 мм",null,null,null,null,8,1.03,"шт.",1269,1500,{"$f":"IF(ISBLANK(C223),0,VLOOKUP(C223,Сводная_Объект!C14:L51,10,FALSE))","v":4.66},{"$f":"M223*N223","v":6990}]
[null,"Пены, клеи, герметики, мастики",null,null,null,null,null,null,null,null,null,null,null,null,{"$f":"SUM(O225)","v":15091.73}]
[null,1,528369,"Пена монтажная ТЕХНОНИКОЛЬ 70 PROFESSIONAL всесезонная",null,null,null,null,0.2,1,"шт.",30.8,31,{"$f":"IF(ISBLANK(C225),0,VLOOKUP(C225,Сводная_Объект!C14:L51,10,FALSE))","v":486.83},{"$f":"M225*N225","v":15091.73}]
[null,"Итоговая стоимость Воронка с надставным элементом",null,null,null,null,null,null,null,null,null,null,null,null,{"$f":"SUM(O217,O219,O224)","v":1378627.09}]
[null,"Слой усиления в ендове (уклон кровли 3% и более), 503 м."]
[null,"Слой усиления",null,null,null,null,null,null,null,null,null,null,null,null,{"$f":"SUM(O229)","v":194700.59999999998}]
[null,1,100,"Техноэласт ЭПП, 4 мм",null,null,null,null,1,1.1220000000000001,"м²",564.36599999999999,570,{"$f":"IF(ISBLANK(C229),0,VLOOKUP(C229,Сводная_Объект!C14:L51,10,FALSE))","v":341.58},{"$f":"M229*N229","v":194700.59999999998}]
[null,"Итоговая стоимость Слой усиления в ендове (уклон кровли 3% и более)",null,null,null,null,null,null,null,null,null,null,null,null,{"$f":"SUM(O228)","v":194700.59999999998}]
[null,"Слой усиления на коньке (уклон кровли 3% и более), 1133 м."]
[null,"Слой усиления",null,null,null,null,null,null,null,null,null,null,null,null,{"$f":"SUM(O233)","v":218611.19999999998}]
[null,1,100,"Техноэласт ЭПП, 4 мм",null,null,null,null,0.5,1.1220000000000001,"м²",635.61300000000006,640,{"$f":"IF(ISBLANK(C233),0,VLOOKUP(C233,Сводная_Объект!C14:L51,10,FALSE))","v":341.58},{"$f":"M233*N233","v":218611.19999999998}]
[null,"Итоговая стоимость Слой усиления на коньке (уклон кровли 3% и более)",null,null,null,null,null,null,null,null,null,null,null,null,{"$f":"SUM(O232)","v":218611.19999999998}]
[null,"Примыкание к кровельному аэратору, 242 шт."]
[null,"Верхний слой кровельного ковра",null,null,null,null,null,null,null,null,null,null,null,null,{"$f":"SUM(O237)","v":41250}]
[null,1,22450,"Техноэласт ПЛАМЯ СТОП ЭКП, 4.2 мм",null,null,null,null,0.36,1.173,"м²",102.19176,110,{"$f":"IF(ISBLANK(C237),0,VLOOKUP(C237,Сводная_Объект!C14:L51,10,FALSE))","v":375},{"$f":"M237*N237","v":41250}]
[null,"Аэраторы",null,null,null,null,null,null,null,null,null,null,null,null,{"$f":"SUM(O239)","v":156745.82}]
[null,1,125341,"Аэратор кровельный TERMOCLIP D160",null,null,null,null,1,1,"шт.",242,242,{"$f":"IF(ISBLANK(C239),0,VLOOKUP(C239,Сводная_Объект!C14:L51,10,FALSE))","v":647.71},{"$f":"M239*N239","v":156745.82}]
[null,"Пены, клеи, герметики, мастики",null,null,null,null,null,null,null,null,null,null,null,null,{"$f":"SUM(O241)","v":18970.884000000002}]
[null,1,450122,"Мастика ТЕХНОНИКОЛЬ №71, 310 мл",null,null,null,null,0.15,1,"кг",36.299999999999997,37.200000000000003,{"$f":"IF(ISBLANK(C241),0,VLOOKUP(C241,Сводная_Объект!C14:L51,10,FALSE))","v":509.97},{"$f":"M241*N241","v":18970.884000000002}]
[null,"Итоговая стоимость Примыкание к кровельному аэратору",null,null,null,null,null,null,null,null,null,null,null,null,{"$f":"SUM(O236,O238,O240)","v":216966.704}]
[null,"Пользовательский узел примыкания, 1 шт."]
[null,"Верхний слой теплоизоляции",null,null,null,null,null,null,null,null,null,null,null,null,{"$f":"SUM(O245)","v":264164.311476}]
[null,1,644869,"Плиты теплоизоляционные LOGICPIR PROF СХМ/СХМ, 50 мм",null,null,null,null,197,1.03,"м²",202.91,203.48820000000001,{"$f":"IF(ISBLANK(C245),0,VLOOKUP(C245,Сводная_Объект!C14:L51,10,FALSE))","v":1298.18},{"$f":"M245*N245","v":264164.311476}]
[null,"Итоговая стоимость Пользовательский узел примыкания",null,null,null,null,null,null,null,null,null,null,null,null,{"$f":"SUM(O244)","v":264164.311476}]
[null,"Примыкание к низкому парапету с заведением гидроизоляции на парапет, B = 400, H = 500, Bут = null, 1133 м."]
[null,"Верхний слой кровельного ковра",null,null,null,null,null,null,null,null,null,null,null,null,{"$f":"SUM(O249)","v":600000}]
[null,1,22450,"Техноэласт ПЛАМЯ СТОП ЭКП, 4.2 мм",null,null,null,null,1.2,1.173,"м²",1594.8108,1600,{"$f":"IF(ISBLANK(C249),0,VLOOKUP(C249,Сводная_Объект!C14:L51,10,FALSE))","v":375},{"$f":"M249*N249","v":600000}]
[null,"Нижний слой кровельного ковра",null,null,null,null,null,null,null,null,null,null,null,null,{"$f":"SUM(O251)","v":321085.2}]
[null,1,100,"Техноэласт ЭПП, 4 мм",null,null,null,null,0.7,1.173,"м²",930.30629999999996,940,{"$f":"IF(ISBLANK(C251),0,VLOOKUP(C251,Сводная_Объект!C14:L51,10,FALSE))","v":341.58},{"$f":"M251*N251","v":321085.2}]
[null,"Слой усиления",null,null,null,null,null,null,null,null,null,null,null,null,{"$f":"SUM(O253)","v":136632}]
[null,1,100,"Техноэласт ЭПП, 4 мм",null,null,null,null,0.31,1.1220000000000001,"м²",394.08006,400,{"$f":"IF(ISBLANK(C253),0,VLOOKUP(C253,Сводная_Объект!C14:L51,10,FALSE))","v":341.58},{"$f":"M253*N253","v":136632}]
[null,"Грунтовка",null,null,null,null,null,null,null,null,null,null,null,null,{"$f":"SUM(O255)","v":148406.30000000002}]
[null,1,694295,"Праймер полимерный ТЕХНОНИКОЛЬ №08 Быстросохнущий, 1 мм",null,null,null,null,0.9,0.3,"кг",305.91000000000003,310,{"$f":"IF(ISBLANK(C255),0,VLOOKUP(C255,Сводная_Объект!C14:L51,10,FALSE))","v":478.73},{"$f":"M255*N255","v":148406.30000000002}]
[null,"Комплектация",null,null,null,null,null,null,null,null,null,null,null,null,{"$f":"SUM(O257:O259)","v":238268.84800000003}]
[null,1,72871,"ТЕХНОРУФ ПРОФ ГАЛТЕЛЬ, 100 мм",null,null,null,null,5.0000000000000001E-3,1.03,"м³",5.8349500000000001,8.64,{"$f":"IF(ISBLANK(C257),0,VLOOKUP(C257,Сводная_Объект!C14:L51,10,FALSE))","v":23364.45},{"$f":"M257*N257","v":201868.84800000003}]
[null,2,124613,"Анкерный элемент TERMOCLIP 8*45мм",null,null,null,null,4,1.03,"шт.",4668,5000,{"$f":"IF(ISBLANK(C258),0,VLOOKUP(C258,Сводная_Объект!C14:L51,10,FALSE))","v":2.62},{"$f":"M258*N258","v":13100}]
[null,3,30214,"Саморез остроконечный ТехноНИКОЛЬ 4,8х 50 мм",null,null,null,null,4,1.03,"шт.",4668,5000,{"$f":"IF(ISBLANK(C259),0,VLOOKUP(C259,Сводная_Объект!C14:L51,10,FALSE))","v":4.66},{"$f":"M259*N259","v":23300}]
[null,"Слой усиления",null,null,null,null,null,null,null,null,null,null,null,null,{"$f":"SUM(O261)","v":125120}]
[null,1,691611,"ТЕХНОБАРЬЕР, 2.8 мм",null,null,null,null,0.35,1.155,"м²",458.01524999999998,460,{"$f":"IF(ISBLANK(C261),0,VLOOKUP(C261,Сводная_Объект!C14:L51,10,FALSE))","v":272},{"$f":"M261*N261","v":125120}]
[null,"Грунтовка",null,null,null,null,null,null,null,null,null,null,null,null,{"$f":"SUM(O263)","v":33511.1}]
[null,1,694295,"Праймер полимерный ТЕХНОНИКОЛЬ №08 Быстросохнущий, 1 мм",null,null,null,null,0.2,0.3,"кг",67.98,70,{"$f":"IF(ISBLANK(C263),0,VLOOKUP(C263,Сводная_Объект!C14:L51,10,FALSE))","v":478.73},{"$f":"M263*N263","v":33511.1}]
[null,"Итоговая стоимость Примыкание к низкому парапету с заведением гидроизоляции на парапет, B = 400, H = 500, Bут = null",null,null,null,null,null,null,null,null,null,null,null,null,{"$f":"SUM(O248,O250,O252,O254,O256,O260,O262)","v":1603023.4480000001}]
[null,"Кровельное ограждение технониколь ко/pro/pl/1200-3, 1097 м."]
[null,"Ограждения",null,null,null,null,null,null,null,null,null,null,null,null,{"$f":"SUM(O267)","v":3077357.28}]
[null,1,659573,"Кровельное ограждение ТехноНИКОЛЬ КО/PRO/PL/1200-3",null,null,null,null,1,0.33329999999999999,"шт.",365.63010000000003,366,{"$f":"IF(ISBLANK(C267),0,VLOOKUP(C267,Сводная_Объект!C14:L51,10,FALSE))","v":8408.08},{"$f":"M267*N267","v":3077357.28}]
[null,"Итоговая стоимость Кровельное ограждение технониколь ко/pro/pl/1200-3",null,null,null,null,null,null,null,null,null,null,null,null,{"$f":"SUM(O266)","v":3077357.28}]
[null," * для линейных примыканий расход указан на 1 м.п., для точечных примыканий- расход на 1 узел."]
[]
[null,"Результаты расчета носят рекомендательный характер. Методика расчета разработана сотрудниками компании ТЕХНОНИКОЛЬ на основе многолетнего опыта. Расходы материалов непосредственно зависят от квалификации сотрудников подрядной организации."]

{"sheet":"Подробная_Объект","index":7,"n_rows":66,"n_cols":9,"rows_kept":66,"cut":false,"hidden":false,"merged":[[13,8,15,8],[14,5,15,5],[14,6,15,6],[12,2,12,3],[12,4,12,8],[13,7,15,7],[13,1,15,1],[13,2,15,2],[13,3,15,3],[13,4,15,4],[13,5,13,6],[6,1,6,3],[8,1,8,12],[10,2,10,3],[10,4,10,8],[11,2,11,3],[11,4,11,8]]}
[]
[]
[]
[]
[]
[]
[null,"27.01.2026"]
[]
[null,"РАСЧЕТ МАТЕРИАЛОВ ПО УСТРОЙСТВУ КРОВЕЛЬНОГО ПОКРЫТИЯ"]
[]
[null,null,"Информация о объекте:",null,"«Проектирование строительных конструкция покрытия Цеха М10. АО Коломенский завод» по адресу: «Московская область, г.Коломна, ул.Партизан, д.42»"]
[null,null,"Ссылка на калькуляцию:",null,"http://nav.tn.ru/calculators/flat-roof/?object=TPK9B6AA33C67D3B696FB2FED3B2F383319"]
[null,null,"Ссылка на сметный расчёт:",null,{"$error":"#NAME?"}]
[null,"пп","ЕКН/ ID","Материалы для системы кровли","Ед. изм.","Количество",null,"Стоимость ед., руб.","Сметная стоимость, руб."]
[null,null,null,null,null,"По расчету","С учетом кратности упаковки"]
[]
[null,"1. Устройство пароизоляции",null,null,null,null,null,null,{"$f":"SUM(I18:I19)","v":9911293.1999999993}]
[null,1,694295,"Праймер полимерный ТЕХНОНИКОЛЬ №08 Быстросохнущий, 1 мм","кг",4834,4840,{"$f":"IF(ISBLANK(C18),0,VLOOKUP(C18,Сводная_Объект!C14:L51,10,FALSE))","v":478.73},{"$f":"G18*H18","v":2317053.2000000002}]
[null,2,691611,"ТЕХНОБАРЬЕР, 2.8 мм","м²",27916.35,27920,{"$f":"IF(ISBLANK(C19),0,VLOOKUP(C19,Сводная_Объект!C14:L51,10,FALSE))","v":272},{"$f":"G19*H19","v":7594240}]
[null,"2. Устройство теплоизоляции",null,null,null,null,null,null,{"$f":"SUM(I21:I24)","v":{"$error":"#N/A"}}]
[null,1,494775,"ТЕХНОРУФ В ЭКСТРА, 40 мм","м³",1991.6079999999999,1991.664,{"$f":"IF(ISBLANK(C21),0,VLOOKUP(C21,Сводная_Объект!C14:L51,10,FALSE))","v":{"$error":"#N/A"}},{"$f":"G21*H21","v":{"$error":"#N/A"}}]
[null,2,null,"Битум нефтяной кровельный БНК 90/30, 1 мм","кг",193360,193375,{"$f":"IF(ISBLANK(C22),0,VLOOKUP(C22,Сводная_Объект!C14:L51,10,FALSE))","v":0},{"$f":"G22*H22","v":0}]
[null,3,496475,"ТЕХНОРУФ В ЭКСТРА, 30 мм","м³",746.85299999999995,746.928,{"$f":"IF(ISBLANK(C23),0,VLOOKUP(C23,Сводная_Объект!C14:L51,10,FALSE))","v":{"$error":"#N/A"}},{"$f":"G23*H23","v":{"$error":"#N/A"}}]
[null,4,494776,"ТЕХНОРУФ В ЭКСТРА, 50 мм","м³",1244.7550000000001,1244.8800000000001,{"$f":"IF(ISBLANK(C24),0,VLOOKUP(C24,Сводная_Объект!C14:L51,10,FALSE))","v":12700},{"$f":"G24*H24","v":15809976.000000002}]
[null,"3. Устройство гидроизоляции",null,null,null,null,null,null,{"$f":"SUM(I26:I27)","v":16773990}]
[null,1,90080,"Унифлекс PRO, 4 мм","м²",27858.342000000001,27870,{"$f":"IF(ISBLANK(C26),0,VLOOKUP(C26,Сводная_Объект!C14:L51,10,FALSE))","v":227},{"$f":"G26*H26","v":6326490}]
[null,2,22450,"Техноэласт ПЛАМЯ СТОП ЭКП, 4.2 мм","м²",27858.342000000001,27860,{"$f":"IF(ISBLANK(C27),0,VLOOKUP(C27,Сводная_Объект!C14:L51,10,FALSE))","v":375},{"$f":"G27*H27","v":10447500}]
[null,"4. Устройство примыканий",null,null,null,null,null,null,{"$f":"SUM(I29:I57)","v":12111745.918915998}]
[null,1,100,"Техноэласт ЭПП, 4 мм","м²",5917.0914000000002,5920,{"$f":"IF(ISBLANK(C29),0,VLOOKUP(C29,Сводная_Объект!C14:L51,10,FALSE))","v":341.58},{"$f":"G29*H29","v":2022153.5999999999}]
[null,2,691611,"ТЕХНОБАРЬЕР, 2.8 мм","м²",2777.7057,2780,{"$f":"IF(ISBLANK(C30),0,VLOOKUP(C30,Сводная_Объект!C14:L51,10,FALSE))","v":272},756160]
[null,3,694295,"Праймер полимерный ТЕХНОНИКОЛЬ №08 Быстросохнущий, 1 мм","кг",925.47,930,{"$f":"IF(ISBLANK(C31),0,VLOOKUP(C31,Сводная_Объект!C14:L51,10,FALSE))","v":478.73},445218.9]
[null,4,22450,"Техноэласт ПЛАМЯ СТОП ЭКП, 4.2 мм","м²",3850.4780700000001,3860,{"$f":"IF(ISBLANK(C32),0,VLOOKUP(C32,Сводная_Объект!C14:L51,10,FALSE))","v":375},1447500]
[null,5,133879,"Рейка краевая алюминиевая TERMOCLIP, 2 м","м.п.",582.98,600,{"$f":"IF(ISBLANK(C33),0,VLOOKUP(C33,Сводная_Объект!C14:L51,10,FALSE))","v":148.86000000000001},89316.000000000015]
[null,6,72871,"ТЕХНОРУФ ПРОФ ГАЛТЕЛЬ, 100 мм","м³",17.2422,17.28,{"$f":"IF(ISBLANK(C34),0,VLOOKUP(C34,Сводная_Объект!C14:L51,10,FALSE))","v":23364.45},403737.69600000005]
[null,7,450122,"Мастика ТЕХНОНИКОЛЬ №71, 310 мл","кг",146.4,148.80000000000001,{"$f":"IF(ISBLANK(C35),0,VLOOKUP(C35,Сводная_Объект!C14:L51,10,FALSE))","v":509.97},75883.536000000007]
[null,8,85931,"ТехноНИКОЛЬ Флекс 500, 4 мм","м²",129.83937,132,{"$f":"IF(ISBLANK(C36),0,VLOOKUP(C36,Сводная_Объект!C14:L51,10,FALSE))","v":1096.82},144780.24]
[null,9,12202,"ТЕХНОЛАЙТ ЭКСТРА, 100 мм","м³",20.424900000000001,20.736000000000001,{"$f":"IF(ISBLANK(C37),0,VLOOKUP(C37,Сводная_Объект!C14:L51,10,FALSE))","v":3474.45},72046.195200000002]
[null,10,494776,"ТЕХНОРУФ В ЭКСТРА, 50 мм","м³",60.602629999999998,60.624000000000002,{"$f":"IF(ISBLANK(C38),0,VLOOKUP(C38,Сводная_Объект!C14:L51,10,FALSE))","v":12700},769924.8]
[null,11,524809,"ТЕХНОРУФ Н ПРОФ, 50 мм","м³",3.8367499999999999,3.8879999999999999,{"$f":"IF(ISBLANK(C39),0,VLOOKUP(C39,Сводная_Объект!C14:L51,10,FALSE))","v":9222.23},35856.03024]
[null,12,125336,"Воронка кровельная с обогревом TERMOCLIP ВФО Ø110х700 мм","шт.",154,154,{"$f":"IF(ISBLANK(C40),0,VLOOKUP(C40,Сводная_Объект!C14:L51,10,FALSE))","v":4756.75},732539.5]
[null,13,128873,"Надставной элемент с манжетой TERMOCLIP","шт.",154,154,{"$f":"IF(ISBLANK(C41),0,VLOOKUP(C41,Сводная_Объект!C14:L51,10,FALSE))","v":3854.19},593545.26]
[null,14,528369,"Пена монтажная ТЕХНОНИКОЛЬ 70 PROFESSIONAL всесезонная","шт.",30.8,31,{"$f":"IF(ISBLANK(C42),0,VLOOKUP(C42,Сводная_Объект!C14:L51,10,FALSE))","v":486.83},15091.73]
[null,15,125341,"Аэратор кровельный TERMOCLIP D160","шт.",242,242,{"$f":"IF(ISBLANK(C43),0,VLOOKUP(C43,Сводная_Объект!C14:L51,10,FALSE))","v":647.71},156745.82]
[null,16,644869,"Плиты теплоизоляционные LOGICPIR PROF СХМ/СХМ, 50 мм","м²",202.91,203.48820000000001,{"$f":"IF(ISBLANK(C44),0,VLOOKUP(C44,Сводная_Объект!C14:L51,10,FALSE))","v":1298.18},264164.311476]
[null,17,659573,"Кровельное ограждение ТехноНИКОЛЬ КО/PRO/PL/1200-3","шт.",365.63010000000003,366,{"$f":"IF(ISBLANK(C45),0,VLOOKUP(C45,Сводная_Объект!C14:L51,10,FALSE))","v":8408.08},3077357.28]
[null,18,88843,"Приемное устройство системы мониторинга снеговой нагрузки","шт.",1,1,{"$f":"IF(ISBLANK(C46),0,VLOOKUP(C46,Сводная_Объект!C14:L51,10,FALSE))","v":16866.52},16866.52]
[null,19,88841,"Щиток системы мониторинга снеговой нагрузки (WiFi)","шт.",1,1,{"$f":"IF(ISBLANK(C47),0,VLOOKUP(C47,Сводная_Объект!C14:L51,10,FALSE))","v":61503.26},61503.26]
[null,20,71311,"Датчик снега DW","шт.",8,8,{"$f":"IF(ISBLANK(C48),0,VLOOKUP(C48,Сводная_Объект!C14:L51,10,FALSE))","v":79514.13},636113.04]
[null,21,30214,"Саморез остроконечный ТехноНИКОЛЬ 4,8х 50 мм","шт.",25610,26000,{"$f":"IF(ISBLANK(C49),0,VLOOKUP(C49,Сводная_Объект!C14:L51,10,FALSE))","v":4.66},121160]
[null,22,124613,"Анкерный элемент TERMOCLIP 8*45мм","шт.",28658,30000,{"$f":"IF(ISBLANK(C50),0,VLOOKUP(C50,Сводная_Объект!C14:L51,10,FALSE))","v":2.62},78600]
[null,23,123737,"Круглый тарельчатый держатель TERMOCLIP 1С Ø50 мм","шт.",809,1600,{"$f":"IF(ISBLANK(C51),0,VLOOKUP(C51,Сводная_Объект!C14:L51,10,FALSE))","v":5.86},9376]
[null,24,629549,"Саморез остроконечный ТехноНИКОЛЬ 5,5х35","шт.",2201,3000,{"$f":"IF(ISBLANK(C52),0,VLOOKUP(C52,Сводная_Объект!C14:L51,10,FALSE))","v":9.5},28500]
[null,25,124249,"Телескопический крепеж TERMOCLIP 1, 130 мм","шт.",2390,2650,{"$f":"IF(ISBLANK(C53),0,VLOOKUP(C53,Сводная_Объект!C14:L51,10,FALSE))","v":6.72},17808]
[null,26,228669,"Саморез остроконечный ТехноНИКОЛЬ 4,8х 80 мм","шт.",3048,3500,{"$f":"IF(ISBLANK(C54),0,VLOOKUP(C54,Сводная_Объект!C14:L51,10,FALSE))","v":6.59},23065]
[null,27,124246,"Телескопический крепеж TERMOCLIP 1, 80 мм","шт.",658,930,{"$f":"IF(ISBLANK(C55),0,VLOOKUP(C55,Сводная_Объект!C14:L51,10,FALSE))","v":5.74},5338.2]
[null,28,124243,"Телескопический крепеж TERMOCLIP 1, 20 мм","шт.",323,2000,{"$f":"IF(ISBLANK(C56),0,VLOOKUP(C56,Сводная_Объект!C14:L51,10,FALSE))","v":3.7},7400]
[null,29,228683,"Саморез сверлоконечный ТехноНИКОЛЬ 4,8х 80 мм","шт.",323,500,{"$f":"IF(ISBLANK(C57),0,VLOOKUP(C57,Сводная_Объект!C14:L51,10,FALSE))","v":7.99},3995]
[null,"5. Клиновидная изоляция, крепление теплоизоляции и мембраны к основанию",null,null,null,null,null,null,{"$f":"SUM(I59:I62)","v":5488708.3142400002}]
[null,1,72856,"ТЕХНОРУФ В ЭКСТРА КЛИН 4,2 % (15-65 мм), плита А","м³",108.702,110.88,{"$f":"IF(ISBLANK(C59),0,VLOOKUP(C59,Сводная_Объект!C14:L51,10,FALSE))","v":19375.560000000001},{"$f":"G59*H59","v":2148362.0928000002}]
[null,2,72861,"ТЕХНОРУФ В ЭКСТРА КЛИН 4,2 % (15-65 мм), плита Б","м³",169.49520000000001,172.36799999999999,{"$f":"IF(ISBLANK(C60),0,VLOOKUP(C60,Сводная_Объект!C14:L51,10,FALSE))","v":18065.560000000001},{"$f":"G60*H60","v":3113924.4460800001}]
[null,3,617800,"ТЕХНОРУФ В ЭКСТРА КЛИН 4,2 % (15-65 мм), плита C","м³",7.74,13.824,{"$f":"IF(ISBLANK(C61),0,VLOOKUP(C61,Сводная_Объект!C14:L51,10,FALSE))","v":16378.89},{"$f":"G61*H61","v":226421.77536}]
[null,4,null,"Битум нефтяной кровельный БНК 90/30, 1 мм","кг",10489.04,10500,{"$f":"IF(ISBLANK(C62),0,VLOOKUP(C62,Сводная_Объект!C14:L51,10,FALSE))","v":0},{"$f":"G62*H62","v":0}]
[null,"Итоговая стоимость",null,null,null,null,null,null,{"$f":"SUM(I17,I20,I25,I28,I58)","v":{"$error":"#N/A"}}]
[null," * для линейных примыканий расход указан на 1 м.п., для точечных примыканий- расход на 1 узел."]
[]
[null,"Результаты расчета носят рекомендательный характер. Методика расчета разработана сотрудниками компании ТЕХНОНИКОЛЬ на основе многолетнего опыта. Расходы материалов непосредственно зависят от квалификации сотрудников подрядной организации."]

{"sheet":"ПРИМЕЧАНИЯ","index":8,"n_rows":40,"n_cols":12,"rows_kept":40,"cut":false,"hidden":false,"merged":[[36,1,36,3],[37,1,37,3],[38,1,38,3],[39,1,39,3],[22,1,22,7],[25,1,25,3],[31,1,31,3],[33,1,33,3],[34,1,34,3],[35,1,35,3],[19,2,19,3],[6,1,6,3],[8,1,8,12],[10,2,10,3],[10,4,10,12],[11,2,11,3],[11,4,11,12],[12,1,12,3],[14,1,14,6],[15,1,15,6],[17,1,17,3],[18,2,18,3]]}
[]
[]
[]
[]
[]
[]
[null,"27.01.2026"]
[]
[null,"Примечания к расчету"]
[]
[null,null,"Информация о объекте:",null,"«Проектирование строительных конструкция покрытия Цеха М10. АО Коломенский завод» по адресу: «Московская область, г.Коломна, ул.Партизан, д.42»"]
[null,null,"Ссылка на калькуляцию:",null,"http://nav.tn.ru/calculators/flat-roof/?object=TPK9B6AA33C67D3B696FB2FED3B2F383319"]
[null,"1. Общие сведения"]
[]
[null,"Принимая в работу данную спецификацию, Вы соглашаетесь с правилами выполнения расчетов в Проектно-Расчетном центре."]
[null,"Пояснения к расчётам ПРЦ можно получить по ссылке"]
[]
[null,"Примечания к участкам"]
[null,"№ уч-ка","Название участка",null,"Система","Основание","Тип профлиста","Площадь, м2","Толщина пирога, мм","ОУ","КУ","ГИ"]
[null,"Участок 1","Участок 1",null,"Пользовательская система","Железобетонное основание","-",24170,160,"-","Каменная вата","Битумно-полимерная 2 слоя"]
[]
[]
[null,"Альбом с примерами раскладки клиновидной теплоизоляции из КВ можно скачать по этой ссылке"]
[]
[]
[null,"2. Расчет крепежа"]
[]
[null,"№ уч-ка","Площадь, м2","Общее кол-во крепежа, шт.","Общий расход, шт/м2.","Расход ТИ, шт/м2.","Расход ГИ, шт/м2.","Примечание"]
[null,"Участок 1",24170,0,0,0,0]
[]
[]
[null,"3. Кратность материалов"]
[]
[null,"Каменная вата",null,null,"Пачки"]
[null,"XPS ТехноНИКОЛЬ CARBON ECO",null,null,"6 пачек"]
[null,"XPS ТехноНИКОЛЬ CARBON PROF",null,null,"6 пачек"]
[null,"Плиты теплоизоляционные PIR",null,null,"Поддоны"]
[null,"Битумно-полимерная гидроизоляция",null,null,"Рулоны"]
[null,"ПВХ мембрана",null,null,"Рулоны"]
[null,"Крепежные элементы",null,null,"Коробки"]

{"sheet":"Выгрузка","index":9,"n_rows":39,"n_cols":82,"rows_kept":39,"cut":false,"hidden":true,"merged":[]}
["Год","Месяц","№ сотр","№","Шифр","CRM","Название объекта",{"$f":"ОБЩИЕ_ДАННЫЕ!B9","v":"Адрес объекта/ Регион объекта"},"Регион объекта",{"$f":"ОБЩИЕ_ДАННЫЕ!B16","v":"Текущая стадия"},"Тип расчета","Кол-во вариантов"," № Варианта","Кол-во типов","Номер типа","Площадь ","Сложность","Тип расчета","КВ","XPS","ПИР","ПМ","РМ","МиСХ","Плантер","СК","ТИ и ОГН","Стоимость","Дата поступ.","Дата выдачи ","Срок выполн.","Тип заказчика","Регион заказчика",{"$f":"ОБЩИЕ_ДАННЫЕ!B11","v":"Организация/Для кого"},"Заказчик",{"$f":"ОБЩИЕ_ДАННЫЕ!B13","v":"Должность"},"Контакты заказчика","Базовая ставка","Фриланс","Бух 1","Бух 2",{"$f":"ОБЩИЕ_ДАННЫЕ!H26","v":"Примечание:"},"ОУ","КУ","КУ как ОУ","Номер заявки","Контакты заказчика (E-mail)","Материал (СК)","Тип конструкции","Примечание 2","ТИП1","ТИП2","ТИП3","ТИП4","ТИП5","ТИП6","ТИП7","ТИП8","ТИП9","ТИП10","Промокод","Для кого ТИП заказчика","Для кого Наименование организации","ИНН","КПП","Тип основания","Ссылки на ИД",null,null,null,null,null,null,null,"Расчет материалов","КВ","XPS","PIR","ПМ","РМ","МиСХ","Плантер"]
[null,null,null,null,{"$f":"ОБЩИЕ_ДАННЫЕ!C6","v":"9-9075-МПККИТ-01.26"},{"$f":"IFERROR(LEFT(ОБЩИЕ_ДАННЫЕ!C7,SEARCH(\"/\",ОБЩИЕ_ДАННЫЕ!C7)-1),ОБЩИЕ_ДАННЫЕ!C7)","v":303297},{"$f":"ОБЩИЕ_ДАННЫЕ!C8","v":"Проектирование строительных конструкция покрытия Цеха М10. АО Коломенский завод"},{"$f":"ОБЩИЕ_ДАННЫЕ!C9","v":"Московская область, г.Коломна, ул.Партизан, д.42"},{"$f":"ОБЩИЕ_ДАННЫЕ!F9","v":"ЦФО"},{"$f":"ОБЩИЕ_ДАННЫЕ!C16","v":"Нет данных "},{"$f":"ОБЩИЕ_ДАННЫЕ!C17","v":"Новый расчет"},{"$f":"ОБЩИЕ_ДАННЫЕ!C18","v":1},{"$f":"ОБЩИЕ_ДАННЫЕ!F18","v":1},{"$f":"Прайс!AD6","v":1},0,{"$f":"Прайс!AC5","v":24170},{"$f":"Прайс!AC7","v":2},{"$f":"IF(Q2=0,\"Клины\",Прайс!F133)","v":"КИ"},{"$f":"'Деление по СБЕ'!C6","v":1799.9999999982001},{"$f":"'Деление по СБЕ'!D6","v":0},{"$f":"'Деление по СБЕ'!E6","v":0},0,0,0,0,0,0,{"$f":"SUM(S2:AA2)","v":1799.9999999982001},{"$f":"IF(ISBLANK(ОБЩИЕ_ДАННЫЕ!C3),\"0\",ОБЩИЕ_ДАННЫЕ!C3)","v":"2026-01-21"},{"$f":"IF(ISBLANK(ОБЩИЕ_ДАННЫЕ!C4),\"0\",ОБЩИЕ_ДАННЫЕ!C4)","v":"2026-01-27"},{"$f":"IFERROR(AD2-AC2,0)","v":6},{"$f":"ОБЩИЕ_ДАННЫЕ!C10","v":"РТП"},{"$f":"ОБЩИЕ_ДАННЫЕ!F10","v":"ПФО"},{"$f":"IF(ОБЩИЕ_ДАННЫЕ!C10=\"РТП\",0,ОБЩИЕ_ДАННЫЕ!C11)","v":0},{"$f":"ОБЩИЕ_ДАННЫЕ!C12","v":"Трофимов Роман Олегович"},{"$f":"ОБЩИЕ_ДАННЫЕ!C13","v":" "},{"$f":"ОБЩИЕ_ДАННЫЕ!C14","v":"+7 (980) 164-03-99"},{"$f":"MROUND(ОБЩИЕ_ДАННЫЕ!O120,0.25)","v":450},{"$f":"MROUND(AB2/4*Регион,0.25)","v":450},{"$f":"AM2","v":450},{"$f":"AN2/0.87","v":517.24137931034488},{"$f":"ОБЩИЕ_ДАННЫЕ!J26","v":"-"},{"$f":"Свойства_расчета!K3","v":0},{"$f":"Свойства_расчета!K4","v":175},{"$f":"Свойства_расчета!K5","v":4},{"$f":"ОБЩИЕ_ДАННЫЕ!C5","v":235601},{"$f":"ОБЩИЕ_ДАННЫЕ!E14","v":"trofimov@tn.ru"},0,null,{"$f":"ОБЩИЕ_ДАННЫЕ!L26","v":0},0,0,0,0,0,0,0,0,0,0,{"$f":"ОБЩИЕ_ДАННЫЕ!C226","v":0},{"$f":"ОБЩИЕ_ДАННЫЕ!E11","v":"ОЦО КП"},{"$f":"ОБЩИЕ_ДАННЫЕ!$C$217","v":0},{"$f":"ОБЩИЕ_ДАННЫЕ!C221","v":0},{"$f":"ОБЩИЕ_ДАННЫЕ!C222","v":0},0,{"$f":"Сводная_Объект!E12","v":"http://nav.tn.ru/calculators/flat-roof/?object=TPK9B6AA33C67D3B696FB2FED3B2F383319"},null,null,null,null,null,null,null,"Материалы_основные",{"$f":"SUMIF(Сводная_Объект!$O:$O,\"КВ_осн\",Сводная_Объект!J:J)","v":3321.2272799999996},{"$f":"SUMIF(Сводная_Объект!$O:$O,\"XPS_осн\",Сводная_Объект!$J:$J)","v":0},{"$f":"SUMIF(Сводная_Объект!$O:$O,\"PIR_осн\",Сводная_Объект!$J:$J)","v":202.91},{"$f":"SUMIF(Сводная_Объект!$O:$O,\"ПМ_осн\",Сводная_Объект!$J:$J)","v":0},{"$f":"SUMIF(Сводная_Объект!$O:$O,\"РМ_осн\",Сводная_Объект!$J:$J)","v":65614.092839999998},{"$f":"SUMIF(Сводная_Объект!$O:$O,\"МиСХ_осн\",Сводная_Объект!$J:$J)","v":5759.47},{"$f":"SUMIF(Сводная_Объект!$O:$O,\"Плантер\",Сводная_Объект!$J:$J)","v":0}]
[null,null,null,null,{"$f":"$E$2","v":"9-9075-МПККИТ-01.26"},{"$f":"$F$2","v":303297},{"$f":"$G$2","v":"Проектирование строительных конструкция покрытия Цеха М10. АО Коломенский завод"},{"$f":"$H$2","v":"Московская область, г.Коломна, ул.Партизан, д.42"},{"$f":"$I$2","v":"ЦФО"},{"$f":"$J$2","v":"Нет данных "},{"$f":"$K$2","v":"Новый расчет"},{"$f":"$L$2","v":1},{"$f":"$M$2","v":1},{"$f":"ОБЩИЕ_ДАННЫЕ!O97","v":0},0,{"$f":"ОБЩИЕ_ДАННЫЕ!N97","v":0},{"$f":"ОБЩИЕ_ДАННЫЕ!O34","v":0},{"$f":"Прайс!F134","v":"МПК ПМ"},{"$f":"'Деление по СБЕ'!C21","v":0},{"$f":"'Деление по СБЕ'!D21","v":0},{"$f":"'Деление по СБЕ'!E21","v":0},{"$f":"'Деление по СБЕ'!F21","v":0},{"$f":"'Деление по СБЕ'!G21","v":0},{"$f":"'Деление по СБЕ'!H21","v":0},0,0,0,0,{"$f":"$AC$2","v":"2026-01-21"},{"$f":"$AD$2","v":"2026-01-27"},{"$f":"IFERROR(AD3-AC3,0)","v":6},{"$f":"$AF$2","v":"РТП"},{"$f":"$AG$2","v":"ПФО"},{"$f":"$AH$2","v":0},{"$f":"$AI$2","v":"Трофимов Роман Олегович"},{"$f":"$AJ$2","v":" "},{"$f":"$AK$2","v":"+7 (980) 164-03-99"},{"$f":"MROUND(ОБЩИЕ_ДАННЫЕ!L121,0.25)","v":0},0,{"$f":"AM3","v":0},{"$f":"AN3/0.87","v":0},{"$f":"$AP$2","v":"-"},0,0,0,{"$f":"$AT$2","v":235601},{"$f":"$AU$2","v":"trofimov@tn.ru"},0,null,{"$f":"$AX$2","v":0},0,0,0,0,0,0,0,0,0,0,{"$f":"$BI$2","v":0},{"$f":"$BJ$2","v":"ОЦО КП"},{"$f":"ОБЩИЕ_ДАННЫЕ!$C$217","v":0},{"$f":"$BL$2","v":0},{"$f":"$BM$2","v":0},{"$f":"INDIRECT(\"ТИП1!\"&\"R5\")","v":{"$error":"#REF!"}},{"$f":"$BO$2","v":"http://nav.tn.ru/calculators/flat-roof/?object=TPK9B6AA33C67D3B696FB2FED3B2F383319"},null,null,null,null,null,null,null,"материалы_паробарьер",0,0,0,0,{"$f":"SUMIF(Сводная_Объект!$O:$O,\"РМ_пар\",Сводная_Объект!$J:$J)","v":30694.055700000001},0,0]
[null,null,null,null,{"$f":"$E$2","v":"9-9075-МПККИТ-01.26"},{"$f":"$F$2","v":303297},{"$f":"$G$2","v":"Проектирование строительных конструкция покрытия Цеха М10. АО Коломенский завод"},{"$f":"$H$2","v":"Московская область, г.Коломна, ул.Партизан, д.42"},{"$f":"$I$2","v":"ЦФО"},{"$f":"$J$2","v":"Нет данных "},{"$f":"$K$2","v":"Новый расчет"},{"$f":"$L$2","v":1},{"$f":"$M$2","v":1},{"$f":"ОБЩИЕ_ДАННЫЕ!O96","v":1},0,{"$f":"ОБЩИЕ_ДАННЫЕ!N96","v":24170},{"$f":"ОБЩИЕ_ДАННЫЕ!O35","v":3},{"$f":"Прайс!F135","v":"МПК РМ"},{"$f":"'Деление по СБЕ'!C26","v":1055.9999999987135},{"$f":"'Деление по СБЕ'!D26","v":0},{"$f":"'Деление по СБЕ'!E26","v":1055.9999999987135},0,{"$f":"'Деление по СБЕ'!G26","v":0},{"$f":"'Деление по СБЕ'!H26","v":288.0000000001728},0,0,0,2399.9999999975998,{"$f":"$AC$2","v":"2026-01-21"},{"$f":"$AD$2","v":"2026-01-27"},6,{"$f":"$AF$2","v":"РТП"},{"$f":"$AG$2","v":"ПФО"},{"$f":"$AH$2","v":0},{"$f":"$AI$2","v":"Трофимов Роман Олегович"},{"$f":"$AJ$2","v":" "},{"$f":"$AK$2","v":"+7 (980) 164-03-99"},{"$f":"MROUND(ОБЩИЕ_ДАННЫЕ!L120,0.25)","v":600},600,600,689.65517241379314,{"$f":"$AP$2","v":"-"},0,0,0,{"$f":"$AT$2","v":235601},{"$f":"$AU$2","v":"trofimov@tn.ru"},0,null,{"$f":"$AX$2","v":0},0,0,0,0,0,0,0,0,0,0,{"$f":"$BI$2","v":0},{"$f":"$BJ$2","v":"ОЦО КП"},{"$f":"ОБЩИЕ_ДАННЫЕ!$C$217","v":0},{"$f":"$BL$2","v":0},{"$f":"$BM$2","v":0},{"$f":"INDIRECT(\"ТИП1!\"&\"R5\")","v":{"$error":"#REF!"}},{"$f":"$BO$2","v":"http://nav.tn.ru/calculators/flat-roof/?object=TPK9B6AA33C67D3B696FB2FED3B2F383319"},null,null,null,null,null,null,null,"материалы_фикс и соло",0,0,0,0,{"$f":"SUMIF(Сводная_Объект!$O:$O,\"РМ_фикс\",Сводная_Объект!$J:$J)","v":0},0,0]
[null,null,null,null,"9-9075-МПККИТ-01.26",303297,"Проектирование строительных конструкция покрытия Цеха М10. АО Коломенский завод","Московская область, г.Коломна, ул.Партизан, д.42","ЦФО","Нет данных ","Новый расчет",1,1,{"$f":"ОБЩИЕ_ДАННЫЕ!N36","v":0},0,{"$f":"ОБЩИЕ_ДАННЫЕ!N97","v":0},{"$f":"ОБЩИЕ_ДАННЫЕ!O36","v":0},{"$f":"IF(Q5=0,\"Ветер\",Прайс!F136)","v":"Ветер"},0,0,0,{"$f":"'Деление по СБЕ'!F31","v":0},0,0,0,0,0,{"$f":"SUM(S5:AA5)","v":0},"2026-01-21","2026-01-27",6,"РТП","ПФО",0,"Трофимов Роман Олегович"," ","+7 (980) 164-03-99",{"$f":"MROUND(ОБЩИЕ_ДАННЫЕ!L122,0.25)","v":0},0,0,0,"-",0,0,0,235601,"trofimov@tn.ru",0,null,0,0,0,0,0,0,0,0,0,0,0,0,"ОЦО КП",{"$f":"ОБЩИЕ_ДАННЫЕ!$C$217","v":0},0,0,0,"http://nav.tn.ru/calculators/flat-roof/?object=TPK9B6AA33C67D3B696FB2FED3B2F383319",null,null,null,null,null,null,null,"Клины",{"$f":"SUMIF(Сводная_Объект!$O:$O,\"КВ_клин\",Сводная_Объект!J:J)","v":285.93720000000002},{"$f":"SUMIF(Сводная_Объект!$O:$O,\"XPS_клин\",Сводная_Объект!$J:$J)","v":0},{"$f":"SUMIF(Сводная_Объект!$O:$O,\"PIR_клин\",Сводная_Объект!$J:$J)","v":0},0,0,0,0]
[null,null,null,null,"9-9075-МПККИТ-01.26",303297,"Проектирование строительных конструкция покрытия Цеха М10. АО Коломенский завод","Московская область, г.Коломна, ул.Партизан, д.42","ЦФО","Нет данных ","Новый расчет",1,1,{"$f":"ОБЩИЕ_ДАННЫЕ!N37","v":0},0,{"$f":"ОБЩИЕ_ДАННЫЕ!N96","v":24170},{"$f":"ОБЩИЕ_ДАННЫЕ!O37","v":0},{"$f":"IF(Q6=0,\"Ветер\",Прайс!F137)","v":"Ветер"},0,0,0,0,{"$f":"'Деление по СБЕ'!G36","v":0},0,0,0,0,{"$f":"SUM(S6:AA6)","v":0},"2026-01-21","2026-01-27",{"$f":"IFERROR(AD6-AC6,0)","v":6},"РТП","ПФО",0,"Трофимов Роман Олегович"," ","+7 (980) 164-03-99",{"$f":"MROUND(ОБЩИЕ_ДАННЫЕ!L122,0.25)","v":0},0,0,0,"-",0,0,0,235601,"trofimov@tn.ru",0,null,0,0,0,0,0,0,0,0,0,0,0,0,"ОЦО КП",{"$f":"ОБЩИЕ_ДАННЫЕ!$C$217","v":0},0,0,0,"http://nav.tn.ru/calculators/flat-roof/?object=TPK9B6AA33C67D3B696FB2FED3B2F383319",null,null,null,null,null,null,null,"крепеж",{"$f":"SUMIF(Сводная_Объект!$O:$O,\"Креп_осн\",Сводная_Объект!$J:$J)","v":64020},{"$f":"SUMIF(Сводная_Объект!$O:$O,\"Креп_сверх\",Сводная_Объект!$J:$J)","v":0},0,0,0,0,0]
[null,null,null,null,"9-9075-МПККИТ-01.26",303297,"Проектирование строительных конструкция покрытия Цеха М10. АО Коломенский завод","Московская область, г.Коломна, ул.Партизан, д.42","ЦФО","Нет данных ","Новый расчет",1,1,{"$f":"ОБЩИЕ_ДАННЫЕ!O38","v":2},0,{"$f":"$P$3+$P$4","v":24170},0,{"$f":"IF(N7=0,\"Т\",Прайс!F138)","v":"Т"},{"$f":"'Деление по СБЕ'!C41","v":299.99999999999699},{"$f":"'Деление по СБЕ'!D41","v":0},{"$f":"'Деление по СБЕ'!E41","v":299.99999999999699},0,0,0,0,0,0,599.99999999999397,"2026-01-21","2026-01-27",6,"РТП","ПФО",0,"Трофимов Роман Олегович"," ","+7 (980) 164-03-99",{"$f":"MROUND(ОБЩИЕ_ДАННЫЕ!L123,0.25)","v":75},150,150,172.41379310344828,"-",0,0,0,235601,"trofimov@tn.ru",0,null,0,0,0,0,0,0,0,0,0,0,0,0,"ОЦО КП",{"$f":"ОБЩИЕ_ДАННЫЕ!$C$217","v":0},0,0,0,"http://nav.tn.ru/calculators/flat-roof/?object=TPK9B6AA33C67D3B696FB2FED3B2F383319"]
[null,null,null,null,"9-9075-МПККИТ-01.26",303297,"Проектирование строительных конструкция покрытия Цеха М10. АО Коломенский завод","Московская область, г.Коломна, ул.Партизан, д.42","ЦФО","Нет данных ","Новый расчет",{"$f":"$L$2","v":1},{"$f":"$M$2","v":1},{"$f":"ОБЩИЕ_ДАННЫЕ!C19","v":1},0,{"$f":"$P$3+$P$4","v":24170},{"$f":"ОБЩИЕ_ДАННЫЕ!O39","v":0},{"$f":"IF(N8=0,\"Тепло\",Прайс!F139)","v":"Тепло"},{"$f":"'Деление по СБЕ'!C71","v":0},{"$f":"'Деление по СБЕ'!D71","v":0},{"$f":"'Деление по СБЕ'!E71","v":0},0,0,0,0,0,0,0,"2026-01-21","2026-01-27",6,"РТП","ПФО",0,"Трофимов Роман Олегович"," ","+7 (980) 164-03-99",{"$f":"MROUND(ОБЩИЕ_ДАННЫЕ!L124,0.25)","v":0},0,{"$f":"AM8","v":0},{"$f":"AN8/0.87","v":0},"-",0,0,0,235601,"trofimov@tn.ru",0,null,0,0,0,0,0,0,0,0,0,0,0,0,"ОЦО КП",{"$f":"ОБЩИЕ_ДАННЫЕ!$C$217","v":0},0,0,0,"http://nav.tn.ru/calculators/flat-roof/?object=TPK9B6AA33C67D3B696FB2FED3B2F383319"]
[null,null,null,null,"9-9075-МПККИТ-01.26",303297,"Проектирование строительных конструкция покрытия Цеха М10. АО Коломенский завод","Московская область, г.Коломна, ул.Партизан, д.42","ЦФО","Нет данных ","Новый расчет",1,1,{"$f":"ОБЩИЕ_ДАННЫЕ!O40","v":0},0,{"$f":"$P$3+$P$4","v":24170},0,{"$f":"IF(N9=0,\"ПАР\",Прайс!F140)","v":"ПАР"},0,0,0,0,{"$f":"'Деление по СБЕ'!G61","v":0},0,0,0,0,0,"2026-01-21","2026-01-27",6,"РТП","ПФО",0,"Трофимов Роман Олегович"," ","+7 (980) 164-03-99",{"$f":"MROUND(IFERROR(AM9/N9,0),0.25)","v":0},0,0,0,"-",0,0,0,235601,"trofimov@tn.ru",0,null,0,0,0,0,0,0,0,0,0,0,0,0,"ОЦО КП",{"$f":"ОБЩИЕ_ДАННЫЕ!$C$217","v":0},0,0,0,"http://nav.tn.ru/calculators/flat-roof/?object=TPK9B6AA33C67D3B696FB2FED3B2F383319"]
[null,null,null,null,"9-9075-МПККИТ-01.26",303297,"Проектирование строительных конструкция покрытия Цеха М10. АО Коломенский завод","Московская область, г.Коломна, ул.Партизан, д.42","ЦФО","Нет данных ","Новый расчет",1,1,{"$f":"ОБЩИЕ_ДАННЫЕ!C19","v":1},0,{"$f":"$P$3+$P$4","v":24170},{"$f":"ОБЩИЕ_ДАННЫЕ!O32","v":3},{"$f":"IF(Q10=0,\"Анализ\",Прайс!F141)","v":"А"},{"$f":"'Деление по СБЕ'!C46","v":883.7209302325582},{"$f":"'Деление по СБЕ'!D46","v":0},{"$f":"'Деление по СБЕ'!E46","v":883.7209302325582},{"$f":"'Деление по СБЕ'!F46","v":0},{"$f":"'Деление по СБЕ'!G46","v":0},{"$f":"'Деление по СБЕ'!H46","v":232.55813953488374},0,0,0,2000.0000000000002,"2026-01-21","2026-01-27",6,"РТП","ПФО",0,"Трофимов Роман Олегович"," ","+7 (980) 164-03-99",{"$f":"AM10","v":500},500,{"$f":"AM10","v":500},574.71264367816093,"-",0,0,0,235601,"trofimov@tn.ru",0,null,0,0,0,0,0,0,0,0,0,0,0,0,"ОЦО КП",{"$f":"ОБЩИЕ_ДАННЫЕ!$C$217","v":0},0,0,0,"http://nav.tn.ru/calculators/flat-roof/?object=TPK9B6AA33C67D3B696FB2FED3B2F383319"]
[null,null,null,null,"9-9075-МПККИТ-01.26",303297,"Проектирование строительных конструкция покрытия Цеха М10. АО Коломенский завод","Московская область, г.Коломна, ул.Партизан, д.42","ЦФО","Нет данных ","Новый расчет",1,1,{"$f":"ОБЩИЕ_ДАННЫЕ!R97","v":1},0,{"$f":"$P$3+$P$4","v":24170},{"$f":"ОБЩИЕ_ДАННЫЕ!O41","v":3},{"$f":"IF(N11=0,\"Огражд\",Прайс!F142)","v":"ОГР"},0,0,0,{"$f":"'Деление по СБЕ'!F66","v":800},0,0,0,0,0,800,"2026-01-21","2026-01-27",6,"РТП","ПФО",0,"Трофимов Роман Олегович"," ","+7 (980) 164-03-99",{"$f":"AM11","v":200},200,200,229.88505747126436,"-",0,0,0,235601,"trofimov@tn.ru",0,null,0,0,0,0,0,0,0,0,0,0,0,0,"ОЦО КП",{"$f":"ОБЩИЕ_ДАННЫЕ!$C$217","v":0},0,0,0,"http://nav.tn.ru/calculators/flat-roof/?object=TPK9B6AA33C67D3B696FB2FED3B2F383319"]
[null,null,null,null,"9-9075-МПККИТ-01.26",303297,"Проектирование строительных конструкция покрытия Цеха М10. АО Коломенский завод","Московская область, г.Коломна, ул.Партизан, д.42","ЦФО","Нет данных ","Новый расчет",1,1,{"$f":"ОБЩИЕ_ДАННЫЕ!N44","v":0},0,{"$f":"ОБЩИЕ_ДАННЫЕ!N97","v":0},{"$f":"ОБЩИЕ_ДАННЫЕ!O44","v":0},{"$f":"IF(N12=0,\"Воронки ПМ\",Прайс!F145)","v":"Воронки ПМ"},0,0,0,{"$f":"'Деление по СБЕ'!F76","v":0},0,0,0,0,0,0,"2026-01-21","2026-01-27",6,"РТП","ПФО",0,"Трофимов Роман Олегович"," ","+7 (980) 164-03-99",{"$f":"IF(AB12=0,0,INDEX(Прайс!J51:M53,ОБЩИЕ_ДАННЫЕ!O44,ОБЩИЕ_ДАННЫЕ!N91)/4)","v":0},0,0,0,"-",0,0,0,235601,"trofimov@tn.ru",0,null,0,0,0,0,0,0,0,0,0,0,0,0,"ОЦО КП",{"$f":"ОБЩИЕ_ДАННЫЕ!$C$217","v":0},0,0,0,"http://nav.tn.ru/calculators/flat-roof/?object=TPK9B6AA33C67D3B696FB2FED3B2F383319"]
[null,null,null,null,"9-9075-МПККИТ-01.26",303297,"Проектирование строительных конструкция покрытия Цеха М10. АО Коломенский завод","Московская область, г.Коломна, ул.Партизан, д.42","ЦФО","Нет данных ","Новый расчет",1,1,{"$f":"ОБЩИЕ_ДАННЫЕ!N45","v":0},0,{"$f":"ОБЩИЕ_ДАННЫЕ!N96","v":24170},{"$f":"ОБЩИЕ_ДАННЫЕ!O45","v":0},{"$f":"IF(N13=0,\"Воронки РМ\",Прайс!F146)","v":"Воронки РМ"},0,0,0,0,{"$f":"'Деление по СБЕ'!G81","v":0},0,0,0,0,0,"2026-01-21","2026-01-27",6,"РТП","ПФО",0,"Трофимов Роман Олегович"," ","+7 (980) 164-03-99",{"$f":"IF(AB13=0,0,INDEX(Прайс!J51:M53,ОБЩИЕ_ДАННЫЕ!O45,ОБЩИЕ_ДАННЫЕ!O91)/4)","v":0},0,0,0,"-",0,0,0,235601,"trofimov@tn.ru",0,null,0,0,0,0,0,0,0,0,0,0,0,0,"ОЦО КП",{"$f":"ОБЩИЕ_ДАННЫЕ!$C$217","v":0},0,0,0,"http://nav.tn.ru/calculators/flat-roof/?object=TPK9B6AA33C67D3B696FB2FED3B2F383319"]
[null,null,null,null,"9-9075-МПККИТ-01.26",303297,"Проектирование строительных конструкция покрытия Цеха М10. АО Коломенский завод","Московская область, г.Коломна, ул.Партизан, д.42","ЦФО","Нет данных ","Новый расчет",1,1,{"$f":"COUNTIF(ОБЩИЕ_ДАННЫЕ!$J$142:$J$151,\">0\")","v":0},1,{"$f":"ОБЩИЕ_ДАННЫЕ!J142","v":0},{"$f":"ОБЩИЕ_ДАННЫЕ!K142","v":0},{"$f":"IF(Q14=0,\"Схемы Ветровых Зон\",Прайс!F143)","v":"Схемы Ветровых Зон"},0,0,0,{"$f":"IF(AND(ОБЩИЕ_ДАННЫЕ!K142>0,ОБЩИЕ_ДАННЫЕ!M142>0),ОБЩИЕ_ДАННЫЕ!L142*0.25,0)","v":0},{"$f":"IF(AND(ОБЩИЕ_ДАННЫЕ!K142>0,ОБЩИЕ_ДАННЫЕ!N142>0),ОБЩИЕ_ДАННЫЕ!L142*0.25,0)","v":0},0,0,0,0,0,"2026-01-21","2026-01-27",6,"РТП","ПФО",0,"Трофимов Роман Олегович"," ","+7 (980) 164-03-99",{"$f":"AM14","v":0},0,0,0,"-",0,0,0,235601,"trofimov@tn.ru",0,null,0,0,0,0,0,0,0,0,0,0,0,0,"ОЦО КП",{"$f":"ОБЩИЕ_ДАННЫЕ!$C$217","v":0},0,0,0,"http://nav.tn.ru/calculators/flat-roof/?object=TPK9B6AA33C67D3B696FB2FED3B2F383319"]
[null,null,null,null,"9-9075-МПККИТ-01.26",303297,"Проектирование строительных конструкция покрытия Цеха М10. АО Коломенский завод","Московская область, г.Коломна, ул.Партизан, д.42","ЦФО","Нет данных ","Новый расчет",1,1,{"$f":"COUNTIF(ОБЩИЕ_ДАННЫЕ!$J$142:$J$151,\">0\")","v":0},2,{"$f":"ОБЩИЕ_ДАННЫЕ!J143","v":0},{"$f":"ОБЩИЕ_ДАННЫЕ!K143","v":0},{"$f":"IF(Q15=0,\"Схемы Ветровых Зон\",Прайс!F143)","v":"Схемы Ветровых Зон"},0,0,0,{"$f":"IF(AND(ОБЩИЕ_ДАННЫЕ!K143>0,ОБЩИЕ_ДАННЫЕ!M143>0),ОБЩИЕ_ДАННЫЕ!L143*0.25,0)","v":0},{"$f":"IF(AND(ОБЩИЕ_ДАННЫЕ!K143>0,ОБЩИЕ_ДАННЫЕ!N143>0),ОБЩИЕ_ДАННЫЕ!L143*0.25,0)","v":0},0,0,0,0,{"$f":"SUM(S15:AA15)","v":0},"2026-01-21","2026-01-27",6,"РТП","ПФО",0,"Трофимов Роман Олегович"," ","+7 (980) 164-03-99",{"$f":"AM15","v":0},0,{"$f":"AM15","v":0},{"$f":"AN15/0.87","v":0},"-",0,0,0,235601,"trofimov@tn.ru",0,null,0,0,0,0,0,0,0,0,0,0,0,0,"ОЦО КП",{"$f":"ОБЩИЕ_ДАННЫЕ!$C$217","v":0},0,0,0,"http://nav.tn.ru/calculators/flat-roof/?object=TPK9B6AA33C67D3B696FB2FED3B2F383319"]
[null,null,null,null,"9-9075-МПККИТ-01.26",303297,"Проектирование строительных конструкция покрытия Цеха М10. АО Коломенский завод","Московская область, г.Коломна, ул.Партизан, д.42","ЦФО","Нет данных ","Новый расчет",1,1,{"$f":"COUNTIF(ОБЩИЕ_ДАННЫЕ!$J$142:$J$151,\">0\")","v":0},3,{"$f":"ОБЩИЕ_ДАННЫЕ!J144","v":0},{"$f":"ОБЩИЕ_ДАННЫЕ!K144","v":0},{"$f":"IF(Q16=0,\"Схемы Ветровых Зон\",Прайс!F143)","v":"Схемы Ветровых Зон"},0,0,0,{"$f":"IF(AND(ОБЩИЕ_ДАННЫЕ!K144>0,ОБЩИЕ_ДАННЫЕ!M144>0),ОБЩИЕ_ДАННЫЕ!L144*0.25,0)","v":0},{"$f":"IF(AND(ОБЩИЕ_ДАННЫЕ!K144>0,ОБЩИЕ_ДАННЫЕ!N144>0),ОБЩИЕ_ДАННЫЕ!L144*0.25,0)","v":0},0,0,0,0,0,"2026-01-21","2026-01-27",6,"РТП","ПФО",0,"Трофимов Роман Олегович"," ","+7 (980) 164-03-99",{"$f":"AM16","v":0},0,0,0,"-",0,0,0,235601,"trofimov@tn.ru",0,null,0,0,0,0,0,0,0,0,0,0,0,0,"ОЦО КП",{"$f":"ОБЩИЕ_ДАННЫЕ!$C$217","v":0},0,0,0,"http://nav.tn.ru/calculators/flat-roof/?object=TPK9B6AA33C67D3B696FB2FED3B2F383319"]
[null,null,null,null,"9-9075-МПККИТ-01.26",303297,"Проектирование строительных конструкция покрытия Цеха М10. АО Коломенский завод","Московская область, г.Коломна, ул.Партизан, д.42","ЦФО","Нет данных ","Новый расчет",1,1,{"$f":"COUNTIF(ОБЩИЕ_ДАННЫЕ!$J$142:$J$151,\">0\")","v":0},4,{"$f":"ОБЩИЕ_ДАННЫЕ!J145","v":0},{"$f":"ОБЩИЕ_ДАННЫЕ!K145","v":0},{"$f":"IF(Q17=0,\"Схемы Ветровых Зон\",Прайс!F143)","v":"Схемы Ветровых Зон"},0,0,0,{"$f":"IF(AND(ОБЩИЕ_ДАННЫЕ!K145>0,ОБЩИЕ_ДАННЫЕ!M145>0),ОБЩИЕ_ДАННЫЕ!L145*0.25,0)","v":0},{"$f":"IF(AND(ОБЩИЕ_ДАННЫЕ!K145>0,ОБЩИЕ_ДАННЫЕ!N145>0),ОБЩИЕ_ДАННЫЕ!L145*0.25,0)","v":0},0,0,0,0,0,"2026-01-21","2026-01-27",6,"РТП","ПФО",0,"Трофимов Роман Олегович"," ","+7 (980) 164-03-99",0,0,0,0,"-",0,0,0,235601,"trofimov@tn.ru",0,null,0,0,0,0,0,0,0,0,0,0,0,0,"ОЦО КП",{"$f":"ОБЩИЕ_ДАННЫЕ!$C$217","v":0},0,0,0,"http://nav.tn.ru/calculators/flat-roof/?object=TPK9B6AA33C67D3B696FB2FED3B2F383319"]
[null,null,null,null,"9-9075-МПККИТ-01.26",303297,"Проектирование строительных конструкция покрытия Цеха М10. АО Коломенский завод","Московская область, г.Коломна, ул.Партизан, д.42","ЦФО","Нет данных ","Новый расчет",1,1,{"$f":"COUNTIF(ОБЩИЕ_ДАННЫЕ!$J$142:$J$151,\">0\")","v":0},5,{"$f":"ОБЩИЕ_ДАННЫЕ!J146","v":0},{"$f":"ОБЩИЕ_ДАННЫЕ!K146","v":0},{"$f":"IF(Q18=0,\"Схемы Ветровых Зон\",Прайс!F143)","v":"Схемы Ветровых Зон"},0,0,0,{"$f":"IF(AND(ОБЩИЕ_ДАННЫЕ!K146>0,ОБЩИЕ_ДАННЫЕ!M146>0),ОБЩИЕ_ДАННЫЕ!L146*0.25,0)","v":0},{"$f":"IF(AND(ОБЩИЕ_ДАННЫЕ!K146>0,ОБЩИЕ_ДАННЫЕ!N146>0),ОБЩИЕ_ДАННЫЕ!L146*0.25,0)","v":0},0,0,0,0,0,"2026-01-21","2026-01-27",6,"РТП","ПФО",0,"Трофимов Роман Олегович"," ","+7 (980) 164-03-99",0,0,0,0,"-",0,0,0,235601,"trofimov@tn.ru",0,null,0,0,0,0,0,0,0,0,0,0,0,0,"ОЦО КП",{"$f":"ОБЩИЕ_ДАННЫЕ!$C$217","v":0},0,0,0,"http://nav.tn.ru/calculators/flat-roof/?object=TPK9B6AA33C67D3B696FB2FED3B2F383319"]
[null,null,null,null,"9-9075-МПККИТ-01.26",303297,"Проектирование строительных конструкция покрытия Цеха М10. АО Коломенский завод","Московская область, г.Коломна, ул.Партизан, д.42","ЦФО","Нет данных ","Новый расчет",1,1,{"$f":"COUNTIF(ОБЩИЕ_ДАННЫЕ!$J$142:$J$151,\">0\")","v":0},6,{"$f":"ОБЩИЕ_ДАННЫЕ!J147","v":0},{"$f":"ОБЩИЕ_ДАННЫЕ!K147","v":0},{"$f":"IF(Q19=0,\"Схемы Ветровых Зон\",Прайс!F143)","v":"Схемы Ветровых Зон"},0,0,0,{"$f":"IF(AND(ОБЩИЕ_ДАННЫЕ!K147>0,ОБЩИЕ_ДАННЫЕ!M147>0),ОБЩИЕ_ДАННЫЕ!L147*0.25,0)","v":0},{"$f":"IF(AND(ОБЩИЕ_ДАННЫЕ!K147>0,ОБЩИЕ_ДАННЫЕ!N147>0),ОБЩИЕ_ДАННЫЕ!L147*0.25,0)","v":0},0,0,0,0,0,"2026-01-21","2026-01-27",6,"РТП","ПФО",0,"Трофимов Роман Олегович"," ","+7 (980) 164-03-99",0,0,0,0,"-",0,0,0,235601,"trofimov@tn.ru",0,null,0,0,0,0,0,0,0,0,0,0,0,0,"ОЦО КП",{"$f":"ОБЩИЕ_ДАННЫЕ!$C$217","v":0},0,0,0,"http://nav.tn.ru/calculators/flat-roof/?object=TPK9B6AA33C67D3B696FB2FED3B2F383319"]
[null,null,null,null,"9-9075-МПККИТ-01.26",303297,"Проектирование строительных конструкция покрытия Цеха М10. АО Коломенский завод","Московская область, г.Коломна, ул.Партизан, д.42","ЦФО","Нет данных ","Новый расчет",1,1,{"$f":"COUNTIF(ОБЩИЕ_ДАННЫЕ!$J$142:$J$151,\">0\")","v":0},7,{"$f":"ОБЩИЕ_ДАННЫЕ!J148","v":0},{"$f":"ОБЩИЕ_ДАННЫЕ!K148","v":0},{"$f":"IF(Q20=0,\"Схемы Ветровых Зон\",Прайс!F143)","v":"Схемы Ветровых Зон"},0,0,0,{"$f":"IF(AND(ОБЩИЕ_ДАННЫЕ!K148>0,ОБЩИЕ_ДАННЫЕ!M148>0),ОБЩИЕ_ДАННЫЕ!L148*0.25,0)","v":0},{"$f":"IF(AND(ОБЩИЕ_ДАННЫЕ!K148>0,ОБЩИЕ_ДАННЫЕ!N148>0),ОБЩИЕ_ДАННЫЕ!L148*0.25,0)","v":0},0,0,0,0,{"$f":"SUM(S20:AA20)","v":0},"2026-01-21","2026-01-27",6,"РТП","ПФО",0,"Трофимов Роман Олегович"," ","+7 (980) 164-03-99",{"$f":"AM20","v":0},0,{"$f":"AM20","v":0},{"$f":"AN20/0.87","v":0},"-",0,0,0,235601,"trofimov@tn.ru",0,null,0,0,0,0,0,0,0,0,0,0,0,0,"ОЦО КП",{"$f":"ОБЩИЕ_ДАННЫЕ!$C$217","v":0},0,0,0,"http://nav.tn.ru/calculators/flat-roof/?object=TPK9B6AA33C67D3B696FB2FED3B2F383319"]
[null,null,null,null,"9-9075-МПККИТ-01.26",303297,"Проектирование строительных конструкция покрытия Цеха М10. АО Коломенский завод","Московская область, г.Коломна, ул.Партизан, д.42","ЦФО","Нет данных ","Новый расчет",1,1,{"$f":"COUNTIF(ОБЩИЕ_ДАННЫЕ!$J$142:$J$151,\">0\")","v":0},8,{"$f":"ОБЩИЕ_ДАННЫЕ!J149","v":0},{"$f":"ОБЩИЕ_ДАННЫЕ!K149","v":0},{"$f":"IF(Q21=0,\"Схемы Ветровых Зон\",Прайс!F143)","v":"Схемы Ветровых Зон"},0,0,0,{"$f":"IF(AND(ОБЩИЕ_ДАННЫЕ!K149>0,ОБЩИЕ_ДАННЫЕ!M149>0),ОБЩИЕ_ДАННЫЕ!L149*0.25,0)","v":0},{"$f":"IF(AND(ОБЩИЕ_ДАННЫЕ!K149>0,ОБЩИЕ_ДАННЫЕ!N149>0),ОБЩИЕ_ДАННЫЕ!L149*0.25,0)","v":0},0,0,0,0,0,"2026-01-21","2026-01-27",6,"РТП","ПФО",0,"Трофимов Роман Олегович"," ","+7 (980) 164-03-99",0,0,0,0,"-",0,0,0,235601,"trofimov@tn.ru",0,null,0,0,0,0,0,0,0,0,0,0,0,0,"ОЦО КП",{"$f":"ОБЩИЕ_ДАННЫЕ!$C$217","v":0},0,0,0,"http://nav.tn.ru/calculators/flat-roof/?object=TPK9B6AA33C67D3B696FB2FED3B2F383319"]
[null,null,null,null,"9-9075-МПККИТ-01.26",303297,"Проектирование строительных конструкция покрытия Цеха М10. АО Коломенский завод","Московская область, г.Коломна, ул.Партизан, д.42","ЦФО","Нет данных ","Новый расчет",1,1,{"$f":"COUNTIF(ОБЩИЕ_ДАННЫЕ!$J$142:$J$151,\">0\")","v":0},9,{"$f":"ОБЩИЕ_ДАННЫЕ!J150","v":0},{"$f":"ОБЩИЕ_ДАННЫЕ!K150","v":0},{"$f":"IF(Q22=0,\"Схемы Ветровых Зон\",Прайс!F143)","v":"Схемы Ветровых Зон"},0,0,0,{"$f":"IF(AND(ОБЩИЕ_ДАННЫЕ!K150>0,ОБЩИЕ_ДАННЫЕ!M150>0),ОБЩИЕ_ДАННЫЕ!L150*0.25,0)","v":0},{"$f":"IF(AND(ОБЩИЕ_ДАННЫЕ!K150>0,ОБЩИЕ_ДАННЫЕ!N150>0),ОБЩИЕ_ДАННЫЕ!L150*0.25,0)","v":0},0,0,0,0,0,"2026-01-21","2026-01-27",6,"РТП","ПФО",0,"Трофимов Роман Олегович"," ","+7 (980) 164-03-99",0,0,0,0,"-",0,0,0,235601,"trofimov@tn.ru",0,null,0,0,0,0,0,0,0,0,0,0,0,0,"ОЦО КП",{"$f":"ОБЩИЕ_ДАННЫЕ!$C$217","v":0},0,0,0,"http://nav.tn.ru/calculators/flat-roof/?object=TPK9B6AA33C67D3B696FB2FED3B2F383319"]
[null,null,null,null,"9-9075-МПККИТ-01.26",303297,"Проектирование строительных конструкция покрытия Цеха М10. АО Коломенский завод","Московская область, г.Коломна, ул.Партизан, д.42","ЦФО","Нет данных ","Новый расчет",1,1,{"$f":"COUNTIF(ОБЩИЕ_ДАННЫЕ!$J$142:$J$151,\">0\")","v":0},10,{"$f":"ОБЩИЕ_ДАННЫЕ!J151","v":0},{"$f":"ОБЩИЕ_ДАННЫЕ!K151","v":0},{"$f":"IF(Q23=0,\"Схемы Ветровых Зон\",Прайс!F143)","v":"Схемы Ветровых Зон"},0,0,0,{"$f":"IF(AND(ОБЩИЕ_ДАННЫЕ!K151>0,ОБЩИЕ_ДАННЫЕ!M151>0),ОБЩИЕ_ДАННЫЕ!L151*0.25,0)","v":0},{"$f":"IF(AND(ОБЩИЕ_ДАННЫЕ!K151>0,ОБЩИЕ_ДАННЫЕ!N151>0),ОБЩИЕ_ДАННЫЕ!L151*0.25,0)","v":0},0,0,0,0,{"$f":"SUM(S23:AA23)","v":0},"2026-01-21","2026-01-27",6,"РТП","ПФО",0,"Трофимов Роман Олегович"," ","+7 (980) 164-03-99",{"$f":"AM23","v":0},0,{"$f":"AM23","v":0},{"$f":"AN23/0.87","v":0},"-",0,0,0,235601,"trofimov@tn.ru",0,null,0,0,0,0,0,0,0,0,0,0,0,0,"ОЦО КП",{"$f":"ОБЩИЕ_ДАННЫЕ!$C$217","v":0},0,0,0,"http://nav.tn.ru/calculators/flat-roof/?object=TPK9B6AA33C67D3B696FB2FED3B2F383319"]
[null,null,null,null,"9-9075-МПККИТ-01.26",303297,"Проектирование строительных конструкция покрытия Цеха М10. АО Коломенский завод","Московская область, г.Коломна, ул.Партизан, д.42","ЦФО","Нет данных ","Новый расчет",1,1,{"$f":"COUNTIF(ОБЩИЕ_ДАННЫЕ!$J$158:$J$167,\">0\")","v":0},1,{"$f":"ОБЩИЕ_ДАННЫЕ!J158","v":0},{"$f":"ОБЩИЕ_ДАННЫЕ!K158","v":0},{"$f":"IF(Q24=0,\"Раскладка ГИ\",Прайс!F144)","v":"Раскладка ГИ"},0,0,0,{"$f":"IF(AND(ОБЩИЕ_ДАННЫЕ!K158>0,ОБЩИЕ_ДАННЫЕ!M158>0),ОБЩИЕ_ДАННЫЕ!L158*0.25,0)","v":0},{"$f":"IF(AND(ОБЩИЕ_ДАННЫЕ!K158>0,ОБЩИЕ_ДАННЫЕ!N158>0),ОБЩИЕ_ДАННЫЕ!L158*0.25,0)","v":0},0,0,0,0,{"$f":"SUM(S24:AA24)","v":0},"2026-01-21","2026-01-27",6,"РТП","ПФО",0,"Трофимов Роман Олегович"," ","+7 (980) 164-03-99",{"$f":"AM24","v":0},0,{"$f":"AM24","v":0},{"$f":"AN24/0.87","v":0},"-",0,0,0,235601,"trofimov@tn.ru",0,null,0,0,0,0,0,0,0,0,0,0,0,0,"ОЦО КП",{"$f":"ОБЩИЕ_ДАННЫЕ!$C$217","v":0},0,0,0,"http://nav.tn.ru/calculators/flat-roof/?object=TPK9B6AA33C67D3B696FB2FED3B2F383319"]
[null,null,null,null,"9-9075-МПККИТ-01.26",303297,"Проектирование строительных конструкция покрытия Цеха М10. АО Коломенский завод","Московская область, г.Коломна, ул.Партизан, д.42","ЦФО","Нет данных ","Новый расчет",1,1,{"$f":"COUNTIF(ОБЩИЕ_ДАННЫЕ!$J$158:$J$167,\">0\")","v":0},2,{"$f":"ОБЩИЕ_ДАННЫЕ!J159","v":0},{"$f":"ОБЩИЕ_ДАННЫЕ!K159","v":0},{"$f":"IF(Q25=0,\"Раскладка ГИ\",Прайс!F144)","v":"Раскладка ГИ"},0,0,0,{"$f":"IF(AND(ОБЩИЕ_ДАННЫЕ!K159>0,ОБЩИЕ_ДАННЫЕ!M159>0),ОБЩИЕ_ДАННЫЕ!L159*0.25,0)","v":0},{"$f":"IF(AND(ОБЩИЕ_ДАННЫЕ!K159>0,ОБЩИЕ_ДАННЫЕ!N159>0),ОБЩИЕ_ДАННЫЕ!L159*0.25,0)","v":0},0,0,0,0,{"$f":"SUM(S25:AA25)","v":0},"2026-01-21","2026-01-27",6,"РТП","ПФО",0,"Трофимов Роман Олегович"," ","+7 (980) 164-03-99",{"$f":"AM25","v":0},0,{"$f":"AM25","v":0},{"$f":"AN25/0.87","v":0},"-",0,0,0,235601,"trofimov@tn.ru",0,null,0,0,0,0,0,0,0,0,0,0,0,0,"ОЦО КП",{"$f":"ОБЩИЕ_ДАННЫЕ!$C$217","v":0},0,0,0,"http://nav.tn.ru/calculators/flat-roof/?object=TPK9B6AA33C67D3B696FB2FED3B2F383319"]
[null,null,null,null,"9-9075-МПККИТ-01.26",303297,"Проектирование строительных конструкция покрытия Цеха М10. АО Коломенский завод","Московская область, г.Коломна, ул.Партизан, д.42","ЦФО","Нет данных ","Новый расчет",1,1,{"$f":"COUNTIF(ОБЩИЕ_ДАННЫЕ!$J$158:$J$167,\">0\")","v":0},3,{"$f":"ОБЩИЕ_ДАННЫЕ!J160","v":0},{"$f":"ОБЩИЕ_ДАННЫЕ!K160","v":0},{"$f":"IF(Q26=0,\"Раскладка ГИ\",Прайс!F144)","v":"Раскладка ГИ"},0,0,0,{"$f":"IF(AND(ОБЩИЕ_ДАННЫЕ!K160>0,ОБЩИЕ_ДАННЫЕ!M160>0),ОБЩИЕ_ДАННЫЕ!L160*0.25,0)","v":0},{"$f":"IF(AND(ОБЩИЕ_ДАННЫЕ!K160>0,ОБЩИЕ_ДАННЫЕ!N160>0),ОБЩИЕ_ДАННЫЕ!L160*0.25,0)","v":0},0,0,0,0,0,"2026-01-21","2026-01-27",6,"РТП","ПФО",0,"Трофимов Роман Олегович"," ","+7 (980) 164-03-99",0,0,0,0,"-",0,0,0,235601,"trofimov@tn.ru",0,null,0,0,0,0,0,0,0,0,0,0,0,0,"ОЦО КП",{"$f":"ОБЩИЕ_ДАННЫЕ!$C$217","v":0},0,0,0,"http://nav.tn.ru/calculators/flat-roof/?object=TPK9B6AA33C67D3B696FB2FED3B2F383319"]
[null,null,null,null,"9-9075-МПККИТ-01.26",303297,"Проектирование строительных конструкция покрытия Цеха М10. АО Коломенский завод","Московская область, г.Коломна, ул.Партизан, д.42","ЦФО","Нет данных ","Новый расчет",1,1,{"$f":"COUNTIF(ОБЩИЕ_ДАННЫЕ!$J$158:$J$167,\">0\")","v":0},4,{"$f":"ОБЩИЕ_ДАННЫЕ!J161","v":0},{"$f":"ОБЩИЕ_ДАННЫЕ!K161","v":0},{"$f":"IF(Q27=0,\"Раскладка ГИ\",Прайс!F144)","v":"Раскладка ГИ"},0,0,0,{"$f":"IF(AND(ОБЩИЕ_ДАННЫЕ!K161>0,ОБЩИЕ_ДАННЫЕ!M161>0),ОБЩИЕ_ДАННЫЕ!L161*0.25,0)","v":0},{"$f":"IF(AND(ОБЩИЕ_ДАННЫЕ!K161>0,ОБЩИЕ_ДАННЫЕ!N161>0),ОБЩИЕ_ДАННЫЕ!L161*0.25,0)","v":0},0,0,0,0,0,"2026-01-21","2026-01-27",6,"РТП","ПФО",0,"Трофимов Роман Олегович"," ","+7 (980) 164-03-99",0,0,0,0,"-",0,0,0,235601,"trofimov@tn.ru",0,null,0,0,0,0,0,0,0,0,0,0,0,0,"ОЦО КП",{"$f":"ОБЩИЕ_ДАННЫЕ!$C$217","v":0},0,0,0,"http://nav.tn.ru/calculators/flat-roof/?object=TPK9B6AA33C67D3B696FB2FED3B2F383319"]
[null,null,null,null,"9-9075-МПККИТ-01.26",303297,"Проектирование строительных конструкция покрытия Цеха М10. АО Коломенский завод","Московская область, г.Коломна, ул.Партизан, д.42","ЦФО","Нет данных ","Новый расчет",1,1,{"$f":"COUNTIF(ОБЩИЕ_ДАННЫЕ!$J$158:$J$167,\">0\")","v":0},5,{"$f":"ОБЩИЕ_ДАННЫЕ!J162","v":0},{"$f":"ОБЩИЕ_ДАННЫЕ!K162","v":0},{"$f":"IF(Q28=0,\"Раскладка ГИ\",Прайс!F144)","v":"Раскладка ГИ"},0,0,0,{"$f":"IF(AND(ОБЩИЕ_ДАННЫЕ!K162>0,ОБЩИЕ_ДАННЫЕ!M162>0),ОБЩИЕ_ДАННЫЕ!L162*0.25,0)","v":0},{"$f":"IF(AND(ОБЩИЕ_ДАННЫЕ!K162>0,ОБЩИЕ_ДАННЫЕ!N162>0),ОБЩИЕ_ДАННЫЕ!L162*0.25,0)","v":0},0,0,0,0,0,"2026-01-21","2026-01-27",6,"РТП","ПФО",0,"Трофимов Роман Олегович"," ","+7 (980) 164-03-99",0,0,0,0,"-",0,0,0,235601,"trofimov@tn.ru",0,null,0,0,0,0,0,0,0,0,0,0,0,0,"ОЦО КП",{"$f":"ОБЩИЕ_ДАННЫЕ!$C$217","v":0},0,0,0,"http://nav.tn.ru/calculators/flat-roof/?object=TPK9B6AA33C67D3B696FB2FED3B2F383319"]
[null,null,null,null,"9-9075-МПККИТ-01.26",303297,"Проектирование строительных конструкция покрытия Цеха М10. АО Коломенский завод","Московская область, г.Коломна, ул.Партизан, д.42","ЦФО","Нет данных ","Новый расчет",1,1,{"$f":"COUNTIF(ОБЩИЕ_ДАННЫЕ!$J$158:$J$167,\">0\")","v":0},6,{"$f":"ОБЩИЕ_ДАННЫЕ!J163","v":0},{"$f":"ОБЩИЕ_ДАННЫЕ!K163","v":0},{"$f":"IF(Q29=0,\"Раскладка ГИ\",Прайс!F144)","v":"Раскладка ГИ"},0,0,0,{"$f":"IF(AND(ОБЩИЕ_ДАННЫЕ!K163>0,ОБЩИЕ_ДАННЫЕ!M163>0),ОБЩИЕ_ДАННЫЕ!L163*0.25,0)","v":0},{"$f":"IF(AND(ОБЩИЕ_ДАННЫЕ!K163>0,ОБЩИЕ_ДАННЫЕ!N163>0),ОБЩИЕ_ДАННЫЕ!L163*0.25,0)","v":0},0,0,0,0,0,"2026-01-21","2026-01-27",6,"РТП","ПФО",0,"Трофимов Роман Олегович"," ","+7 (980) 164-03-99",0,0,0,0,"-",0,0,0,235601,"trofimov@tn.ru",0,null,0,0,0,0,0,0,0,0,0,0,0,0,"ОЦО КП",{"$f":"ОБЩИЕ_ДАННЫЕ!$C$217","v":0},0,0,0,"http://nav.tn.ru/calculators/flat-roof/?object=TPK9B6AA33C67D3B696FB2FED3B2F383319"]
[null,null,null,null,"9-9075-МПККИТ-01.26",303297,"Проектирование строительных конструкция покрытия Цеха М10. АО Коломенский завод","Московская область, г.Коломна, ул.Партизан, д.42","ЦФО","Нет данных ","Новый расчет",1,1,{"$f":"COUNTIF(ОБЩИЕ_ДАННЫЕ!$J$158:$J$167,\">0\")","v":0},7,{"$f":"ОБЩИЕ_ДАННЫЕ!J164","v":0},{"$f":"ОБЩИЕ_ДАННЫЕ!K164","v":0},{"$f":"IF(Q30=0,\"Раскладка ГИ\",Прайс!F144)","v":"Раскладка ГИ"},0,0,0,{"$f":"IF(AND(ОБЩИЕ_ДАННЫЕ!K164>0,ОБЩИЕ_ДАННЫЕ!M164>0),ОБЩИЕ_ДАННЫЕ!L164*0.25,0)","v":0},{"$f":"IF(AND(ОБЩИЕ_ДАННЫЕ!K164>0,ОБЩИЕ_ДАННЫЕ!N164>0),ОБЩИЕ_ДАННЫЕ!L164*0.25,0)","v":0},0,0,0,0,0,"2026-01-21","2026-01-27",6,"РТП","ПФО",0,"Трофимов Роман Олегович"," ","+7 (980) 164-03-99",0,0,0,0,"-",0,0,0,235601,"trofimov@tn.ru",0,null,0,0,0,0,0,0,0,0,0,0,0,0,"ОЦО КП",{"$f":"ОБЩИЕ_ДАННЫЕ!$C$217","v":0},0,0,0,"http://nav.tn.ru/calculators/flat-roof/?object=TPK9B6AA33C67D3B696FB2FED3B2F383319"]
[null,null,null,null,"9-9075-МПККИТ-01.26",303297,"Проектирование строительных конструкция покрытия Цеха М10. АО Коломенский завод","Московская область, г.Коломна, ул.Партизан, д.42","ЦФО","Нет данных ","Новый расчет",1,1,{"$f":"COUNTIF(ОБЩИЕ_ДАННЫЕ!$J$158:$J$167,\">0\")","v":0},8,{"$f":"ОБЩИЕ_ДАННЫЕ!J165","v":0},{"$f":"ОБЩИЕ_ДАННЫЕ!K165","v":0},{"$f":"IF(Q31=0,\"Раскладка ГИ\",Прайс!F144)","v":"Раскладка ГИ"},0,0,0,{"$f":"IF(AND(ОБЩИЕ_ДАННЫЕ!K165>0,ОБЩИЕ_ДАННЫЕ!M165>0),ОБЩИЕ_ДАННЫЕ!L165*0.25,0)","v":0},{"$f":"IF(AND(ОБЩИЕ_ДАННЫЕ!K165>0,ОБЩИЕ_ДАННЫЕ!N165>0),ОБЩИЕ_ДАННЫЕ!L165*0.25,0)","v":0},0,0,0,0,0,"2026-01-21","2026-01-27",6,"РТП","ПФО",0,"Трофимов Роман Олегович"," ","+7 (980) 164-03-99",0,0,0,0,"-",0,0,0,235601,"trofimov@tn.ru",0,null,0,0,0,0,0,0,0,0,0,0,0,0,"ОЦО КП",{"$f":"ОБЩИЕ_ДАННЫЕ!$C$217","v":0},0,0,0,"http://nav.tn.ru/calculators/flat-roof/?object=TPK9B6AA33C67D3B696FB2FED3B2F383319"]
[null,null,null,null,"9-9075-МПККИТ-01.26",303297,"Проектирование строительных конструкция покрытия Цеха М10. АО Коломенский завод","Московская область, г.Коломна, ул.Партизан, д.42","ЦФО","Нет данных ","Новый расчет",1,1,{"$f":"COUNTIF(ОБЩИЕ_ДАННЫЕ!$J$158:$J$167,\">0\")","v":0},9,{"$f":"ОБЩИЕ_ДАННЫЕ!J166","v":0},{"$f":"ОБЩИЕ_ДАННЫЕ!K166","v":0},{"$f":"IF(Q32=0,\"Раскладка ГИ\",Прайс!F144)","v":"Раскладка ГИ"},0,0,0,{"$f":"IF(AND(ОБЩИЕ_ДАННЫЕ!K166>0,ОБЩИЕ_ДАННЫЕ!M166>0),ОБЩИЕ_ДАННЫЕ!L166*0.25,0)","v":0},{"$f":"IF(AND(ОБЩИЕ_ДАННЫЕ!K166>0,ОБЩИЕ_ДАННЫЕ!N166>0),ОБЩИЕ_ДАННЫЕ!L166*0.25,0)","v":0},0,0,0,0,0,"2026-01-21","2026-01-27",6,"РТП","ПФО",0,"Трофимов Роман Олегович"," ","+7 (980) 164-03-99",0,0,0,0,"-",0,0,0,235601,"trofimov@tn.ru",0,null,0,0,0,0,0,0,0,0,0,0,0,0,"ОЦО КП",{"$f":"ОБЩИЕ_ДАННЫЕ!$C$217","v":0},0,0,0,"http://nav.tn.ru/calculators/flat-roof/?object=TPK9B6AA33C67D3B696FB2FED3B2F383319"]
[null,null,null,null,"9-9075-МПККИТ-01.26",303297,"Проектирование строительных конструкция покрытия Цеха М10. АО Коломенский завод","Московская область, г.Коломна, ул.Партизан, д.42","ЦФО","Нет данных ","Новый расчет",1,1,{"$f":"COUNTIF(ОБЩИЕ_ДАННЫЕ!$J$158:$J$167,\">0\")","v":0},10,{"$f":"ОБЩИЕ_ДАННЫЕ!J167","v":0},{"$f":"ОБЩИЕ_ДАННЫЕ!K167","v":0},{"$f":"IF(Q33=0,\"Раскладка ГИ\",Прайс!F144)","v":"Раскладка ГИ"},0,0,0,{"$f":"IF(AND(ОБЩИЕ_ДАННЫЕ!K167>0,ОБЩИЕ_ДАННЫЕ!M167>0),ОБЩИЕ_ДАННЫЕ!L167*0.25,0)","v":0},{"$f":"IF(AND(ОБЩИЕ_ДАННЫЕ!K167>0,ОБЩИЕ_ДАННЫЕ!N167>0),ОБЩИЕ_ДАННЫЕ!L167*0.25,0)","v":0},0,0,0,0,{"$f":"SUM(S33:AA33)","v":0},"2026-01-21","2026-01-27",6,"РТП","ПФО",0,"Трофимов Роман Олегович"," ","+7 (980) 164-03-99",{"$f":"AM33","v":0},0,{"$f":"AM33","v":0},{"$f":"AN33/0.87","v":0},"-",0,0,0,235601,"trofimov@tn.ru",0,null,0,0,0,0,0,0,0,0,0,0,0,0,"ОЦО КП",{"$f":"ОБЩИЕ_ДАННЫЕ!$C$217","v":0},0,0,0,"http://nav.tn.ru/calculators/flat-roof/?object=TPK9B6AA33C67D3B696FB2FED3B2F383319"]
[null,null,null,null,"9-9075-МПККИТ-01.26",303297,"Проектирование строительных конструкция покрытия Цеха М10. АО Коломенский завод","Московская область, г.Коломна, ул.Партизан, д.42","ЦФО","Нет данных ","Новый расчет",1,1,0,0,{"$f":"$P$3+$P$4","v":24170},0,"МАТЕРИАЛЫ",{"$f":"INDEX(Деление_СБЕ[#Data],MATCH(\"Материалы_основные\",Деление_СБЕ[Расчет материалов],0),MATCH(\"КВ\",Деление_СБЕ[#Headers],0))","v":3321.2272799999996},{"$f":"INDEX(Деление_СБЕ[#Data],MATCH(\"Материалы_основные\",Деление_СБЕ[Расчет материалов],0),MATCH(\"XPS\",Деление_СБЕ[#Headers],0))","v":0},{"$f":"INDEX(Деление_СБЕ[#Data],MATCH(\"Материалы_основные\",Деление_СБЕ[Расчет материалов],0),MATCH(\"PIR\",Деление_СБЕ[#Headers],0))","v":202.91},{"$f":"INDEX(Деление_СБЕ[#Data],MATCH(\"Материалы_основные\",Деление_СБЕ[Расчет материалов],0),MATCH(\"ПМ\",Деление_СБЕ[#Headers],0))","v":0},{"$f":"INDEX(Деление_СБЕ[#Data],MATCH(\"Материалы_основные\",Деление_СБЕ[Расчет материалов],0),MATCH(\"РМ\",Деление_СБЕ[#Headers],0))","v":65614.092839999998},{"$f":"INDEX(Деление_СБЕ[#Data],MATCH(\"Материалы_основные\",Деление_СБЕ[Расчет материалов],0),MATCH(\"МиСХ\",Деление_СБЕ[#Headers],0))","v":5759.47},{"$f":"INDEX(Деление_СБЕ[#Data],MATCH(\"Материалы_основные\",Деление_СБЕ[Расчет материалов],0),MATCH(\"Плантер\",Деление_СБЕ[#Headers],0))","v":0},0,0,{"$f":"IF(SUM(S34:AA34)=0,0,1)","v":1},"2026-01-21","2026-01-27",6,"РТП","ПФО",0,"Трофимов Роман Олегович"," ","+7 (980) 164-03-99",0,"основные ",0,0,"-",0,0,0,235601,"trofimov@tn.ru",0,null,0,0,0,0,0,0,0,0,0,0,0,0,"ОЦО КП",{"$f":"ОБЩИЕ_ДАННЫЕ!$C$217","v":0},0,0,0,"http://nav.tn.ru/calculators/flat-roof/?object=TPK9B6AA33C67D3B696FB2FED3B2F383319"]
[null,null,null,null,"9-9075-МПККИТ-01.26",303297,"Проектирование строительных конструкция покрытия Цеха М10. АО Коломенский завод","Московская область, г.Коломна, ул.Партизан, д.42","ЦФО","Нет данных ","Новый расчет",1,1,0,0,24170,0,"МАТЕРИАЛЫ",0,0,0,0,{"$f":"INDEX(Деление_СБЕ[#Data],MATCH(\"материалы_паробарьер\",Деление_СБЕ[Расчет материалов],0),MATCH(\"РМ\",Деление_СБЕ[#Headers],0))","v":30694.055700000001},0,0,0,0,{"$f":"IF(SUM(S35:AA35)=0,0,1)","v":1},"2026-01-21","2026-01-27",6,"РТП","ПФО",0,"Трофимов Роман Олегович"," ","+7 (980) 164-03-99",0,"паробарьер",0,0,"-",0,0,0,235601,"trofimov@tn.ru",0,null,0,0,0,0,0,0,0,0,0,0,0,0,"ОЦО КП",{"$f":"ОБЩИЕ_ДАННЫЕ!$C$217","v":0},0,0,0,"http://nav.tn.ru/calculators/flat-roof/?object=TPK9B6AA33C67D3B696FB2FED3B2F383319"]
[null,null,null,null,"9-9075-МПККИТ-01.26",303297,"Проектирование строительных конструкция покрытия Цеха М10. АО Коломенский завод","Московская область, г.Коломна, ул.Партизан, д.42","ЦФО","Нет данных ","Новый расчет",1,1,0,0,24170,0,"МАТЕРИАЛЫ",0,0,0,0,{"$f":"INDEX(Деление_СБЕ[#Data],MATCH(\"материалы_фикс и соло\",Деление_СБЕ[Расчет материалов],0),MATCH(\"РМ\",Деление_СБЕ[#Headers],0))","v":0},0,0,0,0,{"$f":"IF(SUM(S36:AA36)=0,0,1)","v":0},"2026-01-21","2026-01-27",6,"РТП","ПФО",0,"Трофимов Роман Олегович"," ","+7 (980) 164-03-99",0,"фикс и соло",0,0,"-",0,0,0,235601,"trofimov@tn.ru",0,null,0,0,0,0,0,0,0,0,0,0,0,0,"ОЦО КП",{"$f":"ОБЩИЕ_ДАННЫЕ!$C$217","v":0},0,0,0,"http://nav.tn.ru/calculators/flat-roof/?object=TPK9B6AA33C67D3B696FB2FED3B2F383319"]
[null,null,null,null,"9-9075-МПККИТ-01.26",303297,"Проектирование строительных конструкция покрытия Цеха М10. АО Коломенский завод","Московская область, г.Коломна, ул.Партизан, д.42","ЦФО","Нет данных ","Новый расчет",1,1,0,0,24170,0,"МАТЕРИАЛЫ",{"$f":"INDEX(Деление_СБЕ[#Data],MATCH(\"Клины\",Деление_СБЕ[Расчет материалов],0),MATCH(\"КВ\",Деление_СБЕ[#Headers],0))","v":285.93720000000002},{"$f":"INDEX(Деление_СБЕ[#Data],MATCH(\"Клины\",Деление_СБЕ[Расчет материалов],0),MATCH(\"XPS\",Деление_СБЕ[#Headers],0))","v":0},{"$f":"INDEX(Деление_СБЕ[#Data],MATCH(\"Клины\",Деление_СБЕ[Расчет материалов],0),MATCH(\"PIR\",Деление_СБЕ[#Headers],0))","v":0},0,0,0,0,0,0,{"$f":"IF(SUM(S37:AA37)=0,0,1)","v":1},"2026-01-21","2026-01-27",6,"РТП","ПФО",0,"Трофимов Роман Олегович"," ","+7 (980) 164-03-99",0,"клины",0,0,"-",0,0,0,235601,"trofimov@tn.ru",0,null,0,0,0,0,0,0,0,0,0,0,0,0,"ОЦО КП",{"$f":"ОБЩИЕ_ДАННЫЕ!$C$217","v":0},0,0,0,"http://nav.tn.ru/calculators/flat-roof/?object=TPK9B6AA33C67D3B696FB2FED3B2F383319"]
[null,null,null,null,"9-9075-МПККИТ-01.26",303297,"Проектирование строительных конструкция покрытия Цеха М10. АО Коломенский завод","Московская область, г.Коломна, ул.Партизан, д.42","ЦФО","Нет данных ","Новый расчет",1,1,0,0,24170,0,"МАТЕРИАЛЫ",{"$f":"INDEX(Деление_СБЕ[#Data],MATCH(\"крепеж\",Деление_СБЕ[Расчет материалов],0),MATCH(\"КВ\",Деление_СБЕ[#Headers],0))","v":64020},{"$f":"INDEX(Деление_СБЕ[#Data],MATCH(\"крепеж\",Деление_СБЕ[Расчет материалов],0),MATCH(\"XPS\",Деление_СБЕ[#Headers],0))","v":0},0,0,0,0,0,0,0,{"$f":"IF(SUM(S38:AA38)=0,0,1)","v":1},"2026-01-21","2026-01-27",{"$f":"IFERROR(AD38-AC38,0)","v":6},"РТП",{"$f":"AG37","v":"ПФО"},0,"Трофимов Роман Олегович"," ","+7 (980) 164-03-99",0,"крепеж",0,0,"-",0,0,0,235601,"trofimov@tn.ru",0,null,0,0,0,0,0,0,0,0,0,0,0,0,"ОЦО КП",{"$f":"ОБЩИЕ_ДАННЫЕ!$C$217","v":0},0,0,0,"http://nav.tn.ru/calculators/flat-roof/?object=TPK9B6AA33C67D3B696FB2FED3B2F383319"]
[null,null,null,null,"9-9075-МПККИТ-01.26",303297,"Проектирование строительных конструкция покрытия Цеха М10. АО Коломенский завод","Московская область, г.Коломна, ул.Партизан, д.42","ЦФО","Нет данных ","Новый расчет",1,1,0,0,24170,0,"Система",0,0,0,0,0,0,0,0,0,{"$f":"IF((COUNTIF(AY39:BH39,\"<>0\")>0),1,0)","v":1},"2026-01-21","2026-01-27",{"$f":"IFERROR(AD39-AC39,0)","v":6},"РТП",{"$f":"AG38","v":"ПФО"},0,"Трофимов Роман Олегович"," ","+7 (980) 164-03-99",0,0,0,0,"-",0,0,0,235601,"trofimov@tn.ru",0,null,0,{"$f":"Свойства_расчета!$E3","v":"Пользовательская система"},{"$f":"Свойства_расчета!$E4","v":0},{"$f":"Свойства_расчета!$E5","v":0},{"$f":"Свойства_расчета!$E6","v":0},{"$f":"Свойства_расчета!$E7","v":0},{"$f":"Свойства_расчета!$E8","v":0},{"$f":"Свойства_расчета!$E9","v":0},{"$f":"Свойства_расчета!$E10","v":0},{"$f":"Свойства_расчета!$E11","v":0},{"$f":"Свойства_расчета!$E12","v":0},0,"ОЦО КП",{"$f":"ОБЩИЕ_ДАННЫЕ!$C$217","v":0},0,0,{"$f":"Свойства_расчета!G3","v":"Бетон"},"http://nav.tn.ru/calculators/flat-roof/?object=TPK9B6AA33C67D3B696FB2FED3B2F383319"]

{"sheet":"ОЦО","index":10,"n_rows":0,"n_cols":0,"rows_kept":0,"cut":false,"hidden":true,"merged":[]}

{"sheet":"Адм","index":11,"n_rows":118,"n_cols":59,"rows_kept":118,"cut":false,"hidden":true,"merged":[]}
[null,null,null,null,null,null,null,null,null,null,null,null,null,null,null,null,null,null,null,null,null,null,null,null,null,null,null,null,null,null,null,"ТАБЛИЦА ПОДБОРА КРЕПЕЖА ДЛЯ крепления реек в парапет",null,null,null,null,null,null,null,null,"ТАБЛИЦА ПОДБОРА КРЕПЕЖА ДЛЯ ГЛАДИ",null,null,null,null,null,null,null,null,null,"ТАБЛИЦА ПОДБОРА КРЕПЕЖА ДЛЯ КЛИНОВИДНОЙ  ИЗОЛЯЦИИ"]
[null,"Клин_ОУ",null,"Клин_КУ",null,"ИнфО","КВ 1.7% НП","КВ 1.7% ВЭ","КВ 2.1% НП","КВ 2.1% ВЭ","XPS 1.7%","XPS 2.1%","XPS 2.1%+","PIR 1.7% Мех","PIR 1.7% Клей","PIR EU 2.1% AL","КВ EU 40 2.5%","КВ EU 50 2.5%","КВ EU 40 3.0%","КВ EU 50 3.0%",null,null,null,"Допустимая нехватка:",1.25,null,null,"Саморез","В бетон","В профлист",null,"Высота крепежа","Бетон_телескоп","Бетон_саморез","Профлист_телескоп","Профлист_саморез",null,null,null,null,"Высота крепежа","Бетон(6,3)_Телескоп","Бетон(6,3)_Саморез","Бетон(4,8)_Телескоп","Бетон(4,8)_Саморез","Профлист_Телескоп","Профлист_Саморез","Профлист(Гарант +)_Телескоп","Профлист(Гарант +)_Саморез",null,"Высота крепежа","Бетон(6,3)_Телескоп","Бетон(6,3)_Саморез","Бетон(4,8)_Телескоп","Бетон(4,8)_Саморез","Профлист_Телескоп","Профлист_Саморез","Профлист(Гарант +)_Телескоп","Профлист(Гарант +)_Саморез"]
[null,"НЕТ",null,"НЕТ",null,"Плита 1 (полн)","ТЕХНОРУФ Н ПРОФ КЛИН (1,7% элемент А)","ТЕХНОРУФ В ЭКСТРА КЛИН (1,7% элемент А)","ТЕХНОРУФ Н ПРОФ КЛИН (2,1% элемент А)","ТЕХНОРУФ В ЭКСТРА КЛИН (2,1% элемент А)","XPS ТехноНИКОЛЬ CARBON PROF SLOPE (1,7% элемент А)","XPS ТехноНИКОЛЬ CARBON PROF SLOPE (2,1% элемент А)","XPS ТехноНИКОЛЬ CARBON PROF SLOPE (2,1%+ элемент А)","LOGICPIR SLOPE СХ/СХ (1,7% элемент А)","LOGICPIR SLOPE СХМ/СХМ (1,7% элемент А)","PIR SLOPE (2,1% AL/AL элемент А)","TECHNOROOF BASE 40 TAPERED 1200x1000x10-40 (A 2,5%)","TECHNOROOF TOP 50 TAPERED 1200x1000x10-40 (A 2,5%)","TECHNOROOF BASE 40 TAPERED 1000x1200x10-40 (A 3,0%)","TECHNOROOF TOP 50 TAPERED 1000x1200x10-40 (A 3,0%)",null,null,null,null,null,null,null,50,"Саморез остроконечный ТехноНИКОЛЬ 4,8х 50 мм",null,null,0,null,"нет",null,"нет",null,null,null,null,0,"ТЭ",80,"ТЭ",50,"ТЭ",70,"ТЭ",70,null,0,"ТЭ",80,"ТЭ",50,"ТЭ",70,"ТЭ",70]
[null,"КВ 1.7% НП",null,"КВ 4.2% НП",null,"Плита 2 (полн)","ТЕХНОРУФ Н ПРОФ КЛИН (1,7% элемент В)","ТЕХНОРУФ В ЭКСТРА КЛИН (1,7% элемент В)","ТЕХНОРУФ Н ПРОФ КЛИН (2,1% элемент В)","ТЕХНОРУФ В ЭКСТРА КЛИН (2,1% элемент В)","XPS ТехноНИКОЛЬ CARBON PROF SLOPE (1,7% элемент В)","XPS ТехноНИКОЛЬ CARBON PROF SLOPE (2,1% элемент В)","XPS ТехноНИКОЛЬ CARBON PROF SLOPE (2,1%+ элемент В)","LOGICPIR SLOPE СХ/СХ (1,7% элемент В)","LOGICPIR SLOPE СХМ/СХМ (1,7% элемент В)","PIR SLOPE (2,1% AL/AL элемент В)","TECHNOROOF BASE 40 TAPERED 1200x1000x40-70 (B 2,5%)","TECHNOROOF TOP 50 TAPERED 1200x1000x40-70 (B 2,5%)","TECHNOROOF BASE 40 TAPERED 1000x1200x40-70 (B 3,0%)","TECHNOROOF TOP 50 TAPERED 1000x1200x40-70 (B 3,0%)",null,null,null,null,null,null,null,60,null,"Саморез сверлоконечный ТехноНИКОЛЬ 4,8х 60 мм",null,10,null,null,null,null,null,null,null,null,10,"ТЭ",80,"ТЭ",70,"ТЭ",70,"ТЭ",70,null,10,"ТЭ",80,"ТЭ",70,"ТЭ",70,"ТЭ",70]
[null,"КВ 1.7% ВЭ",null,"КВ 4.2% ВЭ",null,"Плита 3 (полн)","ТЕХНОРУФ Н ПРОФ КЛИН (1,7% элемент С40 мм)","ТЕХНОРУФ В ЭКСТРА КЛИН (1,7% элемент С40 мм)","ТЕХНОРУФ Н ПРОФ КЛИН (2,1% элемент С50 мм)","ТЕХНОРУФ В ЭКСТРА КЛИН (2,1% элемент С50 мм)","XPS ТехноНИКОЛЬ CARBON PROF (40 мм)",{"$f":"IF(#REF!>0,\"XPS ТехноНИКОЛЬ CARBON ECO (50 мм)\",\"XPS ТехноНИКОЛЬ CARBON PROF (50 мм)\")","v":{"$error":"#REF!"}},{"$f":"IF(#REF!>0,\"XPS ТехноНИКОЛЬ CARBON ECO (50 мм)\",\"XPS ТехноНИКОЛЬ CARBON PROF (50 мм)\")","v":{"$error":"#REF!"}},"LOGICPIR SLOPE СХ/СХ (элемент С40 мм)","LOGICPIR SLOPE СХМ/СХМ (элемент С40 мм)","PIR SLOPE (2,1% AL/AL элемент C50 мм)","TECHNOROOF BASE 40 1200x1000x60 (2 slabs) Element C","TECHNOROOF TOP 50 1200x1000x60 (2 slabs) Element C","TECHNOROOF BASE 40 1200x1000x60 (2 slabs) Element C","TECHNOROOF TOP 50 1200x1000x60 (2 slabs) Element C",null,null,null,null,null,null,null,70,"Саморез остроконечный ТехноНИКОЛЬ 4,8х 70 мм","Саморез сверлоконечный ТехноНИКОЛЬ 4,8х 70 мм",null,20,null,null,null,null,null,null,null,null,20,"ТЭ",80,"ТЭ",70,"ТЭ",70,"ТЭ",70,null,20,"ТЭ",80,"ТЭ",70,"ТЭ",70,"ТЭ",70]
[null,"КВ 2.1% НП",null,"КВ 4.2% НП (15)",null,"Плита 1 (кор)","Плита А","Плита А","Плита А","Плита А","Плита А","Плита А","Плита А","Плита А","Плита А","Плита А","Плита А","Плита А","Плита А","Плита А",null,null,null,null,null,null,null,80,"Саморез остроконечный ТехноНИКОЛЬ 4,8х 80 мм","Саморез сверлоконечный ТехноНИКОЛЬ 4,8х 80 мм",null,30,null,80,null,60,null,null,null,null,30,"ТЭ",80,"ТЭ",80,"ТЭ",70,"ТЭ",70,null,30,"ТЭ",80,"ТЭ",80,"ТЭ",70,"ТЭ",70]
[null,"КВ 2.1% ВЭ",null,"КВ 4.2% ВЭ (15)",null,"Плита 2 (кор)","Плита В","Плита В","Плита В","Плита В","Плита В","Плита В","Плита В","Плита В","Плита В","Плита В","Плита В","Плита В","Плита В","Плита В",null,null,null,null,null,null,null,100,"Саморез остроконечный ТехноНИКОЛЬ 4,8х 100 мм","Саморез сверлоконечный ТехноНИКОЛЬ 4,8х 100 мм",null,40,null,80,null,60,null,null,null,null,40,20,90,20,80,20,60,20,80,null,40,20,90,"ТЭ",120,"ТЭ",100,"ТЭ",100]
[null,"XPS 1.7%",null,"XPS 3.4%",null,"Плита 3 (кор)","Плита С40","Плита С40","Плита C50","Плита C50","Плита D40","Плита D50","Плита D50","Плита C40","Плита C40","Плита C50","Плита C60","Плита C60","Плита C60","Плита C60",null,null,null,null,null,null,null,120,"Саморез остроконечный ТехноНИКОЛЬ 4,8х 120 мм","Саморез сверлоконечный ТехноНИКОЛЬ 4,8х 120 мм",null,50,null,100,null,80,null,null,null,null,45,20,90,20,100,20,80,20,100,null,50,20,110,"ТЭ",160,"ТЭ",120,"ТЭ",120]
[null,"XPS 2.1%",null,"XPS 4.2%",null,"Объём 1",2.8799999999999999E-2,2.8799999999999999E-2,3.0599999999999999E-2,3.0599999999999999E-2,1.44E-2,1.26E-2,1.6199999999999999E-2,0.72,0.72,1.44,0.03,0.03,0.03,0.03,null,null,null,null,null,null,null,160,"Саморез остроконечный ТехноНИКОЛЬ 4,8х 160 мм","Саморез сверлоконечный ТехноНИКОЛЬ 4,8х 160 мм",null,60,null,100,null,80,null,null,null,null,50,20,90,20,100,20,80,20,100,null,60,20,110,20,120,20,100,20,100]
[null,"XPS 2.1%+",null,"XPS 4.2%+",null,"Объём 2",4.3200000000000002E-2,4.3200000000000002E-2,4.8599999999999997E-2,4.8599999999999997E-2,2.8799999999999999E-2,3.0599999999999999E-2,3.4200000000000001E-2,0.72,0.72,1.44,6.6000000000000003E-2,6.6000000000000003E-2,6.6000000000000003E-2,6.6000000000000003E-2,null,null,null,null,null,null,null,200,"Саморез сверлоконечный ТехноНИКОЛЬ 4,8х 200 мм","Саморез сверлоконечный ТехноНИКОЛЬ 4,8х 200 мм",null,70,null,120,null,100,null,null,null,null,55,20,90,20,100,20,80,20,100,null,70,50,110,20,160,20,120,20,120]
[null,"PIR 1.7% Мех",null,"XPS 8.3%",null,"Объём 3",2.8799999999999999E-2,2.8799999999999999E-2,3.5999999999999997E-2,3.5999999999999997E-2,2.8799999999999999E-2,3.5999999999999997E-2,3.5999999999999997E-2,0.72,0.72,1.44,7.1999999999999995E-2,7.1999999999999995E-2,7.1999999999999995E-2,7.1999999999999995E-2,null,null,null,null,null,null,null,300,null,null,null,80,null,120,null,100,null,null,null,null,60,20,90,20,100,20,80,20,100,null,80,50,110,20,160,20,120,20,120]
[null,"PIR 1.7% Клей",null,"PIR 3.3% J Мех",null,"Ед. изм","м3","м3","м3","м3","м3","м3","м3","м2","м2","м2","м3","м3","м3","м3",null,null,null,null,null,null,null,null,null,null,null,90,null,160,null,120,null,null,null,null,65,20,110,20,120,20,100,20,120,null,90,50,110,20,160,20,160,20,160]
[null,"PIR EU 2.1% AL",null,"PIR 3.3% J+K Мех",null,null,null,null,null,null,null,null,null,null,null,null,null,null,null,null,null,null,null,null,null,null,null,null,null,null,null,100,null,160,null,120,null,null,null,null,70,20,110,20,120,20,100,20,120,null,100,80,110,60,120,60,100,60,100]
[null,"КВ EU 40 2.5%",null,"PIR 3.3% J Клей",null,"ИнфК","КВ 4.2% НП","КВ 4.2% ВЭ","КВ 4.2% НП (15)","КВ 4.2% ВЭ (15)","XPS 3.4%","XPS 4.2%","XPS 4.2%+","XPS 8.3%","PIR 3.3% J Мех","PIR 3.3% J+K Мех","PIR 3.3% J Клей","PIR 3.3% J+K Клей","PIR EU 3.4% J AL","PIR EU 3.4% J GTM","PIR EU 3.4% J+K GTM","КВ EU 40 3.0%","КВ EU 50 3.0%","КВ EU 40 5.0%","КВ EU 50 5.0%","PIR 3.3% J1+K1 Б/О",null,null,null,null,null,110,null,160,null,160,null,null,null,null,75,20,110,20,120,20,100,20,120,null,110,80,110,60,160,60,120,60,120]
[null,"КВ EU 50 2.5%",null,"PIR 3.3% J+K Клей",null,"Плита 1 (полн)","ТЕХНОРУФ Н ПРОФ КЛИН (4,2% элемент А)","ТЕХНОРУФ В ЭКСТРА КЛИН (4,2% элемент А)","ТЕХНОРУФ Н ПРОФ КЛИН (4,2% элемент А) (15-40 мм)","ТЕХНОРУФ В ЭКСТРА КЛИН (4,2% элемент А) (15-40 мм)","XPS ТехноНИКОЛЬ CARBON PROF SLOPE (3,4% элемент J)","XPS ТехноНИКОЛЬ CARBON PROF SLOPE (4,2% элемент J)","XPS ТехноНИКОЛЬ CARBON PROF SLOPE (4,2%+ элемент J)","XPS ТехноНИКОЛЬ CARBON PROF SLOPE (8,3% элемент М)","LOGICPIR SLOPE СХ/СХ (3,4% элемент J)","LOGICPIR SLOPE СХ/СХ (3,4% элемент J)","LOGICPIR SLOPE СХМ/СХМ (3,4% элемент J)","LOGICPIR SLOPE СХМ/СХМ (3,4% элемент J)","PIR SLOPE (3,4% AL/AL элемент J)","PIR SLOPE (3,4% GTM элемент J)","PIR SLOPE (3,4% GTM элемент J)","TECHNOROOF BASE 40 TAPERED 1000x1200x10-40 (A 3,0%)","TECHNOROOF TOP 50 TAPERED 1000x1200x10-40 (A 3,0%)","TECHNOROOF BASE 40 TAPERED 600x1000x10-40 (A 5,0%)","TECHNOROOF TOP 50 TAPERED 600x1000x10-40 (A 5,0%)","LOGICPIR SLOPE Б/О (3,4% элемент J1)",null,"Телескоп","Название",null,null,120,null,160,null,160,null,null,null,null,80,60,90,60,80,60,60,60,80,null,120,80,110,80,120,80,100,80,100]
[null,"КВ EU 40 3.0%",null,"PIR 3.3% J1+K1 Б/О",null,"Плита 2 (полн)","ТЕХНОРУФ Н ПРОФ КЛИН (4,2% элемент В)","ТЕХНОРУФ В ЭКСТРА КЛИН (4,2% элемент В)","ТЕХНОРУФ Н ПРОФ КЛИН (4,2% элемент В) (40-65 мм)","ТЕХНОРУФ В ЭКСТРА КЛИН (4,2% элемент В) (40-65 мм)","XPS ТехноНИКОЛЬ CARBON PROF SLOPE (3,4% элемент K)","XPS ТехноНИКОЛЬ CARBON PROF SLOPE (4,2% элемент K)","XPS ТехноНИКОЛЬ CARBON PROF SLOPE (4,2%+ элемент K)","XPS ТехноНИКОЛЬ CARBON PROF (50 мм)","LOGICPIR SLOPE СХ/СХ (элемент С40 мм)","LOGICPIR SLOPE СХ/СХ (3,4% элемент K)","LOGICPIR SLOPE СХМ/СХМ (элемент С40 мм)","LOGICPIR SLOPE СХМ/СХМ (3,4% элемент K)","PIR SLOPE (AL/AL элемент C40 мм)","PIR SLOPE (GTM элемент C40 мм)","PIR SLOPE (3,4% GTM элемент K)","TECHNOROOF BASE 40 TAPERED 1000x1200x40-70 (B 3,0%)","TECHNOROOF TOP 50 TAPERED 1000x1200x40-70 (B 3,0%)","TECHNOROOF BASE 40 TAPERED 600x1000x40-70 (B 5,0%)","TECHNOROOF TOP 50 TAPERED 600x1000x40-70 (B 5,0%)","LOGICPIR SLOPE Б/О (3,4% элемент K1)",null,20,"Телескопический крепеж ТехноНИКОЛЬ (20 мм)",null,null,130,null,200,null,160,null,null,null,null,85,60,90,60,100,60,80,60,100,null,130,100,110,80,160,80,120,80,120]
[null,"КВ EU 50 3.0%",null,"PIR EU 3.4% J AL",null,"Плита 3 (полн)","ТЕХНОРУФ Н ПРОФ КЛИН (4,2% элемент С50 мм)","ТЕХНОРУФ В ЭКСТРА КЛИН (4,2% элемент С50 мм)","ТЕХНОРУФ Н ПРОФ КЛИН (4,2% элемент С50 мм)","ТЕХНОРУФ В ЭКСТРА КЛИН (4,2% элемент С50 мм)","XPS ТехноНИКОЛЬ CARBON PROF (40 мм)",{"$f":"IF(#REF!>0,\"XPS ТехноНИКОЛЬ CARBON ECO (50 мм)\",\"XPS ТехноНИКОЛЬ CARBON PROF (50 мм)\")","v":{"$error":"#REF!"}},{"$f":"IF(#REF!>0,\"XPS ТехноНИКОЛЬ CARBON ECO (50 мм)\",\"XPS ТехноНИКОЛЬ CARBON PROF (50 мм)\")","v":{"$error":"#REF!"}},"-","-","LOGICPIR SLOPE СХ/СХ (элемент С80 мм)","-","LOGICPIR SLOPE СХМ/СХМ (элемент С80 мм)","-","-","PIR SLOPE (GTM элемент С80 мм)","TECHNOROOF BASE 40 1200x1000x60 (2 slabs) Element C","TECHNOROOF TOP 50 1200x1000x60 (2 slabs) Element C","TECHNOROOF BASE 40 1000x600x60 Element C","TECHNOROOF TOP 50 1000x600x60 Element C","LOGICPIR SLOPE СХ/СХ (элемент С40 мм)",null,50,"Телескопический крепеж ТехноНИКОЛЬ (50 мм)",null,null,140,null,200,null,160,null,null,null,null,90,60,90,60,100,60,80,60,100,null,140,100,110,100,120,100,100,100,100]
[null,null,null,"PIR EU 3.4% J GTM",null,"Плита 1 (кор)","Плита А","Плита А","Плита А","Плита А","Плита J","Плита J","Плита J","Плита М","Плита J","Плита J","Плита J","Плита J","Плита J","Плита J","Плита J","Плита А","Плита А","Плита А","Плита А","Плита J1",null,60,"Телескопический крепеж ТехноНИКОЛЬ (60 мм)",null,null,150,null,200,null,200,null,null,null,null,95,60,90,60,100,60,80,60,100,null,150,120,110,100,160,100,120,100,120]
[null,null,null,"PIR EU 3.4% J+K GTM",null,"Плита 2 (кор)","Плита В","Плита В","Плита В","Плита В","Плита K","Плита K","Плита K","Плита D50","Плита C40","Плита K","Плита C40","Плита K","Плита C40","Плита C40","Плита K","Плита В","Плита В","Плита В","Плита В","Плита K1",null,80,"Телескопический крепеж ТехноНИКОЛЬ (80 мм)",null,null,160,null,200,null,200,null,null,null,null,100,80,90,80,80,80,60,80,80,null,160,120,110,120,120,120,100,120,100]
[null,null,null,"КВ EU 40 3.0%",null,"Плита 3 (кор)","Плита C50","Плита C50","Плита C50","Плита C50","Плита D40","Плита D50","Плита D50","-","-","Плита C80","-","Плита C80","-","-","Плита C80","Плита C60","Плита C60","Плита C60","Плита C60","Плита C40",null,100,"Телескопический крепеж ТехноНИКОЛЬ (100 мм)",null,null,170,null,null,null,200,null,null,null,null,105,80,90,80,100,80,80,80,100,null,170,140,110,130,120,130,100,130,100]
[null,null,null,"КВ EU 50 3.0%",null,"Объём 1",3.0599999999999999E-2,3.0599999999999999E-2,1.9800000000000002E-2,1.9800000000000002E-2,1.44E-2,1.26E-2,1.6199999999999999E-2,2.52E-2,0.72,0.72,0.72,0.72,1.44,0.72,0.72,0.03,0.03,1.4999999999999999E-2,1.4999999999999999E-2,0.64960000000000007,null,120,"Телескопический крепеж ТехноНИКОЛЬ (120 мм)",null,null,180,null,null,null,200,null,null,null,null,110,80,90,80,100,80,80,80,100,null,180,140,110,140,120,140,100,140,100]
[null,null,null,"КВ EU 40 5.0%",null,"Объём 2",4.8599999999999997E-2,4.8599999999999997E-2,3.78E-2,3.78E-2,2.8799999999999999E-2,3.0599999999999999E-2,3.4200000000000001E-2,3.5999999999999997E-2,0.72,0.72,0.72,0.72,1.44,0.72,0.72,6.6000000000000003E-2,6.6000000000000003E-2,3.3000000000000002E-2,3.3000000000000002E-2,0.64960000000000007,null,130,"Телескопический крепеж ТехноНИКОЛЬ (130 мм)",null,null,null,null,null,null,null,null,null,null,null,115,80,90,80,100,80,80,80,100,null,190,150,110,150,120,150,100,150,100]
[null,null,null,"КВ EU 50 5.0%",null,"Объём 3",3.5999999999999997E-2,3.5999999999999997E-2,3.5999999999999997E-2,3.5999999999999997E-2,2.8799999999999999E-2,3.5999999999999997E-2,3.5999999999999997E-2,0,0,0.72,0,0.72,0,0,0.72,7.1999999999999995E-2,7.1999999999999995E-2,3.5999999999999997E-2,3.5999999999999997E-2,0.72,null,140,"Телескопический крепеж ТехноНИКОЛЬ (140 мм)",null,null,null,null,null,null,null,null,null,null,null,120,100,90,100,80,100,60,100,80,null,200,150,110,150,160,150,120,150,120]
[null,null,null,null,null,"Ед. изм","м3","м3","м3","м3","м3","м3","м3","м3","м2","м2","м2","м2","м2","м2","м2","м3","м3","м3","м3","м2",null,150,"Телескопический крепеж ТехноНИКОЛЬ (150 мм)",null,null,null,null,null,null,null,null,null,null,null,125,100,90,100,100,100,80,100,100,null,210,170,110,170,120,170,100,170,100]
[null,null,null,null,null,null,null,null,null,null,null,null,null,null,null,null,null,null,null,null,null,null,null,null,null,null,null,170,"Телескопический крепеж ТехноНИКОЛЬ (170 мм)",null,null,null,null,null,null,null,null,null,null,null,130,100,90,100,100,100,80,100,100,null,220,180,110,180,120,180,100,180,100]
[null,null,null,null,null,"Тип конструкции",null,"Крыша","Крыша стилобата",null,null,null,null,null,null,null,null,null,null,null,null,null,null,null,null,null,null,180,"Телескопический крепеж ТехноНИКОЛЬ (180 мм)",null,null,null,null,null,null,null,null,null,null,null,135,100,90,100,100,100,80,100,100,null,230,180,110,180,160,180,120,180,120]
[null,null,null,null,null,null,null,null,null,null,null,null,null,null,null,null,"Да_Нет",null,null,null,null,null,null,null,null,null,null,200,"Телескопический крепеж ТехноНИКОЛЬ (200 мм)",null,null,null,null,null,null,null,null,null,null,null,140,120,90,120,80,120,60,120,80,null,240,180,160,200,120,200,100,200,100]
[null,"Основание","Толщина",null,null,"Крыша",null,"Плоская крыша - неэксплуатируемая","Крыша стилобата",null,null,null,null,null,null,null,"да",null,null,null,null,null,null,null,null,null,null,220,"Телескопический крепеж ТехноНИКОЛЬ (220 мм)",null,null,null,null,null,null,null,null,null,null,null,145,120,90,120,100,120,80,120,100,null,250,200,120,200,160,200,120,200,120]
[null,"НЕТ",0,null,null,"Крыша стилобата",null,"Плоская крыша - эксплуатируемая",null,null,null,null,null,null,null,null,"нет",null,null,null,null,null,null,null,null,null,null,240,"Телескопический крепеж ТехноНИКОЛЬ (240 мм)",null,null,null,null,null,null,null,null,null,null,null,150,120,90,130,80,130,60,130,80,null,260,200,160,220,120,220,100,220,100]
[null,"АЦЛ 6 мм",6,null,null,null,null,"Скатная крыша",null,null,null,null,null,null,null,null,null,null,null,null,null,null,null,null,null,null,null,260,"Телескопический крепеж ТехноНИКОЛЬ (260 мм)",null,null,null,null,null,null,null,null,null,null,null,155,120,90,130,100,130,80,130,100,null,270,220,120,220,160,220,120,220,120]
[null,"АЦЛ 8 мм",8,null,null,null,null,null,null,null,null,null,null,null,null,null,null,null,null,null,null,null,null,null,null,null,null,300,"Телескопический крепеж ТехноНИКОЛЬ (300 мм)",null,null,null,null,null,null,null,null,null,null,null,160,140,90,140,80,140,60,140,80,null,280,220,160,240,120,240,100,240,100]
[null,"АЦЛ 10 мм",10,null,null,null,null,null,null,null,null,null,null,null,null,null,null,null,null,null,null,null,null,null,null,null,null,350,"Телескопический крепеж ТехноНИКОЛЬ (350 мм)",null,null,null,null,null,null,null,null,null,null,null,165,140,90,140,100,140,80,140,100,null,290,220,160,240,160,240,120,240,120]
[null,"ЦСП 8 мм",8,null,null,null,null,null,null,null,null,null,null,null,null,null,null,null,null,null,null,null,null,null,null,null,null,425,"Телескопический крепеж (425 мм)",null,null,null,null,null,null,null,null,null,null,null,170,150,90,150,80,150,60,150,80,null,300,240,160,260,120,260,100,260,100]
[null,"ЦСП 10 мм",10,null,null,null,null,null,null,null,null,null,null,null,null,null,null,null,null,null,null,null,null,null,null,null,null,null,null,null,null,null,null,null,null,null,null,null,null,null,175,150,90,150,100,150,80,150,100,null,310,170,240,260,160,260,120,260,120]
[null,"ЦСП 12 мм",12,null,null,null,null,null,null,null,null,null,null,null,null,null,null,null,null,null,null,null,null,null,null,null,null,null,null,null,null,null,null,null,null,null,null,null,null,null,180,150,90,150,100,150,80,150,100,null,320,180,240,260,160,260,120,260,120]
[null,"ЦСП 16 мм",16,null,null,null,"Воронки ПВХ",null,null,null,null,"Марка профлиста","К-т расхода паробарьера на ПЛ","Объём гофр ПЛ",null,"Галтель","Ед.изм",null,"Кол-во слоёв","Праймер битумный ТехноНИКОЛЬ № 01","Праймер полимерный ТехноНИКОЛЬ №08 Быстросохнущий",null,null,null,null,null,null,null,null,null,null,null,null,null,null,null,null,null,null,null,185,150,90,150,100,150,80,150,100,null,330,200,200,260,160,260,160,260,160]
[null,"ЦСП 20 мм",20,null,null,null,"Воронка для ПВХ мембран XL503 с обогревом, 110х450 мм",null,null,null,null,"-",1.1000000000000001,0,null,"Нет","-",null,"1 слой",0.3,0.15,null,null,null,null,null,null,null,null,null,null,null,null,null,null,null,null,null,null,null,190,170,90,170,80,170,60,170,80,null,340,200,240,300,120,300,100,300,100]
[null,"ЦСП 24 мм",24,null,null,null,"Воронка для ПВХ мембран XL503 без обогрева, 110х450 мм",null,null,null,null,"по умолчанию",1.18,{"$f":"3.33*0.25*0.18*0.153*1.03+N(\"кол-во гофр в 1м.п профлиста*длина заполнения*ширина гофры*высота гофры*к-т\")","v":2.3614861500000001E-2},null,"ТЕХНОРУФ 45 ГАЛТЕЛЬ (1.2 м)","м³",null,"2 слоя",0.6,0.3,null,null,null,null,null,null,null,null,null,null,null,null,null,null,null,null,null,null,null,195,170,90,170,100,170,80,170,100,null,350,220,200,300,160,300,120,300,120]
[null,"ЦСП 26 мм",26,null,null,null,"Воронка с обжимным металлическим фланцем с обогревом, 110х450 мм",null,null,null,null,"Н57-750",1.19,{"$f":"5.33*0.25*0.0945*0.057*1.03+N(\"кол-во гофр в 1м.п профлиста*длина заполнения*ширина гофры*высота гофры*к-т\")","v":7.3928365875000008E-3},null,"ТЕХНОРУФ ПРОФ ГАЛТЕЛЬ","м³",null,"для АЦЛ",1,0.5,null,null,null,null,null,null,null,null,null,null,null,null,null,null,null,null,null,null,null,200,180,90,180,80,180,60,180,80,null,360,300,120,300,160,300,120,300,120]
[null,null,null,null,null,null,"Воронка с обжимным металлическим фланцем без обогрева, 110х450 мм",null,null,null,null,"Н60-845",1.18,{"$f":"4.73*0.25*0.0895*0.06*1.03+N(\"кол-во гофр в 1м.п профлиста*длина заполнения*ширина гофры*высота гофры*к-т\")","v":6.5405257499999998E-3},null,"ТЕХНОРУФ Н ПРОФ, для галтели*","м³",null,null,null,null,null,null,null,null,null,null,null,null,null,null,null,null,null,null,null,null,null,null,null,205,180,90,180,100,180,80,180,100,null,370,300,160,300,160,300,160,300,160]
[null,null,null,null,null,null,"Воронка с обжимным металлическим фланцем с обогревом 110х720 мм",null,null,null,null,"Н75-750",1.2,{"$f":"5.33*0.25*0.0955*0.075*1.03+N(\"кол-во гофр в 1м.п профлиста*длина заполнения*ширина гофры*высота гофры*к-т\")","v":9.8303521875000004E-3},null,"Переходной бортик LOGICPIR Галтель 1000 мм","шт.",null,null,null,null,null,null,null,null,null,null,null,null,null,null,null,null,null,null,null,null,null,null,null,210,180,90,180,100,180,80,180,100,null,380,300,160,300,160,300,160,300,160]
[null,null,null,null,null,null,"Воронка с обжимным металлическим фланцем без обогрева 110х720 мм",null,null,null,null,"Н114-600",1.1200000000000001,{"$f":"5*0.25*0.096*0.114*1.03+N(\"кол-во гофр в 1м.п профлиста*длина заполнения*ширина гофры*высота гофры*к-т\")","v":1.4090399999999999E-2},null,null,null,null,null,null,null,null,null,null,null,null,null,null,null,null,null,null,null,null,null,null,null,null,null,null,215,180,90,180,100,180,80,180,100,null,390,300,160,350,120,350,100,350,100]
[null,null,null,null,null,null,"Воронка с обжимным металлическим фланцем с обогревом 160х450мм",null,null,null,null,"Н114-750",1.1200000000000001,{"$f":"4*0.25*0.124*0.114*1.03+N(\"кол-во гофр в 1м.п профлиста*длина заполнения*ширина гофры*высота гофры*к-т\")","v":1.4560080000000001E-2},null,null,null,null,null,null,null,null,null,null,null,null,null,null,null,null,null,null,null,null,null,null,null,null,null,null,220,200,90,200,80,200,60,200,80,null,400,300,160,350,160,350,120,350,120]
[null,null,null,null,null,null,"Воронка ремонтная ТехноНИКОЛЬ PRO с листоуловителем 110x900 мм",null,null,null,null,"Н153-840",1.33,{"$f":"3.56*0.25*0.161*0.153*1.03+N(\"кол-во гофр в 1м.п профлиста*длина заполнения*ширина гофры*высота гофры*к-т\")","v":2.2581071100000003E-2},null,null,null,null,null,null,null,null,null,null,null,null,null,null,null,null,null,null,null,null,null,null,null,null,null,null,225,200,90,200,100,200,80,200,100,null,410,300,200,350,160,350,120,350,120]
[null,"Системы",null,null,null,null,null,null,null,null,null,"СКН127-1100",1.22,{"$f":"2.73*0.25*0.20685*0.127*1.03+N(\"кол-во гофр в 1м.п профлиста*длина заполнения*ширина гофры*высота гофры*к-т\")","v":1.8467118101250003E-2},null,null,null,null,null,null,null,null,null,null,null,null,null,null,null,null,null,null,null,null,null,null,null,null,null,null,230,200,90,200,100,200,80,200,100,null,420,350,160,350,160,350,160,350,160]
[null,null,null,null,null,null,"Воронки ПВХ парапет",null,null,null,null,"СКН153-900",1.24,{"$f":"3.33*0.25*0.18*0.153*1.03+N(\"кол-во гофр в 1м.п профлиста*длина заполнения*ширина гофры*высота гофры*к-т\")","v":2.3614861500000001E-2},null,null,null,null,null,null,null,null,null,null,null,null,null,null,null,null,null,null,null,null,null,null,null,null,null,null,235,200,90,200,100,200,80,200,100,null,430,350,160,350,160,350,160,350,160]
[null,"ТН-КРОВЛЯ КЛАССИК",null,null,null,null,"ПВХ воронка парапетная 100х100 длиной 650мм с отводом и листоуловителем",null,null,null,null,"СКН157-800",1.2,{"$f":"3.75*0.25*0.1456*0.157*1.03+N(\"кол-во гофр в 1м.п профлиста*длина заполнения*ширина гофры*высота гофры*к-т\")","v":2.2073415000000002E-2},null,null,null,null,null,null,null,null,null,null,null,null,null,null,null,null,null,null,null,null,null,null,null,null,null,null,240,220,90,220,80,220,60,220,80,null,440,350,160,350,200,350,160,350,160]
[null,"ТН-КРОВЛЯ СМАРТ PIR",null,null,null,null,"ПВХ воронка парапетная  65х100мм длиной 550мм с отводом Ø100мм",null,null,null,null,null,null,null,null,null,null,null,null,null,null,null,null,null,null,null,null,null,null,null,null,null,null,null,null,null,null,null,null,null,245,220,90,220,100,220,80,220,100,null,450,350,160,350,200,350,160,350,160]
[null,"ТН-КРОВЛЯ ГАРАНТ",null,null,null,null,"ПВХ воронка парапетная ТехноНИКОЛЬ 100х100",null,null,null,null,null,null,null,null,null,null,null,null,null,null,null,null,null,null,null,null,null,null,null,null,null,null,null,null,null,null,null,null,null,250,220,90,220,100,220,80,220,100,null,460,350,200,350,200,350,200,350,200]
[null,"ТН-КРОВЛЯ СМАРТ",null,null,null,null,null,null,null,null,null,null,null,null,null,null,null,null,null,null,null,null,null,null,null,null,null,null,null,null,null,null,null,null,null,null,null,null,null,null,255,220,90,220,100,220,80,220,100,null,470,350,200,350,200,350,200,350,200]
[null,"ТН-КРОВЛЯ СТАНДАРТ",null,null,null,null,"Воронки БРМ",null,null,null,null,null,null,null,null,null,null,null,null,null,null,null,null,null,null,null,null,null,null,null,null,null,null,null,null,null,null,null,null,null,260,240,90,240,80,240,60,240,80,null,480,350,200,425,160,350,200,350,200]
[null,"ТН-КРОВЛЯ ОПТИМА",null,null,null,null,"Воронка ТехноНИКОЛЬ Стандарт с прижимным фланцем и обогревом 110*590мм",null,null,null,null,null,null,null,"Гиперссылка на форму ОС",null,null,null,null,null,null,null,null,null,null,null,null,null,null,null,null,null,null,null,null,null,null,null,null,null,265,240,90,240,100,240,80,240,100,null,490,350,200,425,160,350,200,350,200]
[null,"ТН-КРОВЛЯ ПРОФ",null,null,null,null,"Воронка ТехноНИКОЛЬ Стандарт с прижимным фланцем 110*590мм",null,null,null,null,null,null,null,null,null,null,null,null,null,null,null,null,null,null,null,null,null,null,null,null,null,null,null,null,null,null,null,null,null,270,240,90,240,100,240,80,240,100,null,500,425,160,425,160,425,160,425,160]
[null,"ТН-КРОВЛЯ СТАНДАРТ КВ",null,null,null,null,"Воронка ТехноНИКОЛЬ с обжимным фланцем обогреваемая, 110х450 мм",null,null,null,null,null,null,null,"Форма ОС",null,null,null,null,null,null,null,null,null,null,null,null,null,null,null,null,null,null,null,null,null,null,null,null,null,275,240,90,240,100,240,80,240,100,null,510,425,160,425,160,425,160,425,160]
[null,"ТН-КРОВЛЯ ГАРАНТ+",null,null,null,null,"Воронка ТехноНИКОЛЬ с обжимным фланцем, 110х450 мм",null,null,null,null,null,null,null,null,"https://forms.yandex.ru/cloud/64b7bc4973cee7335d50970c/",null,null,null,null,null,null,null,null,null,null,null,null,null,null,null,null,null,null,null,null,null,null,null,null,280,260,90,260,80,260,60,260,80,null,520,425,200,425,200,425,160,425,160]
[null,"ТН-КРОВЛЯ БАЛЛАСТ",null,null,null,null,"Воронка ТехноНИКОЛЬ ВБ, 110х450 мм",null,null,null,null,null,null,null,"Шифр",null,null,null,null,null,null,null,null,null,null,null,null,null,null,null,null,null,null,null,null,null,null,null,null,null,285,260,90,260,100,260,80,260,100,null,530,425,200,425,200,425,160,425,160]
[null,"ТН-КРОВЛЯ ФИКС",null,null,null,null,"Воронка ТехноНИКОЛЬ ЭКО с обжимным фланцем 110*700мм",null,null,null,null,null,null,null,"Наименование объекта","answer_short_text_33418244",{"$f":"Шифр","v":"9-9075-МПККИТ-01.26"},{"$f":"CONCATENATE(\"?\",P57,\"=\",Q57)","v":"?answer_short_text_33418244=9-9075-МПККИТ-01.26"},null,null,null,null,null,null,null,null,null,null,null,null,null,null,null,null,null,null,null,null,null,null,290,260,90,260,100,260,80,260,100,null,540,425,200,425,200,425,200,425,200]
[null,"ТН-КРОВЛЯ ТИТАН",null,null,null,null,"Воронка ТехноНИКОЛЬ ЭКО с обжимным фланцем 160*700мм",null,null,null,null,null,null,null,null,"answer_short_text_33502680",{"$f":"SUBSTITUTE(Объект,\" \",\"_\")","v":"Проектирование_строительных_конструкция_покрытия_Цеха_М10._АО_Коломенский_завод"},{"$f":"CONCATENATE(\"&\",P58,\"=\",Q58)","v":"&answer_short_text_33502680=Проектирование_строительных_конструкция_покрытия_Цеха_М10._АО_Коломенский_завод"},null,null,null,null,null,null,null,null,null,null,null,null,null,null,null,null,null,null,null,null,null,null,295,260,90,260,100,260,80,260,100,null,550,425,200,425,200,425,200,425,200]
[null,"ТН-КРОВЛЯ УНИВЕРСАЛ",null,null,null,null,"Воронка ТехноНИКОЛЬ ЭКО с обжимным фланцем и обогревом 110*700мм",null,null,null,null,null,null,null,null,null,null,null,null,null,null,null,null,null,null,null,null,null,null,null,null,null,null,null,null,null,null,null,null,null,300,260,90,260,100,260,80,260,100,null,560,425,240,425,300,425,200,425,200]
[null,"ТН-КРОВЛЯ МАСТЕР",null,null,null,null,"Воронка ТехноНИКОЛЬ ЭКО с обжимным фланцем и обогревом 160*700мм",null,null,null,null,null,null,null,null,null,null,null,null,null,null,null,null,null,null,null,null,null,null,null,null,null,null,null,null,null,null,null,null,null,305,260,110,260,120,260,100,260,120,null,570,425,240,425,300,425,200,425,200]
[null,"ТН-КРОВЛЯ ЭКСПЕРТ PIR",null,null,null,null,null,null,null,null,null,null,null,null,null,null,null,null,null,null,null,null,null,null,null,null,null,null,null,null,null,null,null,null,null,null,null,null,null,null,310,260,110,260,120,260,100,260,120,null,580,425,240,425,300,425,300,425,300]
[null,"ТН-КРОВЛЯ СОЛИД",null,null,null,null,"Воронки БРМ парапет",null,null,null,null,null,null,null,null,null,null,null,null,null,null,null,null,null,null,null,null,null,null,null,null,null,null,null,null,null,null,null,null,null,315,260,110,260,120,260,100,260,120,null,590,425,240,425,300,425,300,425,300]
[null,"ТН-КРОВЛЯ ЭКСПРЕСС СОЛИД",null,null,null,null,"Воронка парапетная ТехноНИКОЛЬ квадратного сечения с галтелью 100*100*600",null,null,null,null,null,null,null,null,null,null,null,null,null,null,null,null,null,null,null,null,null,null,null,null,null,null,null,null,null,null,null,null,null,320,300,90,300,80,300,60,300,80,null,600,425,240,425,300,425,300,425,300]
[null,"ТН-КРОВЛЯ СОЛИД ПРОФ",null,null,null,null,"Воронка парапетная 100*100 (квадратное сечение)",null,null,null,null,null,null,null,null,null,null,null,null,null,null,null,null,null,null,null,null,null,null,null,null,null,null,null,null,null,null,null,null,null,325,300,90,300,100,300,80,300,100,null,610,425,300,425,300,425,300,425,300]
[null,"ТН-КРОВЛЯ ЭКСПРЕСС КЛАССИК",null,null,null,null,"Воронка ULTRA парапетная 110",null,null,null,null,null,null,null,null,null,null,null,null,null,null,null,null,null,null,null,null,null,null,null,null,null,null,null,null,null,null,null,null,null,330,300,90,300,100,300,80,300,100,null,620,425,300,425,300,425,300,425,300]
[null,"Прочее",null,null,null,null,"Воронка парапетная ТехноНИКОЛЬ (круглого сечения) 110*600мм",null,null,null,null,null,null,null,null,null,null,null,null,null,null,null,null,null,null,null,null,null,null,null,null,null,null,null,null,null,null,null,null,null,335,300,90,300,100,300,80,300,100,null,630,425,300,425,300,425,300,425,300]
[null,null,null,null,null,null,"Воронка парапетная ТехноНИКОЛЬ с галтелью 110*600",null,null,null,null,null,null,null,null,null,null,null,null,null,null,null,null,null,null,null,null,null,null,null,null,null,null,null,null,null,null,null,null,null,340,300,90,300,100,300,80,300,100,null,640,425,300,425,300,425,300,425,300]
[null,null,null,null,null,null,null,null,null,null,null,null,null,null,null,null,null,null,null,null,null,null,null,null,null,null,null,null,null,null,null,null,null,null,null,null,null,null,null,null,345,300,90,300,120,300,100,300,120,null,650,425,300,425,300,425,300,425,300]
[null,null,null,null,null,null,null,null,null,null,null,null,null,null,null,null,null,null,null,null,null,null,null,null,null,null,null,null,null,null,null,null,null,null,null,null,null,null,null,null,350,300,110,300,120,300,100,300,120,null,660,425,300,"-","-",425,300,425,300]
[null,null,null,null,null,null,null,null,null,null,null,null,null,null,null,null,null,null,null,null,null,null,null,null,null,null,null,null,null,null,null,null,null,null,null,null,null,null,null,null,355,300,110,300,120,300,100,300,120,null,670,425,300,"-","-",425,300,425,300]
[null,null,null,null,null,null,null,null,null,null,null,null,null,null,null,null,null,null,null,null,null,null,null,null,null,null,null,null,null,null,null,null,null,null,null,null,null,null,null,null,360,300,110,300,120,300,100,300,120,null,680,"-","-","-","-","-","-","-","-"]
[null,null,null,null,null,null,null,null,null,null,null,null,null,null,null,null,null,null,null,null,null,null,null,null,null,null,null,null,null,null,null,null,null,null,null,null,null,null,null,null,365,300,110,300,160,300,120,300,160]
[null,null,null,null,null,null,null,null,null,null,null,null,null,null,null,null,null,null,null,null,null,null,null,null,null,null,null,null,null,null,null,null,null,null,null,null,null,null,null,null,370,350,90,350,80,350,60,350,80]
[null,null,null,null,null,null,null,null,null,null,null,null,null,null,null,null,null,null,null,null,null,null,null,null,null,null,null,null,null,null,null,null,null,null,null,null,null,null,null,null,375,350,90,350,100,350,80,350,100]
[null,null,null,null,null,null,null,null,null,null,null,null,null,null,null,null,null,null,null,null,null,null,null,null,null,null,null,null,null,null,null,null,null,null,null,null,null,null,null,null,380,350,90,350,100,350,80,350,100]
[null,null,null,null,null,null,null,null,null,null,null,null,null,null,null,null,null,null,null,null,null,null,null,null,null,null,null,null,null,null,null,null,null,null,null,null,null,null,null,null,385,350,90,350,100,350,80,350,100]
[null,null,null,"Ограждения","Кол-во ригелей",null,"ФЗ-44","ПП-615","Склады и пром. здания",null,"Склады до 300",null,"Склады 300-600",null,"Столбец1",null,null,null,null,null,null,null,null,null,null,null,null,null,null,null,null,null,null,null,null,null,null,null,null,null,390,350,90,350,100,350,80,350,100]
[null,null,null,"Кровельное ограждение ТехноНИКОЛЬ КО/PRO/PL/1200-3",3,null,null,null,null,null,null,null,null,null,"-",null,null,null,null,null,null,null,null,null,null,null,null,null,null,null,null,null,null,null,null,null,null,null,null,null,395,350,90,350,120,350,100,350,120]
[null,null,null,"Кровельное ограждение ТехноНИКОЛЬ КО/PRO/PL/600-2",2,null,"Кровельное ограждение ТехноНИКОЛЬ КО/PRO/PL/600-2","Кровельное ограждение ТехноНИКОЛЬ КО/PRO/PL/1200-3","Кровельное ограждение ТехноНИКОЛЬ КО/PRO/PL/1200-3",null,"Кровельное ограждение ТехноНИКОЛЬ КО/PRO/PH/600-2",null,"Кровельное ограждение ТехноНИКОЛЬ КО/PRO/PV/600-2",null,"ФЗ-44",null,null,null,null,null,null,null,null,null,null,null,null,null,null,null,null,null,null,null,null,null,null,null,null,null,400,350,110,350,120,350,100,350,120]
[null,null,null,"Кровельное ограждение ТехноНИКОЛЬ КО/PROF/1200-3, Zn",3,null,"Кровельное ограждение ТехноНИКОЛЬ ККО/СК/600-2","Кровельное ограждение ТехноНИКОЛЬ ККО/СК/1200-2","Кровельное ограждение ТехноНИКОЛЬ КО/PRO/PL/600-2",null,"Кровельное ограждение ТехноНИКОЛЬ КО/PRO/PH/800-3",null,"Кровельное ограждение ТехноНИКОЛЬ КО/PRO/PV/800-3",null,"ПП-615",null,null,null,null,null,null,null,null,null,null,null,null,null,null,null,null,null,null,null,null,null,null,null,null,null,405,350,110,350,120,350,100,350,120]
[null,null,null,"Кровельное ограждение ТехноНИКОЛЬ КО/PROF/800-2, Zn",2,null,"Кровельное ограждение ТехноНИКОЛЬ ККО/СК/800-2","Кровельное ограждение ТехноНИКОЛЬ КО/ECO/1200-2","Кровельное ограждение ТехноНИКОЛЬ ККО/СК/600-2",null,null,null,null,null,"Склады и пром. здания",null,null,null,null,null,null,null,null,null,null,null,null,null,null,null,null,null,null,null,null,null,null,null,null,null,410,350,110,350,120,350,100,350,120]
[null,null,null,"Кровельное ограждение ТехноНИКОЛЬ КО/PRO/PH/600-2",2,null,"Кровельное ограждение ТехноНИКОЛЬ ККО/СК/1200-2","Кровельное ограждение ТехноНИКОЛЬ КО/СК/1200-2","Кровельное ограждение ТехноНИКОЛЬ ККО/СК/800-2",null,null,null,null,null,null,null,null,null,null,null,null,null,null,null,null,null,null,null,null,null,null,null,null,null,null,null,null,null,null,null,415,350,110,350,160,350,120,350,160]
[null,null,null,"Кровельное ограждение ТехноНИКОЛЬ КО/PRO/PH/800-3",3,null,"Кровельное ограждение ТехноНИКОЛЬ КО/ECO/1200-2","Кровельное ограждение ТехноНИКОЛЬ КО/PROF/1200-3, Zn","Кровельное ограждение ТехноНИКОЛЬ ККО/СК/1200-2",null,null,null,null,null,null,null,null,null,null,null,null,null,null,null,null,null,null,null,null,null,null,null,null,null,null,null,null,null,null,null,420,350,160,350,160,350,120,350,160]
[null,null,null,"Кровельное ограждение ТехноНИКОЛЬ КО/PRO/PV/600-2",2,null,"Кровельное ограждение ТехноНИКОЛЬ КО/СК/1200-2",null,"Кровельное ограждение ТехноНИКОЛЬ КО/ECO/1200-2",null,null,null,null,null,null,null,null,null,null,null,null,null,null,null,null,null,null,null,null,null,null,null,null,null,null,null,null,null,null,null,425,350,160,350,160,350,120,350,160]
[null,null,null,"Кровельное ограждение ТехноНИКОЛЬ КО/PRO/PV/800-3",3,null,null,null,"Кровельное ограждение ТехноНИКОЛЬ КО/СК/1200-2",null,null,null,null,null,null,null,null,null,null,null,null,null,null,null,null,null,null,null,null,null,null,null,null,null,null,null,null,null,null,null,430,350,160,350,160,350,120,350,160]
[null,null,null,"Кровельное ограждение ТехноНИКОЛЬ ККО/СК/600-2",2,null,null,null,"Кровельное ограждение ТехноНИКОЛЬ КО/PROF/1200-3, Zn",null,null,null,null,null,null,null,null,null,null,null,null,null,null,null,null,null,null,null,null,null,null,null,null,null,null,null,null,null,null,null,435,350,160,350,160,350,160,350,160]
[null,null,null,"Кровельное ограждение ТехноНИКОЛЬ ККО/СК/800-2",2,null,null,null,"Кровельное ограждение ТехноНИКОЛЬ КО/PROF/800-2, Zn",null,null,null,null,null,null,null,null,null,null,null,null,null,null,null,null,null,null,null,null,null,null,null,null,null,null,null,null,null,null,null,440,350,160,350,160,350,160,350,160]
[null,null,null,"Кровельное ограждение ТехноНИКОЛЬ ККО/СК/1200-2",2,null,null,null,null,null,null,null,null,null,null,null,null,null,null,null,null,null,null,null,null,null,null,null,null,null,null,null,null,null,null,null,null,null,null,null,445,350,160,350,160,350,160,350,160]
[null,null,null,"Кровельное ограждение ТехноНИКОЛЬ КО/ECO/1200-2",2,null,null,null,null,null,null,null,null,null,null,null,null,null,null,null,null,null,null,null,null,null,null,null,null,null,null,null,null,null,null,null,null,null,null,null,450,350,160,350,160,350,160,350,160]
[null,null,null,"Кровельное ограждение ТехноНИКОЛЬ КО/СК/1200-2",2,null,"В выпадающем списке представлены не все ограждения из прайса, т.к. остальные ограждения расчитываются в зависимости от условий",null,null,null,null,null,null,null,null,null,null,null,null,null,null,null,null,null,null,null,null,null,null,null,null,null,null,null,null,null,null,null,null,null,455,350,160,350,200,350,160,350,200]
[null,null,null,null,null,null,null,null,null,null,null,null,null,null,null,null,null,null,null,null,null,null,null,null,null,null,null,null,null,null,null,null,null,null,null,null,null,null,null,null,460,425,110,350,200,350,160,350,200]
[null,null,null,null,null,null,null,null,null,null,null,null,null,null,null,null,null,null,null,null,null,null,null,null,null,null,null,null,null,null,null,null,null,null,null,null,null,null,null,null,465,425,110,350,200,350,160,350,200]
[null,null,null,null,null,null,null,null,null,null,null,null,null,null,null,null,null,null,null,null,null,null,null,null,null,null,null,null,null,null,null,null,null,null,null,null,null,null,null,null,470,425,110,350,200,350,160,350,200]
[null,null,null,null,null,null,null,null,null,null,null,null,null,null,null,null,null,null,null,null,null,null,null,null,null,null,null,null,null,null,null,null,null,null,null,null,null,null,null,null,475,425,110,350,200,350,200,350,200]
[null,null,null,null,null,null,null,null,null,null,null,null,null,null,null,null,null,null,null,null,null,null,null,null,null,null,null,null,null,null,null,null,null,null,null,null,null,null,null,null,480,425,120,350,200,350,200,350,200]
[null,null,null,null,null,null,null,null,null,null,null,null,null,null,null,null,null,null,null,null,null,null,null,null,null,null,null,null,null,null,null,null,null,null,null,null,null,null,null,null,485,425,120,350,200,350,200,350,200]
[null,null,null,null,null,null,null,null,null,null,null,null,null,null,null,null,null,null,null,null,null,null,null,null,null,null,null,null,null,null,null,null,null,null,null,null,null,null,null,null,490,425,160,350,200,350,200,350,200]
[null,null,null,null,null,null,null,null,null,null,null,null,null,null,null,null,null,null,null,null,null,null,null,null,null,null,null,null,null,null,null,null,null,null,null,null,null,null,null,null,500,425,160,425,160,350,200,350,200]
[null,null,null,null,null,null,null,null,null,null,null,null,null,null,null,null,null,null,null,null,null,null,null,null,null,null,null,null,null,null,null,null,null,null,null,null,null,null,null,null,510,425,160,425,160,350,200,350,200]
[null,null,null,null,null,null,null,null,null,null,null,null,null,null,null,null,null,null,null,null,null,null,null,null,null,null,null,null,null,null,null,null,null,null,null,null,null,null,null,null,520,425,160,425,160,425,160,425,160]
[null,null,null,null,null,null,null,null,null,null,null,null,null,null,null,null,null,null,null,null,null,null,null,null,null,null,null,null,null,null,null,null,null,null,null,null,null,null,null,null,530,425,200,425,200,425,160,425,160]
[null,null,null,null,null,null,null,null,null,null,null,null,null,null,null,null,null,null,null,null,null,null,null,null,null,null,null,null,null,null,null,null,null,null,null,null,null,null,null,null,540,425,200,425,200,425,160,425,160]
[null,null,null,null,null,null,null,null,null,null,null,null,null,null,null,null,null,null,null,null,null,null,null,null,null,null,null,null,null,null,null,null,null,null,null,null,null,null,null,null,550,425,200,425,200,425,200,425,200]
[null,null,null,null,null,null,null,null,null,null,null,null,null,null,null,null,null,null,null,null,null,null,null,null,null,null,null,null,null,null,null,null,null,null,null,null,null,null,null,null,560,425,200,425,200,425,200,425,200]
[null,null,null,null,null,null,null,null,null,null,null,null,null,null,null,null,null,null,null,null,null,null,null,null,null,null,null,null,null,null,null,null,null,null,null,null,null,null,null,null,570,425,240,425,300,425,200,425,200]
[null,null,null,null,null,null,null,null,null,null,null,null,null,null,null,null,null,null,null,null,null,null,null,null,null,null,null,null,null,null,null,null,null,null,null,null,null,null,null,null,580,425,240,425,300,425,200,425,200]
[null,null,null,null,null,null,null,null,null,null,null,null,null,null,null,null,null,null,null,null,null,null,null,null,null,null,null,null,null,null,null,null,null,null,null,null,null,null,null,null,590,425,240,425,300,425,300,425,300]
[null,null,null,null,null,null,null,null,null,null,null,null,null,null,null,null,null,null,null,null,null,null,null,null,null,null,null,null,null,null,null,null,null,null,null,null,null,null,null,null,600,425,240,425,300,425,300,425,300]
[null,null,null,null,null,null,null,null,null,null,null,null,null,null,null,null,null,null,null,null,null,null,null,null,null,null,null,null,null,null,null,null,null,null,null,null,null,null,null,null,610,425,300,425,300,425,300,425,300]
[null,null,null,null,null,null,null,null,null,null,null,null,null,null,null,null,null,null,null,null,null,null,null,null,null,null,null,null,null,null,null,null,null,null,null,null,null,null,null,null,620,425,300,425,300,425,300,425,300]
[null,null,null,null,null,null,null,null,null,null,null,null,null,null,null,null,null,null,null,null,null,null,null,null,null,null,null,null,null,null,null,null,null,null,null,null,null,null,null,null,630,425,300,425,300,425,300,425,300]
[null,null,null,null,null,null,null,null,null,null,null,null,null,null,null,null,null,null,null,null,null,null,null,null,null,null,null,null,null,null,null,null,null,null,null,null,null,null,null,null,640,425,300,425,300,425,300,425,300]
[null,null,null,null,null,null,null,null,null,null,null,null,null,null,null,null,null,null,null,null,null,null,null,null,null,null,null,null,null,null,null,null,null,null,null,null,null,null,null,null,650,425,300,425,300,425,300,425,300]
[null,null,null,null,null,null,null,null,null,null,null,null,null,null,null,null,null,null,null,null,null,null,null,null,null,null,null,null,null,null,null,null,null,null,null,null,null,null,null,null,660,425,300,425,300,425,300,425,300]
[null,null,null,null,null,null,null,null,null,null,null,null,null,null,null,null,null,null,null,null,null,null,null,null,null,null,null,null,null,null,null,null,null,null,null,null,null,null,null,null,670,"-","-","-","-",425,300,425,300]
[null,null,null,null,null,null,null,null,null,null,null,null,null,null,null,null,null,null,null,null,null,null,null,null,null,null,null,null,null,null,null,null,null,null,null,null,null,null,null,null,680,"-","-","-","-",425,300,425,300]
[null,null,null,null,null,null,null,null,null,null,null,null,null,null,null,null,null,null,null,null,null,null,null,null,null,null,null,null,null,null,null,null,null,null,null,null,null,null,null,null,690,"-","-","-","-","-","-","-","-"]
[null,null,null,null,null,null,null,null,null,null,null,null,null,null,null,null,null,null,null,null,null,null,null,null,null,null,null,null,null,null,null,null,null,null,null,null,null,null,null,null,700,"-","-","-","-","-","-","-","-"]

{"sheet":"Прайс","index":12,"n_rows":147,"n_cols":30,"rows_kept":147,"cut":false,"hidden":true,"merged":[[1,2,4,2],[1,3,4,3],[1,4,1,7],[1,8,4,8],[1,9,1,12],[2,4,2,7],[2,9,2,12],[58,3,60,3],[5,2,7,2],[8,2,10,2],[11,2,13,2],[14,2,16,2],[17,2,19,2],[23,2,25,2],[20,2,22,2],[38,2,40,2],[47,2,49,2],[53,2,55,2],[61,2,63,2],[26,2,28,2],[29,2,31,2],[32,2,34,2],[35,2,37,2],[58,2,60,2],[41,2,43,2],[44,2,46,2],[50,2,52,2],[58,4,58,7],[58,8,60,8],[58,9,58,12],[59,4,59,7],[59,9,59,12],[103,2,103,12],[64,2,66,2],[87,2,89,2],[90,2,92,2],[97,2,99,2],[97,3,99,3],[97,4,97,7],[97,8,99,8],[97,9,97,12],[98,4,98,7],[98,9,98,12],[100,2,102,2],[115,8,118,8],[115,9,116,12],[117,4,117,7],[117,9,117,12],[104,2,106,2],[104,3,106,3],[104,4,104,7],[104,8,106,8],[104,9,104,12],[105,4,105,7],[105,9,105,12],[119,2,121,2],[107,2,109,2],[115,2,118,2],[115,3,118,3],[115,4,116,7],[4,21,4,22],[4,23,4,24],[3,17,3,24],[4,26,4,27],[3,16,4,16],[4,17,4,18],[4,19,4,20]]}
[]
[null,null,"Вид расчета","Сложность ","Трудозатраты (чел/час)",null,null,null,"Стоимость часа работ (руб.)","Себестоимость расчета"]
[null,null,null,null,"Площадь (кв.м)",null,null,null,null,"Площадь (кв.м)"]
[null,null,null,null,null,null,null,null,null,null,null,null,null,null,null,null,"Сложность ","количество элементов (диапазоны)"]
[null,null,null,null,"до 1000 ","от 1001 до 5000","от 5001 до 10 000","от 10 001",null,"до 1000 ","от 1001 до 5000","от 5001 до 10 000","от 10 001",null,null,null,null,"до 1000 ",null,"от 1001 до 5000",null,"от 5001 до 10 000",null,"от 10 001",null,null,{"$f":"IF(AC6=1,R5,IF(AC6=2,T5,IF(AC6=3,V5,IF(AC6=4,X5,0))))","v":"от 10 001"},null,{"$f":"SUMIF(Свойства_расчета!$H:$H,\"Да\",Свойства_расчета!$D:$D)","v":24170},{"$f":"SUM(Свойства_расчета!$K$3:$K$5)","v":179}]
[null,null,"Расчет количества клиновидной теплоизоляции ",1,0.6,0.8,1,1.2,250,1200,1600,2000,2400,null,null,null,1,1,29,1,39,1,79,1,149,null,{"$f":"IF($AC$6=1,R6,IF($AC$6=2,T6,IF($AC$6=3,V6,IF($AC$6=4,X6,0))))","v":1},149,{"$f":"IF(AC5=0,0,IF(AC5<=1000,1,IF(AND(AC5>1000,AC5<=5000),2,IF(AND(AC5>5000,AC5<=10000),3,IF(AC5>10000,4,0)))))","v":4},{"$f":"COUNTIF(Свойства_расчета!$H:$H,\"Да\")","v":1}]
[null,null,null,2,0.89999999999999991,1.2000000000000002,1.5,1.7999999999999998,250,1799.9999999999998,2400.0000000000005,3000,3599.9999999999995,null,0.5,null,2,30,69,40,149,80,199,150,349,null,150,349,{"$f":"IF(AD5=0,0,IF(AD5<=AB6,1,IF(AND(AD5>=AA7,AD5<=AB7),2,IF(AD5>=AA8,3,0))))","v":2}]
[null,null,null,3,1.2,1.6,2,2.4,250,2400,3200,4000,4800,null,null,null,3,70,"+",150,"+",200,"+",350,"+",null,350,"+",{"$f":"IF(OR(AC6=0,AC7=0),0,INDEX(J6:M8,AC7,AC6))","v":3599.9999999999995}]
[null,null,"Расчет количества клиновидной теплоизоляции основной уклон+контруклон  XPS, КВ",1,0.8,1.1000000000000001,1.2,1.4,250,1600,2200,2400,2800]
[null,null,null,2,{"$f":"E9*1.5","v":1.2000000000000002},{"$f":"F9*1.5","v":1.6500000000000001},{"$f":"G9*1.5","v":1.7999999999999998},{"$f":"H9*1.5","v":2.0999999999999996},250,2400.0000000000005,3300.0000000000005,3599.9999999999995,4199.9999999999991,null,0.5]
[null,null,null,3,{"$f":"E9*2","v":1.6},{"$f":"F9*2","v":2.2000000000000002},{"$f":"G9*2","v":2.4},{"$f":"H9*2","v":2.8},250,3200,4400,4800,5600]
[null,null,"Расчет количества клиновидной теплоизоляции контр уклон ПИР",1,{"$f":"0.7","v":0.7},0.9,1.1000000000000001,1.3,250,1400,1800,2200,2600]
[null,null,null,2,{"$f":"E12*1.5","v":1.0499999999999998},{"$f":"F12*1.5","v":1.35},{"$f":"G12*1.5","v":1.6500000000000001},{"$f":"H12*1.5","v":1.9500000000000002},250,2099.9999999999995,2700,3300.0000000000005,3900.0000000000005,null,0.5]
[null,null,null,3,{"$f":"E12*2","v":1.4},{"$f":"F12*2","v":1.8},{"$f":"G12*2","v":2.2000000000000002},{"$f":"H12*2","v":2.6},250,2800,3600,4400,5200]
[null,null,"Расчет количества клиновидной теплоизоляции основной уклон+контруклон  ПИР",1,{"$f":"0.9","v":0.9},1.2,1.3,1.5,250,1800,2400,2600,3000]
[null,null,null,2,{"$f":"E15*1.5","v":1.35},{"$f":"F15*1.5","v":1.7999999999999998},{"$f":"G15*1.5","v":1.9500000000000002},{"$f":"H15*1.5","v":2.25},250,2700,3599.9999999999995,3900.0000000000005,4500,null,0.5]
[null,null,null,3,{"$f":"E15*2","v":1.8},{"$f":"F15*2","v":2.4},{"$f":"G15*2","v":2.6},{"$f":"H15*2","v":3},250,3600,4800,5200,6000]
[null,null,"Расчет количества материалов Плоской кровли  ПМ",1,0.6,0.8,1,1.2,250,1200,1600,2000,2400]
[null,null,null,2,{"$f":"E18*1.5","v":0.89999999999999991},{"$f":"F18*1.5","v":1.2000000000000002},{"$f":"G18*1.5","v":1.5},{"$f":"H18*1.5","v":1.7999999999999998},250,1799.9999999999998,2400.0000000000005,3000,3599.9999999999995,null,0.5]
[null,null,null,3,{"$f":"E18*2","v":1.2},{"$f":"F18*2","v":1.6},{"$f":"G18*2","v":2},{"$f":"H18*2","v":2.4},250,2400,3200,4000,4800]
[null,null,"Расчет количества материалов Плоской кровли  РМ",1,0.6,0.8,1,1.2,250,1200,1600,2000,2400]
[null,null,null,2,{"$f":"E21*1.5","v":0.89999999999999991},{"$f":"F21*1.5","v":1.2000000000000002},{"$f":"G21*1.5","v":1.5},{"$f":"H21*1.5","v":1.7999999999999998},250,1799.9999999999998,2400.0000000000005,3000,3599.9999999999995,null,0.5]
[null,null,null,3,{"$f":"E21*2","v":1.2},{"$f":"F21*2","v":1.6},{"$f":"G21*2","v":2},{"$f":"H21*2","v":2.4},250,2400,3200,4000,4800]
[null,null,"Ветровой расчет ",1,0.5,0.5,0.5,0.5,250,2000,2000,2000,2000]
[null,null,null,2,{"$f":"E24*1.5","v":0.75},{"$f":"F24*1.5","v":0.75},{"$f":"G24*1.5","v":0.75},{"$f":"H24*1.5","v":0.75},250,3000,3000,3000,3000,null,0.25]
[null,null,null,3,{"$f":"E24*2","v":1},{"$f":"F24*2","v":1},{"$f":"G24*2","v":1},{"$f":"H24*2","v":1},250,4000,4000,4000,4000]
[null,null,"Расчет количества материалов утеплителя для  фасада",1,0.6,0.8,1,2,250,1200,1600,2000,4000]
[null,null,null,2,{"$f":"E27*1.5","v":0.89999999999999991},{"$f":"F27*1.5","v":1.2000000000000002},{"$f":"G27*1.5","v":1.5},{"$f":"H27*1.5","v":3},250,1799.9999999999998,2400.0000000000005,3000,6000,null,0.5]
[null,null,null,3,{"$f":"E27*2","v":1.2},{"$f":"F27*2","v":1.6},{"$f":"G27*2","v":2},{"$f":"H27*2","v":4},250,2400,3200,4000,8000]
[null,null,"Расчет количества изоляции для перегородок",1,0.7,1.2,1.5,2,250,1400,2400,3000,4000]
[null,null,null,2,{"$f":"E30*1.5","v":1.0499999999999998},{"$f":"F30*1.5","v":1.7999999999999998},{"$f":"G30*1.5","v":2.25},{"$f":"H30*1.5","v":3},250,2099.9999999999995,3599.9999999999995,4500,6000,null,0.5]
[null,null,null,3,{"$f":"E30*2","v":1.4},{"$f":"F30*2","v":2.4},{"$f":"G30*2","v":3},{"$f":"H30*2","v":4},250,2800,4800,6000,8000]
[null,null,"Расчет количества материалов Фундаменты",1,0.6,0.8,1,2,250,780,1040,1300,2600]
[null,null,null,2,{"$f":"E33*1.5","v":0.89999999999999991},{"$f":"F33*1.5","v":1.2000000000000002},{"$f":"G33*1.5","v":1.5},{"$f":"H33*1.5","v":3},250,1170,1560.0000000000005,1950,3900,null,0.5]
[null,null,null,3,{"$f":"E33*2","v":1.2},{"$f":"F33*2","v":1.6},{"$f":"G33*2","v":2},{"$f":"H33*2","v":4},250,1560,2080,2600,5200]
[null,null,"Расчет количества материалов изоляции для полов",1,0.6,0.8,1,1.8,250,1200,1600,2000,3600]
[null,null,null,2,{"$f":"E36*1.5","v":0.89999999999999991},{"$f":"F36*1.5","v":1.2000000000000002},{"$f":"G36*1.5","v":1.5},{"$f":"H36*1.5","v":2.7},250,1799.9999999999998,2400.0000000000005,3000,5400,null,0.5]
[null,null,null,3,{"$f":"E36*2","v":1.2},{"$f":"F36*2","v":1.6},{"$f":"G36*2","v":2},{"$f":"H36*2","v":3.6},250,2400,3200,4000,7200]
[null,null,"Анализ документации",1,0.5,0.5,0.5,0.5,250,1000,1000,1000,1000]
[null,null,null,2,1,1,1,1,250,2000,2000,2000,2000,null,0.5]
[null,null,null,3,2,2,2,2,250,4000,4000,4000,4000]
[null,null,"Создание схемы ветровых зон",1,1.5,2,2.8,3.5,250,6000,8000,11200,14000]
[null,null,null,2,{"$f":"E42*1.5","v":2.25},{"$f":"F42*1.5","v":3},{"$f":"G42*1.5","v":4.1999999999999993},{"$f":"H42*1.5","v":5.25},250,9000,12000,16799.999999999996,21000,null,0.25]
[null,null,null,3,{"$f":"E42*2","v":3},{"$f":"F42*2","v":4},{"$f":"G42*2","v":5.6},{"$f":"H42*2","v":7},250,12000,16000,22400,28000]
[null,null,"Оформление раскладки гидроизоляции на кровле",1,2,2.5,3,4,250,6000,8000,11200,14000]
[null,null,null,2,{"$f":"E45*1.5","v":3},{"$f":"F45*1.5","v":3.75},{"$f":"G45*1.5","v":4.5},{"$f":"H45*1.5","v":6},250,9000,12000,16799.999999999996,21000,null,0.25]
[null,null,null,3,{"$f":"E45*2","v":4},{"$f":"F45*2","v":5},{"$f":"G45*2","v":6},{"$f":"H45*2","v":8},250,12000,16000,22400,28000]
[null,null,"Расчет ограждения",1,0.4,0.5,0.6,0.8,1000,{"$f":"IF(D48=1,E48*I48,IF(D48=2,E48*I48*1.5, E48*I48*2))","v":400},{"$f":"IF(D48=1,F48*I48,IF(D48=2,F48*I48*1.5, F48*I48*2))","v":500},{"$f":"IF(D48=1,G48*I48,IF(D48=2,G48*I48*1.5, G48*I48*2))","v":600},{"$f":"IF(D48=1,H48*I48,IF(D48=2,H48*I48*1.5, H48*I48*2))","v":800},null,null,{"$f":"J48/4","v":100},{"$f":"K48/4","v":125},{"$f":"L48/4","v":150},200]
[null,null,null,2,{"$f":"E48*1.5","v":0.60000000000000009},{"$f":"F48*1.5","v":0.75},{"$f":"G48*1.5","v":0.89999999999999991},{"$f":"H48*1.5","v":1.2000000000000002},1000,{"$f":"E49*I49","v":600.00000000000011},{"$f":"F49*I49","v":750},{"$f":"G49*I49","v":899.99999999999989},{"$f":"H49*I49","v":1200.0000000000002},null,null,{"$f":"J49/4","v":150.00000000000003},{"$f":"K49/4","v":187.5},{"$f":"L49/4","v":224.99999999999997},{"$f":"M49/4","v":300.00000000000006}]
[null,null,null,3,{"$f":"E48*2","v":0.8},{"$f":"F48*2","v":1},{"$f":"G48*2","v":1.2},{"$f":"H48*2","v":1.6},1000,{"$f":"E50*I50","v":800},{"$f":"F50*I50","v":1000},{"$f":"G50*I50","v":1200},{"$f":"H50*I50","v":1600},null,null,200,250,300,400]
[null,null,"Расчет количества воронок",1,0.4,0.4,0.4,0.4,1000,{"$f":"IF(D51=1,E51*I51,IF(D51=2,E51*I51*1.5, E51*I51*2))","v":400},{"$f":"IF(D51=1,F51*I51,IF(D51=2,F51*I51*1.5, F51*I51*2))","v":400},{"$f":"IF(D51=1,G51*I51,IF(D51=2,G51*I51*1.5, G51*I51*2))","v":400},{"$f":"IF(D51=1,H51*I51,IF(D51=2,H51*I51*1.5, H51*I51*2))","v":400}]
[null,null,null,2,{"$f":"E51*1.5","v":0.60000000000000009},{"$f":"F51*1.5","v":0.60000000000000009},0.60000000000000009,0.60000000000000009,1000,{"$f":"E52*I52","v":600.00000000000011},{"$f":"F52*I52","v":600.00000000000011},{"$f":"G52*I52","v":600.00000000000011},{"$f":"H52*I52","v":600.00000000000011}]
[null,null,null,3,{"$f":"E51*2","v":0.8},{"$f":"F51*2","v":0.8},0.8,0.8,1000,{"$f":"E53*I53","v":800},{"$f":"F53*I53","v":800},{"$f":"G53*I53","v":800},{"$f":"H53*I53","v":800}]
[null,null,"Теплотехнический расчет по методике СП  50",1,null,null,null,null,null,800,800,800,800,null,0.25]
[null,null,null,2,null,null,null,null,null,1200,1200,1200,1200]
[null,null,null,3,null,null,null,null,null,2000,2000,2000,2000]
[]
[]
[null,null,"Вид работ","Сложность ","Трудозатраты (чел/час)",null,null,null,"Стоимость часа работ (руб.)","Себестоимость расчета"]
[null,null,null,null,"Площадь (кв.м)",null,null,null,null,"Площадь (кв.м)"]
[null,null,null,null,"до 500","от 501 до 1500","от 1501 до 3 000","от 3001",null,"до 500","от 501 до 1500","от 1501 до 3 000","от 3001"]
[null,null,"Расчет количества материалов изоляции",1,0.6,0.8,1,1.5,250,{"$f":"IF(D62=1,E62*I62,IF(D62=2,E62*I62*2, E62*I62*3))","v":150},{"$f":"IF(D62=1,F62*I62,IF(D62=2,F62*I62*2, F62*I62*3))","v":200},{"$f":"IF(D62=1,G62*I62,IF(D62=2,G62*I62*2, G62*I62*3))","v":250},{"$f":"IF(D62=1,H62*I62,IF(D62=2,H62*I62*2, H62*I62*3))","v":375}]
[null,null,null,2,{"$f":"E62*2","v":1.2},{"$f":"F62*2","v":1.6},{"$f":"G62*2","v":2},3,250,{"$f":"E63*I63","v":300},{"$f":"F63*I63","v":400},{"$f":"G63*I63","v":500},{"$f":"H63*I63","v":750}]
[null,null,null,3,{"$f":"E62*3","v":1.7999999999999998},{"$f":"F62*3","v":2.4000000000000004},{"$f":"G62*3","v":3},4,250,{"$f":"E64*I64","v":449.99999999999994},{"$f":"F64*I64","v":600.00000000000011},{"$f":"G64*I64","v":750},{"$f":"H64*I64","v":1000}]
[null,null,"Расчет водосточной системы",1,0.3,0.3,0.3,0.3,250,{"$f":"IF(D65=1,E65*I65,IF(D65=2,E65*I65*2, E65*I65*3))","v":75},{"$f":"IF(D65=1,F65*I65,IF(D65=2,F65*I65*2, F65*I65*3))","v":75},{"$f":"IF(D65=1,G65*I65,IF(D65=2,G65*I65*2, G65*I65*3))","v":75},{"$f":"IF(D65=1,H65*I65,IF(D65=2,H65*I65*2, H65*I65*3))","v":75}]
[null,null,null,2,{"$f":"E65*2","v":0.6},{"$f":"F65*2","v":0.6},{"$f":"G65*2","v":0.6},{"$f":"H65*2","v":0.6},250,{"$f":"E66*I66","v":150},{"$f":"F66*I66","v":150},{"$f":"G66*I66","v":150},{"$f":"H66*I66","v":150}]
[null,null,null,3,0.8,0.8,0.8,0.8,250,{"$f":"E67*I67","v":200},{"$f":"F67*I67","v":200},{"$f":"G67*I67","v":200},{"$f":"H67*I67","v":200}]
[]
[]
[]
[]
[null,null,"Вид работ","Сложность ","Трудозатраты (чел/час)","Стоимость часа работ (руб.)","Себестоимость расчета"]
[null,null,"Теплотехнический расчет методика СП 23-02-2003","-",0.3,250,600]
[null,null,"Вид работ","Сложность ","Трудозатраты (чел/час)","Стоимость часа работ (руб.)","Себестоимость расчета"]
[null,null,"Теплотехнический расчет методика СП 23-02-2003","-",0.3,250,600]
[null,null,"Вид работ","Сложность ","Трудозатраты (чел/час)","Стоимость часа работ (руб.)","Себестоимость расчета"]
[null,null,"Расчет паронакопления СП 50-13330.2012","-",0.3,250,600]
[]
[]
[null,null,"Вид работ","Сложность ","Трудозатраты (чел/час)","Стоимость часа работ (руб.)","Себестоимость расчета"]
[null,null,"Акустический расчет перекрытия","-",0.6,1000,780]
[null,null,"Акустический  расчет стены","-",0.6,1000,780]
[]
[]
[]
[]
[null,null,"Вид работ","Сложность ","Трудозатраты (чел/час)","Стоимость часа работ (руб.)","Себестоимость расчета"]
[null,null,"Расчет количества материалов ТН для УШП",1,0.8,250,1040]
[null,null,null,2,1,250,1300]
[null,null,null,3,1.2,250,1560]
[null,null,"Расчет нагрузок здания под УШП",1,1,250,1300]
[null,null,null,2,{"$f":"E91*1.5","v":1.5},250,1950]
[null,null,null,3,{"$f":"E91*2","v":2},250,2600]
[]
[]
[]
[]
[null,null,"Вид работ","Сложность ","Трудозатраты (чел/час)",null,null,null,"Стоимость часа работ(руб.)","Себестоимость расчета"]
[null,null,null,null,"Площадь (кв.м)",null,null,null,null,"Площадь (кв.м)"]
[null,null,null,null,"до 500","от 501 до 1000","от 1001 до 5 000","от 5 001",null,"до 500","от 501 до 1000","от 1001 до 5 000","от 5 001"]
[null,null,"Расчет количества материалов Техническая изоляция (плоские элементы)",1,0.6,0.8,1,2,250,780,1040,1300,2600]
[null,null,null,2,{"$f":"E101*1.5","v":0.89999999999999991},{"$f":"F101*1.5","v":1.2000000000000002},{"$f":"G101*1.5","v":1.5},{"$f":"H101*1.5","v":3},250,1170,1560.0000000000005,1950,3900]
[null,null,null,3,{"$f":"E101*2","v":1.2},{"$f":"F101*2","v":1.6},{"$f":"G101*2","v":2},{"$f":"H101*2","v":4},250,1560,2080,2600,5200]
[]
[null,null,"Вид работ","Сложность ","Трудозатраты (чел/час)",null,null,null,"Стоимость часа работ(руб.)","Себестоимость расчета"]
[null,null,null,null,"Погонаж мп",null,null,null,null,"Погонаж мп"]
[null,null,null,null,"до 100","от 101 до 500","от 501 до 1 000","от  1 000",null,"до 100","от 101 до 500","от 501 до 1 000","от  1 000"]
[null,null,"Расчет количества материалов Техническая изоляция (трубопроводы)",1,0.6,0.8,1,2,250,780,1040,1300,2600]
[null,null,null,2,{"$f":"E108*1.5","v":0.89999999999999991},{"$f":"F108*1.5","v":1.2000000000000002},{"$f":"G108*1.5","v":1.5},{"$f":"H108*1.5","v":3},250,1170,1560.0000000000005,1950,3900]
[null,null,null,3,{"$f":"E108*2","v":1.2},{"$f":"F108*2","v":1.6},{"$f":"G108*2","v":2},{"$f":"H108*2","v":4},250,1560,2080,2600,5200]
[null,null,"Расчет толщины Технической изоляции         (1 элемент) ","-",0.3,0.3,0.3,0.3,250,390,390,390,390]
[]
[]
[]
[]
[null,null,"Вид работ","Сложность ","Трудозатраты (чел/час)",null,null,null,"Стоимость часа работ(руб.)","Себестоимость расчета"]
[]
[null,null,null,null,"Погонаж мп",null,null,null,null,"Погонаж мп"]
[null,null,null,null,"до 100","от 101 до 500","от 501 до 1 000","от 1 001",null,"до 100","от 101 до 500","от 501 до 1 000","от 1 001"]
[null,null,"Расчет количества материалов огнезащита металла",1,0.5,0.75,1,2,250,650,975,1300,2600]
[null,null,null,2,{"$f":"E120*1.5","v":0.75},{"$f":"F120*1.5","v":1.125},{"$f":"G120*1.5","v":1.5},{"$f":"H120*1.5","v":3},250,975,1462.5,1950,3900]
[null,null,null,3,{"$f":"E120*2","v":1},{"$f":"F120*2","v":1.5},{"$f":"G120*2","v":2},{"$f":"H120*2","v":4},250,1300,1950,2600,5200]
[null,null,"Расчет толщины огнезащита металла (1 элемент)","-",0.4,0.4,0.4,0.4,250,520,520,520,520]
[]
[]
[]
[]
[]
[]
[]
[]
[null,null,{"$f":"ОБЩИЕ_ДАННЫЕ!I133","v":"RUS"},"RUS","INT",{"$f":"C132","v":"RUS"}]
[null,null,"Клины","КИ","КИ_Е",{"$f":"INDEX($D$133:$E$144,MATCH(C133,$C$133:$C$144,0),MATCH($C$132,$D$132:$E$132,0))","v":"КИ"}]
[null,null,"МПК ПМ","МПК ПМ","МПК ПМ_Е",{"$f":"INDEX($D$133:$E$144,MATCH(C134,$C$133:$C$144,0),MATCH($C$132,$D$132:$E$132,0))","v":"МПК ПМ"}]
[null,null,"МПК РМ","МПК РМ","МПК РМ_Е","МПК РМ"]
[null,null,"Ветер ПМ","В ПМ","В ПМ_Е","В ПМ"]
[null,null,"Ветер РМ","В РМ","В РМ_Е",{"$f":"INDEX($D$133:$E$144,MATCH(C137,$C$133:$C$144,0),MATCH($C$132,$D$132:$E$132,0))","v":"В РМ"}]
[null,null,"Т","Т","Т_Е","Т"]
[null,null,"Тепло","Тепло","Тепло_Е","Тепло"]
[null,null,"ПАР","ПАР","ПАР_Е","ПАР"]
[null,null,"Анализ","А","А_Е","А"]
[null,null,"Огражд","ОГР","ОГР_Е","ОГР"]
[null,null,"Схемы Ветровых Зон","СВЗ","СВЗ_Е","СВЗ"]
[null,null,"Раскладка ГИ","РГИ","РГИ_Е","РГИ"]
[null,null,"Количество воронок ПМ","ВВ ПМ","ВВ ПМ_Е",{"$f":"INDEX($D$133:$E$145,MATCH(C145,$C$133:$C$145,0),MATCH($C$132,$D$132:$E$132,0))","v":"ВВ ПМ"}]
[null,null,"Количество воронок РМ","ВВ РМ","ВВ РМ_Е",{"$f":"INDEX($D$133:$E$146,MATCH(C146,$C$133:$C$146,0),MATCH($C$132,$D$132:$E$132,0))","v":"ВВ РМ"}]
[null,null,"Коээфициент ставки:",null,null,{"$f":"IF(C132=D132,1,1.5)","v":1}]

{"sheet":"Деление по СБЕ","index":13,"n_rows":81,"n_cols":13,"rows_kept":81,"cut":false,"hidden":true,"merged":[[71,0,75,0],[76,0,80,0],[41,0,45,0],[36,0,40,0],[1,0,5,0],[16,0,20,0],[21,0,25,0],[26,0,30,0],[6,0,10,0],[11,0,15,0],[31,0,35,0],[66,0,70,0],[56,0,60,0],[61,0,65,0],[46,0,50,0],[51,0,55,0]]}
["Тип расчета",null,"КВ","XPS","ПИР","ПМ","РМ","МиСХ","Плантер","СК","ТИ и ОГН","Итого","Стоимость"]
["Клины","Вес",0.33333333333300003,0.33333333333300003,0.33333333333300003,"-","-","-","-",null,null,{"$f":"SUM(C2:E2)","v":0.99999999999900013}]
[null,{"$f":"IF(M6=0,0,\"Кол-во\")","v":"Кол-во"},{"$f":"IF(INDEX(Деление_СБЕ[],MATCH(\"Клины\",Деление_СБЕ[Расчет материалов],0),MATCH(\"КВ\",Деление_СБЕ[#Headers],0))>0,1,0)","v":1},{"$f":"IF(INDEX(Деление_СБЕ[],MATCH(\"Клины\",Деление_СБЕ[Расчет материалов],0),MATCH(\"XPS\",Деление_СБЕ[#Headers],0))>0,1,0)","v":0},{"$f":"IF(INDEX(Деление_СБЕ[],MATCH(\"Клины\",Деление_СБЕ[Расчет материалов],0),MATCH(\"PIR\",Деление_СБЕ[#Headers],0))>0,1,0)","v":0},"-","-","-","-",null,null,1]
[null,"Промежуточный вес",{"$f":"IFERROR(C3/L3*C2,0)","v":0.33333333333300003},{"$f":"IFERROR(D3/L3*D2,0)","v":0},{"$f":"IFERROR(E3/L3*E2,0)","v":0},"-","-","-","-",null,null,0.33333333333300003]
[null,"Итоговый вес",{"$f":"IFERROR(C4*L2/L4,0)","v":0.99999999999900013},{"$f":"IFERROR(D4*L2/L4,0)","v":0},{"$f":"IFERROR(E4*L2/L4,0)","v":0},"-","-","-","-",null,null,0.99999999999900013]
[null,{"$f":"IF(M6=0,0,\"Стоимость\")","v":"Стоимость"},{"$f":"$M$6*C5","v":1799.9999999982001},{"$f":"$M$6*D5","v":0},{"$f":"$M$6*E5","v":0},null,null,null,null,null,null,1799.9999999982001,{"$f":"ОБЩИЕ_ДАННЫЕ!P33*0.5","v":1799.9999999999998}]
["Клин КУ","Вес",0.33333333333300003,0.33333333333300003,0.33333333333300003,"-","-","-","-",null,null,0.99999999999900013]
[null,{"$f":"IF(M11=0,0,\"Кол-во\")","v":{"$error":"#REF!"}},{"$f":"IF(SUM(INDIRECT({\"ТИП1\";\"ТИП2\";\"ТИП3\";\"ТИП4\";\"ТИП5\";\"ТИП6\";\"ТИП7\";\"ТИП8\";\"ТИП9\";\"ТИП10\"}&\"!AB21\"))>0,1,0)","v":{"$error":"#REF!"}},{"$f":"IF(SUM(INDIRECT({\"ТИП1\";\"ТИП2\";\"ТИП3\";\"ТИП4\";\"ТИП5\";\"ТИП6\";\"ТИП7\";\"ТИП8\";\"ТИП9\";\"ТИП10\"}&\"!AC21\"))>0,1,0)","v":{"$error":"#REF!"}},{"$f":"IF(SUM(INDIRECT({\"ТИП1\";\"ТИП2\";\"ТИП3\";\"ТИП4\";\"ТИП5\";\"ТИП6\";\"ТИП7\";\"ТИП8\";\"ТИП9\";\"ТИП10\"}&\"!AD21\"))>0,1,0)","v":{"$error":"#REF!"}},"-","-","-","-",null,null,{"$error":"#REF!"}]
[null,"Промежуточный вес",{"$f":"IFERROR(C8/L8*C7,0)","v":0},{"$f":"IFERROR(D8/L8*D7,0)","v":0},{"$f":"IFERROR(E8/L8*E7,0)","v":0},"-","-","-","-",null,null,0]
[null,"Итоговый вес",{"$f":"IFERROR(C9*L7/L9,0)","v":0},{"$f":"IFERROR(D9*L7/L9,0)","v":0},{"$f":"IFERROR(E9*L7/L9,0)","v":0},"-","-","-","-",null,null,0]
[null,{"$f":"IF(M11=0,0,\"Стоимость\")","v":{"$error":"#REF!"}},{"$f":"$M$11*C10","v":{"$error":"#REF!"}},{"$f":"$M$11*D10","v":{"$error":"#REF!"}},{"$f":"$M$11*E10","v":{"$error":"#REF!"}},null,null,null,null,null,null,{"$error":"#REF!"},{"$f":"(ОБЩИЕ_ДАННЫЕ!#REF!)*0.5","v":{"$error":"#REF!"}}]
["Клин КУ как ОУ","Вес",0.33333333333300003,0.33333333333300003,0.33333333333300003,"-","-","-","-",null,null,0.99999999999900013]
[null,{"$f":"IF(M16=0,0,\"Кол-во\")","v":{"$error":"#REF!"}},{"$f":"IF(SUM(INDIRECT({\"ТИП1\";\"ТИП2\";\"ТИП3\";\"ТИП4\";\"ТИП5\";\"ТИП6\";\"ТИП7\";\"ТИП8\";\"ТИП9\";\"ТИП10\"}&\"!AB21\"))>0,1,0)","v":{"$error":"#REF!"}},{"$f":"IF(SUM(INDIRECT({\"ТИП1\";\"ТИП2\";\"ТИП3\";\"ТИП4\";\"ТИП5\";\"ТИП6\";\"ТИП7\";\"ТИП8\";\"ТИП9\";\"ТИП10\"}&\"!AC21\"))>0,1,0)","v":{"$error":"#REF!"}},{"$f":"IF(SUM(INDIRECT({\"ТИП1\";\"ТИП2\";\"ТИП3\";\"ТИП4\";\"ТИП5\";\"ТИП6\";\"ТИП7\";\"ТИП8\";\"ТИП9\";\"ТИП10\"}&\"!AD21\"))>0,1,0)","v":{"$error":"#REF!"}},"-","-","-","-",null,null,{"$error":"#REF!"}]
[null,"Промежуточный вес",{"$f":"IFERROR(C13/L13*C12,0)","v":0},{"$f":"IFERROR(D13/L13*D12,0)","v":0},{"$f":"IFERROR(E13/L13*E12,0)","v":0},"-","-","-","-",null,null,0]
[null,"Итоговый вес",{"$f":"IFERROR(C14*L12/L14,0)","v":0},{"$f":"IFERROR(D14*L12/L14,0)","v":0},{"$f":"IFERROR(E14*L12/L14,0)","v":0},"-","-","-","-",null,null,0]
[null,{"$f":"IF(M16=0,0,\"Стоимость\")","v":{"$error":"#REF!"}},{"$f":"$M$16*C15","v":{"$error":"#REF!"}},{"$f":"$M$16*D15","v":{"$error":"#REF!"}},{"$f":"$M$16*E15","v":{"$error":"#REF!"}},null,null,null,null,null,null,{"$error":"#REF!"},{"$f":"(ОБЩИЕ_ДАННЫЕ!#REF!)*0.5","v":{"$error":"#REF!"}}]
["ПК ПМ","Вес",0.15,0.15,0.15,0.35,0.15,0.05,"-",null,null,{"$f":"SUM(C17:H17)","v":1}]
[null,{"$f":"IF(M21=0,0,\"Кол-во\")","v":0},{"$f":"IF(ОБЩИЕ_ДАННЫЕ!H131=0,0,IF(AND(INDEX(Деление_СБЕ[],MATCH(\"Материалы_основные\",Деление_СБЕ[Расчет материалов],0),MATCH(\"КВ\",Деление_СБЕ[#Headers],0))>0,ОБЩИЕ_ДАННЫЕ!O34>0),1,0))","v":0},{"$f":"IF(ОБЩИЕ_ДАННЫЕ!I131=0,0,IF(AND(INDEX(Деление_СБЕ[],MATCH(\"Материалы_основные\",Деление_СБЕ[Расчет материалов],0),MATCH(\"XPS\",Деление_СБЕ[#Headers],0))>0,ОБЩИЕ_ДАННЫЕ!O34>0),1,0))","v":0},{"$f":"IF(ОБЩИЕ_ДАННЫЕ!J131=0,0,IF(AND(INDEX(Деление_СБЕ[],MATCH(\"Материалы_основные\",Деление_СБЕ[Расчет материалов],0),MATCH(\"PIR\",Деление_СБЕ[#Headers],0))>0,ОБЩИЕ_ДАННЫЕ!O34>0),1,0))","v":0},{"$f":"IF(ОБЩИЕ_ДАННЫЕ!K131=0,0,IF(AND(INDEX(Деление_СБЕ[],MATCH(\"Материалы_основные\",Деление_СБЕ[Расчет материалов],0),MATCH(\"ПМ\",Деление_СБЕ[#Headers],0))>0,ОБЩИЕ_ДАННЫЕ!O34>0),1,0))","v":0},{"$f":"IF(ОБЩИЕ_ДАННЫЕ!L131=0,0,IF(AND(OR(INDEX(Деление_СБЕ[],MATCH(\"Материалы_основные\",Деление_СБЕ[Расчет материалов],0),MATCH(\"РМ\",Деление_СБЕ[#Headers],0))>0,INDEX(Деление_СБЕ[],MATCH(\"Материалы_паробарьер\",Деление_СБЕ[Расчет материалов],0),MATCH(\"РМ\",Деление_СБЕ[#Headers],0))>0),ОБЩИЕ_ДАННЫЕ!O34>0),1,0))","v":0},{"$f":"IF(ОБЩИЕ_ДАННЫЕ!M131=0,0,IF(AND(INDEX(Деление_СБЕ[],MATCH(\"Материалы_основные\",Деление_СБЕ[Расчет материалов],0),MATCH(\"МиСХ\",Деление_СБЕ[#Headers],0))>0,ОБЩИЕ_ДАННЫЕ!O34>0),1,0))","v":0},"-",null,null,{"$f":"SUM(C18:H18)","v":0}]
[null,"Промежуточный вес",{"$f":"IFERROR(C18/L18*C17,0)","v":0},{"$f":"IFERROR(D18/L18*D17,0)","v":0},{"$f":"IFERROR(E18/L18*E17,0)","v":0},{"$f":"IFERROR(F18/L18*F17,0)","v":0},{"$f":"IFERROR(G18/L18*G17,0)","v":0},{"$f":"IFERROR(H18/L18*H17,0)","v":0},"-",null,null,{"$f":"SUM(C19:H19)","v":0}]
[null,"Итоговый вес",{"$f":"IFERROR(C19*L17/L19,0)","v":0},{"$f":"IFERROR(D19*L17/L19,0)","v":0},{"$f":"IFERROR(E19*L17/L19,0)","v":0},{"$f":"IFERROR(F19*L17/L19,0)","v":0},{"$f":"IFERROR(G19*L17/L19,0)","v":0},{"$f":"IFERROR(H19*L17/L19,0)","v":0},"-",null,null,0]
[null,{"$f":"IF(M21=0,0,\"Стоимость\")","v":0},{"$f":"$M$21*C20","v":0},0,0,0,0,0,null,null,null,0,{"$f":"ОБЩИЕ_ДАННЫЕ!P34*0.5","v":0}]
["ПК РМ","Вес",0.183333333333,0.183333333333,0.183333333333,"-",0.4,0.05,"-",null,null,0.99999999999900002]
[null,{"$f":"IF(M26=0,0,\"Кол-во\")","v":"Кол-во"},{"$f":"IF(ОБЩИЕ_ДАННЫЕ!H131=0,0,IF(AND(INDEX(Деление_СБЕ[],MATCH(\"Материалы_основные\",Деление_СБЕ[Расчет материалов],0),MATCH(\"КВ\",Деление_СБЕ[#Headers],0))>0,ОБЩИЕ_ДАННЫЕ!O35>0),1,0))","v":1},{"$f":"IF(ОБЩИЕ_ДАННЫЕ!I131=0,0,IF(AND(INDEX(Деление_СБЕ[],MATCH(\"Материалы_основные\",Деление_СБЕ[Расчет материалов],0),MATCH(\"XPS\",Деление_СБЕ[#Headers],0))>0,ОБЩИЕ_ДАННЫЕ!O35>0),1,0))","v":0},{"$f":"IF(ОБЩИЕ_ДАННЫЕ!J131=0,0,IF(AND(INDEX(Деление_СБЕ[],MATCH(\"Материалы_основные\",Деление_СБЕ[Расчет материалов],0),MATCH(\"PIR\",Деление_СБЕ[#Headers],0))>0,ОБЩИЕ_ДАННЫЕ!O35>0),1,0))","v":1},"-",{"$f":"IF(ОБЩИЕ_ДАННЫЕ!L131=0,0,IF(AND(INDEX(Деление_СБЕ[],MATCH(\"Материалы_основные\",Деление_СБЕ[Расчет материалов],0),MATCH(\"ПМ\",Деление_СБЕ[#Headers],0))>0,ОБЩИЕ_ДАННЫЕ!O35>0),1,0))","v":0},{"$f":"IF(ОБЩИЕ_ДАННЫЕ!M131=0,0,IF(AND(INDEX(Деление_СБЕ[],MATCH(\"Материалы_основные\",Деление_СБЕ[Расчет материалов],0),MATCH(\"МиСХ\",Деление_СБЕ[#Headers],0))>0,ОБЩИЕ_ДАННЫЕ!O35>0),1,0))","v":1},"-",null,null,{"$f":"SUM(C23:H23)","v":3}]
[null,"Промежуточный вес",{"$f":"IFERROR(C23/L23*C22,0)","v":6.1111111110999997E-2},{"$f":"IFERROR(D23/L23*D22,0)","v":0},{"$f":"IFERROR(E23/L23*E22,0)","v":6.1111111110999997E-2},"-",{"$f":"IFERROR(G23/L23*$G$22,0)","v":0},{"$f":"IFERROR(H23/L23*$H$22,0)","v":1.6666666666666666E-2},"-",null,null,{"$f":"SUM(C24:H24)","v":0.13888888888866666}]
[null,"Итоговый вес",{"$f":"IFERROR(C24*L22/L24,0)","v":0.43999999999946399},{"$f":"IFERROR(D24*L22/L24,0)","v":0},{"$f":"IFERROR(E24*L22/L24,0)","v":0.43999999999946399},"-",{"$f":"IFERROR(G24*L$22/L$24,0)","v":0},{"$f":"IFERROR(H24*L$22/L$24,0)","v":0.12000000000007201},"-",null,null,{"$f":"SUM(C25:H25)","v":0.99999999999900002}]
[null,{"$f":"IF(M26=0,0,\"Стоимость\")","v":"Стоимость"},{"$f":"$M$26*C25","v":1055.9999999987135},{"$f":"$M$26*D25","v":0},{"$f":"$M$26*E25","v":1055.9999999987135},null,{"$f":"$M$26*G25","v":0},{"$f":"$M$26*H25","v":288.0000000001728},null,null,null,{"$f":"$M$26*L25","v":2399.9999999975998},{"$f":"ОБЩИЕ_ДАННЫЕ!P35*0.5","v":2400}]
["Ветер ПМ","Вес","-","-","-",1,"-","-","-",null,null,{"$f":"SUM(F27:G27)","v":1}]
[null,{"$f":"IF(M31=0,0,\"Кол-во\")","v":0},"-","-","-",{"$f":"IF(ОБЩИЕ_ДАННЫЕ!O36>0,1,0)","v":0},"-","-","-",null,null,0]
[null,"Промежуточный вес","-","-","-",{"$f":"IFERROR(F28/$L$28*F27,0)","v":0},"-","-","-",null,null,0]
[null,"Итоговый вес","-","-","-",{"$f":"IFERROR(F29*$L$27/$L$29,0)","v":0},"-","-","-",null,null,0]
[null,{"$f":"IF(M31=0,0,\"Стоимость\")","v":0},null,null,null,{"$f":"F30*M31","v":0},"-","-","-",null,null,0,{"$f":"IF(F28=1,(ОБЩИЕ_ДАННЫЕ!P36*0.25),0)","v":0}]
["Ветер РМ","Вес","-","-","-","-",1,"-","-",null,null,1]
[null,{"$f":"IF(M36=0,0,\"Кол-во\")","v":0},"-","-","-","-",{"$f":"IF(ОБЩИЕ_ДАННЫЕ!O37>0,1,0)","v":0},"-","-",null,null,0]
[null,"Промежуточный вес","-","-","-","-",{"$f":"IFERROR(G33/$L$33*G32,0)","v":0},"-","-",null,null,0]
[null,"Итоговый вес","-","-","-","-",{"$f":"IFERROR(G34*L32/L34,0)","v":0},"-","-",null,null,0]
[null,{"$f":"IF(M36=0,0,\"Стоимость\")","v":0},"-","-","-","-",{"$f":"G35*M36","v":0},"-","-",null,null,0,{"$f":"IF(G33=1,(ОБЩИЕ_ДАННЫЕ!P37*0.25),0)","v":0}]
["Тепло \nСП 23-02-2003","Вес",0.33333333333332998,0.33333333333332998,0.33333333333332998,"-","-","-","-",null,null,{"$f":"SUM(C37:E37)","v":0.99999999999999001}]
[null,{"$f":"IF(M41=0,0,\"Кол-во\")","v":"Кол-во"},{"$f":"ОБЩИЕ_ДАННЫЕ!W38","v":1},{"$f":"ОБЩИЕ_ДАННЫЕ!X38","v":0},{"$f":"ОБЩИЕ_ДАННЫЕ!Y38","v":1},"-","-","-","-",null,null,{"$f":"SUM(C38:E38)","v":2}]
[null,"Промежуточный вес",{"$f":"IFERROR(C38/L38*C37,0)","v":0.16666666666666499},{"$f":"IFERROR(D38/L38*D37,0)","v":0},{"$f":"IFERROR(E38/L38*E37,0)","v":0.16666666666666499},"-","-","-","-",null,null,{"$f":"SUM(C39:E39)","v":0.33333333333332998}]
[null,"Итоговый вес",{"$f":"IFERROR(C39*L37/L39,0)","v":0.499999999999995},{"$f":"IFERROR(D39*L37/L39,0)","v":0},{"$f":"IFERROR(E39*L37/L39,0)","v":0.499999999999995},"-","-","-","-",null,null,{"$f":"SUM(C40:E40)","v":0.99999999999999001}]
[null,{"$f":"IF(M41=0,0,\"Стоимость\")","v":"Стоимость"},{"$f":"IFERROR($M$41*C40,0)","v":299.99999999999699},{"$f":"$M$41*D40","v":0},{"$f":"$M$41*E40","v":299.99999999999699},null,null,null,null,null,null,{"$f":"SUM(C41:E41)","v":599.99999999999397},{"$f":"ОБЩИЕ_ДАННЫЕ!P38*0.5","v":600}]
["Анализ документации","Вес",0.19,0.19,0.19,0.19,0.19,0.05,null,null,null,{"$f":"SUM(C42:K42)","v":1}]
[null,{"$f":"IF(M46=0,0,\"Кол-во\")","v":"Кол-во"},{"$f":"IF(SUM(C3,C18,C23,C28,C38)>0,1,0)","v":1},0,1,0,{"$f":"IF(SUM(G3,G18,G23,G33,G38)>0,1,0)","v":0},1,null,null,null,{"$f":"SUM(C43:H43)","v":3}]
[null,"Промежуточный вес",{"$f":"IFERROR(C43/L43*C42,0)","v":6.3333333333333325E-2},{"$f":"IFERROR(D43/L43*D42,0)","v":0},{"$f":"IFERROR(E43/$L$43*E42,0)","v":6.3333333333333325E-2},{"$f":"IFERROR(F43/$L$43*F42,0)","v":0},{"$f":"IFERROR(G43/$L$43*G42,0)","v":0},{"$f":"IFERROR(H43/$L$43*H42,0)","v":1.6666666666666666E-2},"-",null,null,{"$f":"SUM(C44:H44)","v":0.14333333333333331}]
[null,"Итоговый вес",{"$f":"IFERROR(C44*L42/L44,0)","v":0.44186046511627908},{"$f":"IFERROR(D44*L42/L44,0)","v":0},{"$f":"IFERROR(E44*$L$42/$L$44,0)","v":0.44186046511627908},{"$f":"IFERROR(F44*$L$42/$L$44,0)","v":0},{"$f":"IFERROR(G44*$L$42/$L$44,0)","v":0},{"$f":"IFERROR(H44*$L$42/$L$44,0)","v":0.11627906976744187},"-",null,null,{"$f":"SUM(C45:H45)","v":1}]
[null,{"$f":"IF(M46=0,0,\"Стоимость\")","v":"Стоимость"},{"$f":"IFERROR($M$46*C45,0)","v":883.7209302325582},{"$f":"$M$46*D45","v":0},{"$f":"$M$46*E45","v":883.7209302325582},{"$f":"$M$46*F45","v":0},{"$f":"$M$46*G45","v":0},{"$f":"$M$46*H45","v":232.55813953488374},null,null,null,{"$f":"SUM(C46:H46)","v":2000.0000000000002},{"$f":"ОБЩИЕ_ДАННЫЕ!P32*0.5","v":2000}]
["Ветер зоны","Вес","-","-","-",0.5,0.5,"-","-",null,null,{"$f":"SUM(F47:G47)","v":1}]
[null,{"$f":"IF(M51=0,0,\"Кол-во\")","v":0},"-","-","-",{"$f":"IF(ОБЩИЕ_ДАННЫЕ!Z42>0,1,0)","v":0},{"$f":"IF(ОБЩИЕ_ДАННЫЕ!AA42>0,1,0)","v":0},"-","-",null,null,0]
[null,"Промежуточный вес","-","-","-",{"$f":"IFERROR(F48/$L$48*F47,0)","v":0},{"$f":"IFERROR(G48/$L$48*G47,0)","v":0},"-","-",null,null,0]
[null,"Итоговый вес","-","-","-",{"$f":"IFERROR(F49*$L$47/$L$49,0)","v":0},{"$f":"IFERROR(G49*L47/L49,0)","v":0},"-","-",null,null,0]
[null,{"$f":"IF(M51=0,0,\"Стоимость\")","v":0},null,null,null,{"$f":"F50*M51","v":0},{"$f":"G50*M51","v":0},null,null,null,null,{"$f":"SUM(F51:G51)","v":0},{"$f":"IF(OR(F48=1,G48=1),(ОБЩИЕ_ДАННЫЕ!P42*0.25),0)","v":0}]
["Раскладка рулонов","Вес","-","-","-",0.5,0.5,"-","-",null,null,1]
[null,{"$f":"IF(M56=0,0,\"Кол-во\")","v":0},"-","-","-",{"$f":"IF(ОБЩИЕ_ДАННЫЕ!Z43>0,1,0)","v":0},{"$f":"IF(ОБЩИЕ_ДАННЫЕ!AA43>0,1,0)","v":0},"-","-",null,null,0]
[null,"Промежуточный вес","-","-","-",{"$f":"IFERROR(F53/$L$53*F52,0)","v":0},{"$f":"IFERROR(G53/$L$53*G52,0)","v":0},"-","-",null,null,0]
[null,"Итоговый вес","-","-","-",{"$f":"IFERROR(F54*$L$52/$L$54,0)","v":0},{"$f":"IFERROR(G54*L52/L54,0)","v":0},"-","-",null,null,0]
[null,{"$f":"IF(M56=0,0,\"Стоимость\")","v":0},null,null,null,{"$f":"F55*M56","v":0},{"$f":"G55*M56","v":0},null,null,null,null,0,{"$f":"IF(OR(F53=1,G53=1),(ОБЩИЕ_ДАННЫЕ!P43*0.25),0)","v":0}]
["Расчет паронакопления СП 50-13330.2012","Вес","-","-","-","-",1,"-","-",null,null,{"$f":"G57","v":1}]
[null,{"$f":"IF(M61=0,0,\"Кол-во\")","v":0},"-","-","-","-",{"$f":"IF(ОБЩИЕ_ДАННЫЕ!O40>0,1,0)","v":0},"-","-",null,null,{"$f":"G58","v":0}]
[null,"Промежуточный вес","-","-","-","-",{"$f":"IFERROR(G58/L58*G57,0)","v":0},"-","-",null,null,{"$f":"G59","v":0}]
[null,"Итоговый вес","-","-",null,"-",{"$f":"IFERROR(G59*L57/L59,0)","v":0},"-","-",null,null,{"$f":"G60","v":0}]
[null,{"$f":"IF(M61=0,0,\"Стоимость\")","v":0},"-","-",null,"-",{"$f":"$M$61*G60","v":0},null,null,null,null,{"$f":"G61","v":0},{"$f":"ОБЩИЕ_ДАННЫЕ!P40*0.5","v":0}]
["Расчет ограждения","Вес",null,null,null,1,null,null,null,null,null,{"$f":"F62","v":1}]
[null,{"$f":"IF(M66=0,0,\"Кол-во\")","v":"Кол-во"},null,null,null,{"$f":"IF(ОБЩИЕ_ДАННЫЕ!O41>0,1,0)","v":1},null,null,null,null,null,{"$f":"F63","v":1}]
[null,"Промежуточный вес",null,null,null,{"$f":"IFERROR(F63/L63*F62,0)","v":1},null,null,null,null,null,{"$f":"F64","v":1}]
[null,"Итоговый вес",null,null,null,{"$f":"IFERROR(F64*L62/L64,0)","v":1},null,null,null,null,null,{"$f":"F65","v":1}]
[null,{"$f":"IF(M66=0,0,\"Стоимость\")","v":"Стоимость"},null,null,null,{"$f":"$M$66*F65","v":800},null,null,null,null,null,{"$f":"F66","v":800},{"$f":"ОБЩИЕ_ДАННЫЕ!P41","v":800}]
["Тепло \nСП  50","Вес",0.33333333333332998,0.33333333333332998,0.33333333333332998,"-","-","-","-",null,null,{"$f":"SUM(C67:E67)","v":0.99999999999999001}]
[null,{"$f":"IF(M71=0,0,\"Кол-во\")","v":0},{"$f":"ОБЩИЕ_ДАННЫЕ!W39","v":0},{"$f":"ОБЩИЕ_ДАННЫЕ!X39","v":0},{"$f":"ОБЩИЕ_ДАННЫЕ!Y39","v":0},"-","-","-","-",null,null,{"$f":"SUM(C68:E68)","v":0}]
[null,"Промежуточный вес",{"$f":"IFERROR(C68/L68*C67,0)","v":0},{"$f":"IFERROR(D68/L68*D67,0)","v":0},{"$f":"IFERROR(E68/L68*E67,0)","v":0},"-","-","-","-",null,null,{"$f":"SUM(C69:E69)","v":0}]
[null,"Итоговый вес",{"$f":"IFERROR(C69*L67/L69,0)","v":0},{"$f":"IFERROR(D69*L67/L69,0)","v":0},{"$f":"IFERROR(E69*L67/L69,0)","v":0},"-","-","-","-",null,null,{"$f":"SUM(C70:E70)","v":0}]
[null,{"$f":"IF(M71=0,0,\"Стоимость\")","v":0},{"$f":"IFERROR($M$71*C70,0)","v":0},{"$f":"$M$71*D70","v":0},{"$f":"$M$71*E70","v":0},null,null,null,null,null,null,{"$f":"SUM(C71:E71)","v":0},{"$f":"ОБЩИЕ_ДАННЫЕ!P39","v":0}]
["Воронки ПМ","Вес","-","-","-",1,"-","-","-",null,null,{"$f":"SUM(F72)","v":1}]
[null,{"$f":"IF(M76=0,0,\"Кол-во\")","v":0},"-","-","-",{"$f":"IF(ОБЩИЕ_ДАННЫЕ!O44>0,1,0)","v":0},"-","-","-",null,null,{"$f":"SUM(F73)","v":0}]
[null,"Промежуточный вес","-","-","-",{"$f":"IFERROR(F73/$L$73*F72,0)","v":0},"-","-","-",null,null,{"$f":"SUM(F74)","v":0}]
[null,"Итоговый вес","-","-","-",{"$f":"IFERROR(F74*$L$72/$L$74,0)","v":0},"-","-","-",null,null,{"$f":"SUM(F75)","v":0}]
[null,{"$f":"IF(M76=0,0,\"Стоимость\")","v":0},null,null,null,{"$f":"F75*M76","v":0},"-","-","-",null,null,{"$f":"SUM(F76)","v":0},{"$f":"ОБЩИЕ_ДАННЫЕ!P44","v":0}]
["Воронки РМ","Вес","-","-","-","-",1,"-","-",null,null,{"$f":"SUM(F77:G77)","v":1}]
[null,{"$f":"IF(M81=0,0,\"Кол-во\")","v":0},"-","-","-","-",{"$f":"IF(ОБЩИЕ_ДАННЫЕ!O45>0,1,0)","v":0},"-","-",null,null,0]
[null,"Промежуточный вес","-","-","-","-",{"$f":"IFERROR(G78/$L$78*G77,0)","v":0},"-","-",null,null,{"$f":"SUM(G79)","v":0}]
[null,"Итоговый вес","-","-","-","-",{"$f":"IFERROR(G79*L77/L79,0)","v":0},"-","-",null,null,0]
[null,{"$f":"IF(M81=0,0,\"Стоимость\")","v":0},"-","-","-","-",{"$f":"G80*M81","v":0},"-","-",null,null,{"$f":"SUM(G81)","v":0},{"$f":"ОБЩИЕ_ДАННЫЕ!P45","v":0}]